{"text_format":"1","workbook":"xlsx","n_sheets":3,"sheets":["DATA","EDIT","Feuil1"],"not_rendered":{"charts":0,"images":0,"macros":1,"external_links":0,"defined_names":5,"comments":0,"pivot_tables":0},"unopened":[],"bounds":{"document_bytes":16777216,"sheet_cells":100000,"rows_first":2000,"rows_last":500,"rows_between":2000,"halvings":0,"cell_chars":16384,"cell_head_chars":4096},"cells_cut":0,"cells_raw":0,"read":"whole","date_system":"1900"}

{"sheet":"DATA","index":0,"n_rows":39989,"n_cols":10,"rows_kept":4500,"cut":true,"hidden":true,"merged":[],"bounds":{"rows_first":2000,"rows_last":500,"rows_between":2000,"halvings":0}}
["Aast",64460,{"$f":"SUMPRODUCT((LEFT(B1:B40000,3)=\"513\")*1)","v":143},"AIN",1,null,"Bourg en Bresse",1000]
["Abainville",55130,null,"AISNE",2,null,"Saint Denis lès Bourg",1000]
["Abancourt",60220,null,"ALLIER",3,null,"Amareins",1090]
["Abancourt",59265,null,"ALPES DE HAUTE PROVENCE",4,null,"Amareins Francheleins Ces",1090]
["Abaucourt",54610,null,"HAUTES ALPES",5,null,"Cesseins",1090]
["Abaucourt Hautecourt",55400,null,"ALPES MARITIMES",6,null,"Genouilleux",1090]
["Abbans Dessous",25320,null,"ARDECHE",7,null,"Guéreins",1090]
["Abbans Dessus",25440,null,"ARDENNES",8,null,"Lurcy",1090]
["Abbaretz",44170,null,"ARIEGE",9,null,"Montceaux",1090]
["Abbecourt",60430,null,"AUBE",10,null,"Montmerle sur Saône",1090]
["Abbécourt","02300",null,"AUDE",11,null,"Apremont",1100]
["Abbenans",25340,null,"AVEYRON",12,null,"Arbent",1100]
["Abbeville",80132,null,"BOUCHES DU RHONE",13,null,"Bouvent",1100]
["Abbeville",80100,null,"CALVADOS",14,null,"Géovreisset",1100]
["Abbéville la Rivière",91150,null,"CANTAL",15,null,"Oyonnax",1100]
["Abbéville lès Conflans",54800,null,"CHARENTE",16,null,"Veyziat",1100]
["Abbeville Saint Lucien",60480,null,"CHARENTE MARITIME",17,null,"Bellignat",1100]
["Abbévillers",25310,null,"CHER",18,null,"Aranc",1110]
["Abeilhan",34290,null,"CORREZE",19,null,"Brénod",1110]
["Abelcourt",70300,null,"CORSE",20,null,"Champdor",1110]
["Abère",64160,null,"COTE D'OR",21,null,"Corcelles",1110]
["Abergement la Ronce",39500,null,"COTES D'ARMOR",22,null,"Corlier",1110]
["Abergement le Grand",39600,null,"CREUSE",23,null,"Cormaranche en Bugey",1110]
["Abergement le Petit",39800,null,"DORDOGNE",24,null,"Hauteville Lompnes",1110]
["Abergement lès Thésy",39110,null,"DOUBS",25,null,"Hostias",1110]
["Abergement Saint Jean",39120,null,"DROME",26,null,"Prémillieu",1110]
["Abergement Sainte Colombe",71370,null,"EURE",27,null,"Thézillieu",1110]
["Abidos",64150,null,"EURE ET LOIR",28,null,"Chânes",1120]
["Abilly",37160,null,"FINISTERE",29,null,"Cordieux",1120,null,"Vingt-cinq"]
["Abitain",64390,null,"GARD",30,null,"Dagneux",1120,null,"Vingt-quatre"]
["Abjat sur Bandiat",24300,null,"HAUTE GARONNE",31,null,"La Boisse",1120,null,"Vingt-cinq"]
["Ablain Saint Nazaire",62153,null,"GERS",32,null,"Montluel",1120,null,"Vingt-quatre"]
["Ablaincourt Pressoir",80320,null,"GIRONDE",33,null,"Nièvroz",1120,null,"Vingt-cinq"]
["Ablainzevelle",62116,null,"HERAULT",34,null,"Pizay",1120,null,"Vingt-quatre"]
["Ablancourt",51240,null,"ILLE ET VILAINE",35,null,"Sainte Croix",1120,null,"Vingt-cinq"]
["Ableiges",95450,null,"INDRE",36,null,"Thil",1120,null,"Vingt-quatre"]
["Ablis",78660,null,"INDRE ET LOIRE",37,null,"Belleydoux",1130,null,"Vingt-cinq"]
["Ablon",14600,null,"ISERE",38,null,"Charix",1130,null,"Vingt-quatre"]
["Ablon sur Seine",94480,null,"JURA",39,null,"Echallon",1130,null,"Vingt-cinq"]
["Aboën",42380,null,"LANDES",40,null,"Giron",1130,null,"Vingt-quatre"]
["Aboncourt",57920,null,"LOIR ET CHER",41,null,"Lalleyriat",1130,null,"Vingt-cinq"]
["Aboncourt",54115,null,"LOIRE",42,null,"Le Poizat",1130,null,"Vingt-quatre"]
["Aboncourt Gesincourt",70500,null,"HAUTE LOIRE",43,null,"Les Neyrolles",1130,null,"Vingt-cinq"]
["Aboncourt sur Seille",57590,null,"LOIRE ATLANTIQUE",44,null,"Nantua",1130]
["Abondance",74360,null,"LOIRET",45,null,"Plagne",1130]
["Abondant",28570,null,"LOT",46,null,"Saint Germain de Joux",1130]
["Abos",64360,null,"LOT ET GARONNE",47,null,"Garnerans",1140]
["Abreschviller",57560,null,"LOZERE",48,null,"Illiat",1140]
["Abrest","03200",null,"MAINE ET LOIRE",49,null,"Mogneneins",1140]
["Abriès","05460",null,"MANCHE",50,null,"Peyzieux sur Saône",1140]
["Abscon",59215,null,"MARNE",51,null,"Saint Didier sur Chalaronne",1140]
["Abzac",33230,null,"HAUTE MARNE",52,null,"Saint Étienne sur Chalaronne",1140]
["Abzac",16500,null,"MAYENNE",53,null,"Thoissey",1140]
["Accolans",25250,null,"MEURTHE ET MOSELLE",54,null,"Valeins",1140]
["Accolay",89460,null,"MEUSE",55,null,"Blyes",1150]
["Accons","07160",null,"MORBIHAN",56,null,"Chazey sur Ain",1150]
["Accous",64490,null,"MOSELLE",57,null,"Lagnieu",1150]
["Achain",57340,null,"NIEVRE",58,null,"Leyment",1150]
["Achen",57410,null,"NORD",59,null,"Saint Sorlin en Bugey",1150]
["Achenheim",67204,null,"OISE",60,null,"Saint Vulbas",1150]
["Achères",78260,null,"ORNE",61,null,"Sainte Julie",1150]
["Achères",18250,null,"PAS DE CALAIS",62,null,"Sault Brénaz",1150]
["Achères la Forêt",77760,null,"PUY DE DOME",63,null,"Souclin",1150]
["Achery","02800",null,"PYRENEES ATLANTIQUES",64,null,"Vaux en Bugey",1150]
["Acheux en Amiénois",80560,null,"HAUTES PYRENEES",65,null,"Villebois",1150]
["Acheux en Vimeu",80210,null,"PYRENEES ORIENTALES",66,null,"Druillat",1160]
["Acheville",62320,null,"BAS RHIN",67,null,"La Tranclière",1160]
["Achey",70180,null,"HAUT RHIN",68,null,"Neuville sur Ain",1160]
["Achicourt",62217,null,"RHONE",69,null,"Pont d'Ain",1160]
["Achiet le Grand",62121,null,"HAUTE SAONE",70,null,"Priay",1160]
["Achiet le Petit",62121,null,"SAONE ET LOIRE",71,null,"Saint Martin du Mont",1160]
["Achun",58110,null,"SARTHE",72,null,"Varambon",1160]
["Achy",60690,null,"SAVOIE",73,null,"Cessy",1170]
["Acigné",35690,null,"HAUTE SAVOIE",74,null,"Chevry",1170]
["Aclou",27800,null,"PARIS",75,null,"Crozet",1170]
["Acon",27570,null,"SEINE MARITIME",76,null,"Échenevex",1170]
["Acq",62144,null,"SEINE ET MARNE",77,null,"Gex",1170]
["Acqueville",50440,null,"YVELINES",78,null,"Mijoux",1170]
["Acqueville",14220,null,"DEUX SEVRES",79,null,"Ségny",1170]
["Acquigny",27400,null,"SOMME",80,null,"Vesancy",1170]
["Acquin Westbécourt",62380,null,"TARN",81,null,"Arbigny",1190]
["Acy","02200",null,"TARN ET GARONNE",82,null,"Boissey",1190]
["Acy en Multien",60620,null,"VAR",83,null,"Boz",1190]
["Acy Romance","08300",null,"VAUCLUSE",84,null,"Chavannes sur Reyssouze",1190]
["Adaincourt",57580,null,"VENDEE",85,null,"Chevroux",1190]
["Adainville",78113,null,"VIENNE",86,null,"Gorrevod",1190]
["Adam lès Passavant",25360,null,"HAUTE VIENNE",87,null,"Ozan",1190]
["Adam lès Vercel",25530,null,"VOSGES",88,null,"Pont de Vaux",1190]
["Adamswiller",67320,null,"YONNE",89,null,"Reyssouze",1190]
["Adast",65260,null,"TERRITOIRE DE BELFORT",90,null,"Saint Bénigne",1190]
["Adé",65100,null,"ESSONNE",91,null,"Saint Étienne sur Reyssouze",1190]
["Adelange",57380,null,"HAUTS DE SEINE",92,null,"Sermoyer",1190]
["Adelans et le Val de Bithaine",70200,null,"SEINE SAINT DENIS",93,null,"Bellegarde sur Valserine",1200]
["Adervielle Pouchergues",65240,null,"VAL DE MARNE",94,null,"Billiat",1200]
["Adilly",79200,null,"VAL D'OISE",95,null,"Châtillon en Michaille",1200]
["Adinfer",62116,null,"GUADELOUPE","971",null,"Chézery Forens",1200]
["Adissan",34230,null,"MARTINIQUE","972",null,"Confort",1200]
["Adon",45230,null,"GUYANE","973",null,"Craz en Michaille",1200]
["Adrets de l'Estérel",83600,null,"REUNION","974",null,"Éloise",1200]
["Adriers",86430,null,"ST PIERRE ET MIQUELON","975",null,"Injoux Génissiat",1200]
["Afa",20167,null,"MAYOTTE","976",null,"Lancrans",1200]
["Affieux",19260,null,"WALLIS ET FUTUNA","986",null,"Léaz",1200]
["Affléville",54800,null,"POLYNESIE FRANCAISE","987",null,"Montanges",1200]
["Affoux",69170,null,"NOUVELLE-CALEDONIE","988",null,"Ochiaz",1200]
["Affracourt",54740,null,"MONACO","990",null,"Saint Germain sur Rhône",1200]
["Affringues",62380,null,null,null,null,"Villes",1200]
["Agassac",31230,null,"BASSE TERRE","97100",null,"Vouvray",1200]
["Agay",83530,null,"POINTE A PITRE","97110",null,"Ferney Voltaire",1210]
["Agde",34300,null,"MORNE A L EAU","97111",null,"Ornex",1210]
["Agel",34210,null,"GRAND BOURG","97112",null,"Versonnex",1210]
["Agen",47000,null,"GOURBEYRE","97113",null,"Divonne les Bains",1220]
["Agen d'Aveyron",12630,null,"TROIS RIVIERES","97114",null,"Grilly",1220]
["Agencourt",21700,null,"STE ROSE","97115",null,"Sauverny",1220]
["Agenville",80370,null,"POINTE NOIRE","97116",null,"Arandas",1230]
["Agenvillers",80150,null,"PORT LOUIS","97117",null,"Argis",1230]
["Ageville",52340,null,"ST FRANCOIS","97118",null,"Chaley",1230]
["Agey",21410,null,"VIEUX HABITANTS","97119",null,"Cleyzieu",1230]
["Aghione",20270,null,"ST CLAUDE","97120",null,"Conand",1230]
["Agincourt",54770,null,"ANSE BERTRAND","97121",null,"Évosges",1230]
["Agmé",47350,null,"BAIE MAHAULT","97122",null,"Nivollet Montgriffon",1230]
["Agnac",47800,null,"BAILLIF","97123",null,"Oncieu",1230]
["Agnat",43100,null,"BOUILLANTE","97125",null,"Saint Rambert en Bugey",1230]
["Agneaux",50180,null,"DESHAIES","97126",null,"Tenay",1230]
["Agnetz",60600,null,"LA DESIRADE","97127",null,"Torcieu",1230]
["Agnez lès Duisans",62161,null,"GOYAVE","97128",null,"Certines",1240]
["Agnicourt et Séchelles","02340",null,"LAMENTIN","97129",null,"Dompierre sur Veyle",1240]
["Agnières",80290,null,"BANANIER","97130",null,"La Chapelle du Châtelard",1240]
["Agnières",62690,null,"CAPESTERRE BELLE EAU","97130",null,"Lent",1240]
["Agnières en Dévoluy","05250",null,"STE MARIE","97130",null,"Marlieux",1240]
["Agnin",38150,null,"LES MANGLES","97131",null,"Saint André le Bouchoux",1240]
["Agnos",64400,null,"PETIT CANAL","97131",null,"Saint André sur Vieux Jonc",1240]
["Agny",62217,null,"PIGEON","97132",null,"Saint Germain sur Renon",1240]
["Agon Coutainville",50230,null,"ST BARTHELEMY","97133",null,"Saint Paul de Varax",1240]
["Agonac",24460,null,"ST LOUIS","97134",null,"Servas",1240]
["Agonès",34190,null,"ST LOUIS","97134",null,"Bohas",1250]
["Agonges","03210",null,"TERRE DE BAS","97136",null,"Bohas Meyriat Rignat",1250]
["Agonnay",17350,null,"TERRE DE HAUT","97137",null,"Ceyzériat",1250]
["Agos Vidalos",65400,null,"LES ABYMES","97139",null,"Chavannes sur Suran",1250]
["Agris",16110,null,"CAPESTERRE DE MARIE GALAN","97140",null,"Cize",1250]
["Agudelle",17500,null,"VIEUX FORT","97141",null,"Corveissiat",1250]
["Aguessac",12520,null,"ST MARTIN","97150",null,"Drom",1250]
["Aguilcourt","02190",null,"LE MOULE","97160",null,"Germagnat",1250]
["Aguts",81470,null,"PETIT BOURG","97170",null,"Grand Corent",1250]
["Agy",14400,null,"DOUVILLE","97180",null,"Hautecourt Romanèche",1250]
["Ahaxe Alciette Bascassan",64220,null,"STE ANNE","97180",null,"Jasseron",1250]
["Ahetze",64210,null,"LE GOSIER","97190",null,"Journans",1250]
["Ahéville",88500,null,"FORT DE FRANCE","97200",null,"Montagnat",1250]
["Ahuillé",53940,null,"RIVIERE PILOTE","97211",null,"Pouillat",1250]
["Ahun",23150,null,"ST JOSEPH","97212",null,"Ramasse",1250]
["Ahuy",21121,null,"GROS MORNE","97213",null,"Revonnas",1250]
["ahuzac",81540,null,"LE LORRAIN","97214",null,"Rignat",1250]
["Aibes",59149,null,"RIVIERE SALEE","97215",null,"Romanèche",1250]
["Aibre",25750,null,"RIVIERE SALEE PETIT BOURG","97215",null,"Saint Just",1250]
["Aïcirits Camou Suhast",64120,null,"L AJOUPA BOUILLON","97216",null,"Simandre sur Suran",1250]
["Aiffres",79230,null,"LES ANSES D ARLETS","97217",null,"Tossiat",1250]
["Aigaliers",30700,null,"BASSE POINTE","97218",null,"Villereversure",1250]
["Aiglemont","08090",null,"GRAND RIVIERE","97218",null,"Belmont Luthézieu",1260]
["Aiglepierre",39110,null,"MACOUBA","97218",null,"Brénaz",1260]
["Aigleville",27120,null,"LA TRINITE","97220",null,"Champagne en Valromey",1260]
["Aiglun","06910",null,"LE CARBET","97221",null,"Charancin",1260]
["Aiglun","04510",null,"BELLEFONTAINE","97222",null,"Fitignieu",1260]
["Aignan",32290,null,"CASE PILOTE","97222",null,"Hotonnes",1260]
["Aignay le Duc",21510,null,"LE DIAMANT","97223",null,"Le Grand Abergement",1260]
["Aigne",34210,null,"DUCOS","97224",null,"Le Petit Abergement",1260]
["Aigné",72650,null,"LE MARIGOT","97225",null,"Lilignod",1260]
["Aignerville",14710,null,"LE MORNE VERT","97226",null,"Lochieu",1260]
["Aignes",31550,null,"STE ANNE","97227",null,"Lompnieu",1260]
["Aignes et Puypéroux",16190,null,"STE LUCE","97228",null,"Luthézieu",1260]
["Aigneville",80210,null,"LES TROIS ILETS","97229",null,"Passin",1260]
["Aigny",51150,null,"MORNE DES ESSES","97230",null,"Ruffieu",1260]
["Aigonnay",79370,null,"STE MARIE","97230",null,"Songieu",1260]
["Aigre",16140,null,"LE ROBERT","97231",null,"Sutrieu",1260]
["Aigrefeuille",31280,null,"VERT PRE","97231",null,"Vieu",1260]
["Aigrefeuille d'Aunis",17290,null,"LE LAMENTIN","97232",null,"Virieu le Petit",1260]
["Aigrefeuille sur Maine",44140,null,"SCHOELCHER","97233",null,"Beaupont",1270]
["Aigremont",89800,null,"LE FRANCOIS","97240",null,"Coligny",1270]
["Aigremont",78240,null,"FONDS ST DENIS","97250",null,"Domsure",1270]
["Aigremont",52400,null,"LE PRECHEUR","97250",null,"Pirajoux",1270]
["Aigremont",30350,null,"ST PIERRE","97250",null,"Salavre",1270]
["Aiguebelette le Lac",73610,null,"LE MORNE ROUGE","97260",null,"Verjon",1270]
["Aiguebelle",73220,null,"ST ESPRIT","97270",null,"Villemotier",1270]
["Aigueblanche",73260,null,"LE VAUCLIN","97280",null,"Moëns",1280]
["Aiguefonde",81200,null,"LE MARIN","97290",null,"Prévessin Moens",1280]
["Aigueperse",69790,null,"CAYENNE","97300",null,"Bey",1290]
["Aigueperse",63260,null,"MONTSINERY TONNEGRANDE","97300",null,"Biziat",1290]
["Aigues Juntes","09240",null,"KOUROU","97310",null,"Cormoranche sur Saône",1290]
["Aigues Mortes",30220,null,"ROURA","97311",null,"Crottet",1290]
["Aigues Vives",30670,null,"ST ELIE","97312",null,"Cruzilles lès Mépillat",1290]
["Aigues Vives",11800,null,"ST GEORGES","97313",null,"Grièges",1290]
["Aigues Vives","09600",null,"SAUL","97314",null,"Laiz",1290]
["Aiguèze",30760,null,"SINNAMARY","97315",null,"Pont de Veyle",1290]
["Aiguilhe",43000,null,"APATOU","97317",null,"Saint André d'Huiriat",1290]
["Aiguilles","05470",null,"JAVOUHEY","97318",null,"Saint Jean sur Veyle",1290]
["Aiguillon",47190,null,"ST LAURENT DU MARONI","97320",null,"Ambléon",1300]
["Aiguines",83630,null,"CAMOPI","97330",null,"Andert et Condon",1300]
["Aigurande",36140,null,"GRAND SANTI","97340",null,"Arbignieu",1300]
["Ailefroide","05340",null,"IRACOUBO","97350",null,"Belley",1300]
["Ailhon","07200",null,"MATOURY","97351",null,"Brégnier Cordon",1300]
["Aillant sur Milleron",45230,null,"LA COMTE","97352",null,"Brens",1300]
["Aillant sur Tholon",89110,null,"KAW","97353",null,"Chazey Bons",1300]
["Aillas",33124,null,"REMIRE MONTJOLY","97354",null,"Colomieu",1300]
["Ailleux",42130,null,"MACOURIA","97355",null,"Contrevoz",1300]
["Aillevans",70110,null,"MACOURIA","97355",null,"Conzieu",1300]
["Ailleville",10200,null,"MANA","97360",null,"Cuzieu",1300]
["Aillevillers et Lyaumont",70320,null,"MARIPASOULA","97370",null,"Izieu",1300]
["Aillianville",52700,null,"OUANARY","97380",null,"Magnieu",1300]
["Aillières Beauvoir",72600,null,"REGINA","97390",null,"Marignieu",1300]
["Aillon le Jeune",73340,null,"BELLE PIERRE","97400",null,"Massignieu de Rives",1300]
["Aillon le Vieux",73340,null,"LE BRULE","97400",null,"Murs et Gélignieux",1300]
["Ailloncourt",70300,null,"ST DENIS","97400",null,"Nattages",1300]
["Ailly",27600,null,"ST DENIS CAMELIAS","97400",null,"Parves",1300]
["Ailly le Haut Clocher",80690,null,"ST DENIS TADAR","97400",null,"Peyrieu",1300]
["Ailly sur Meuse",55300,null,"ST FRANCOIS","97400",null,"Prémeyzel",1300]
["Ailly sur Noye",80250,null,"BASSE TERRE","97410",null,"Saint Benoît",1300]
["Ailly sur Somme",80470,null,"GRAND BOIS","97410",null,"Saint Bois",1300]
["Aimargues",30470,null,"MONT VERT","97410",null,"Saint Champ Chatonod",1300]
["Aime",73210,null,"RAVINE BLANCHE","97410",null,"Saint Germain les Paroisses",1300]
["Ainac","04000",null,"ST PIERRE","97410",null,"Virignin",1300]
["Ainay le Château","03360",null,"TERRE STE","97410",null,"Buellas",1310]
["Ainay le Vieil",18200,null,"BOIS DE NEFLES ST PAUL","97411",null,"Confrançon",1310]
["Aincille",64220,null,"BRAS PANON","97412",null,"Curtafond",1310]
["Aincourt",95510,null,"RIVIERE DU MAT","97412",null,"Montcet",1310]
["Aincreville",55110,null,"CILAOS","97413",null,"Montracol",1310]
["Aingeray",54460,null,"PALMISTE ROUGE","97413",null,"Polliat",1310]
["Aingeville",88140,null,"ENTRE DEUX","97414",null,"Saint Martin le Châtel",1310]
["Aingoulaincourt",52230,null,"LA CHALOUPE","97416",null,"Saint Rémy",1310]
["Ainharp",64130,null,"LA MONTAGNE","97417",null,"Chalamont",1320]
["Ainhice Mongelos",64220,null,"ST BERNARD","97417",null,"Châtenay",1320]
["Aïnhoa",64250,null,"LA PLAINE DES CAFRES","97418",null,"Châtillon la Palud",1320]
["Ainvelle",88320,null,"LA POSSESSION","97419",null,"Crans",1320]
["Ainvelle",70800,null,"LA RIVIERE DES GALETS","97419",null,"Saint Nizier le Désert",1320]
["Airaines",80270,null,"LE DOS D ANE","97419",null,"Villette sur Ain",1320]
["Airan",14370,null,"STE THERESE","97419",null,"Ambérieux en Dombes",1330]
["Aire","08190",null,"LE PORT","97420",null,"Birieux",1330]
["Aire sur la Lys",62120,null,"LE PORT MARINE","97420",null,"Bouligneux",1330]
["Aire sur l'Adour",40800,null,"LE PORT ZUP","97420",null,"Lapeyrouse",1330]
["Airel",50680,null,"LA RIVIERE","97421",null,"Le Plantay",1330]
["Airion",60600,null,"LES MAKES","97421",null,"Sainte Olive",1330]
["Airon Notre Dame",62180,null,"LA SALINE","97422",null,"Versailleux",1330]
["Airon Saint Vaast",62180,null,"LE GUILLAUME","97423",null,"Villars les Dombes",1330]
["Airoux",11320,null,"LE PITON ST LEU","97424",null,"Attignat",1340]
["Airvault",79600,null,"LE PLATE","97424",null,"Béréziat",1340]
["Aiserey",21110,null,"LES AVIRONS","97425",null,"Cras sur Reyssouze",1340]
["Aisey et Richecourt",70500,null,"TEVELAVE","97425",null,"Étrez",1340]
["Aisey sur Seine",21400,null,"LES TROIS BASSINS","97426",null,"Foissiat",1340]
["Aisonville et Bernoville","02110",null,"L ETANG SALE","97427",null,"Jayat",1340]
["Aissey",25360,null,"L ETANG SALE LES BAINS","97427",null,"Malafretaz",1340]
["Aisy sous Thil",21390,null,"LA NOUVELLE","97428",null,"Marsonnas",1340]
["Aisy sur Armançon",89390,null,"PETITE ILE","97429",null,"Montrevel en Bresse",1340]
["Aiti",20244,null,"PITON GOYAVES","97429",null,"Saint Didier d'Aussiat",1340]
["Aiton",73220,null,"LE QUATORZIEME","97430",null,"Saint Sulpice",1340]
["Aix",59310,null,"LE TAMPON","97430",null,"Anglefort",1350]
["Aix",19200,null,"LES TROIS MARES","97430",null,"Béon",1350]
["Aix en Diois",26150,null,"PONT D YVES","97430",null,"Ceyzérieu",1350]
["Aix en Ergny",62650,null,"TAMPON 17EME KM","97430",null,"Cressin Rochefort",1350]
["Aix en Issart",62170,null,"LA PLAINE DES PALMISTES","97431",null,"Culoz",1350]
["Aix en Othe",10160,null,"RAVINE DES CABRIS","97432",null,"Flaxieu",1350]
["Aix en Provence",13100,null,"HELL BOURG","97433",null,"Lavours",1350]
["Aix en Provence",13090,null,"SALAZIE","97433",null,"Pollieu",1350]
["Aix la Fayette",63980,null,"LA SALINE LES BAINS","97434",null,"Vongnes",1350]
["Aix les Bains",73100,null,"ST GILLES LES BAINS","97434",null,"Balan",1360]
["Aix Noulette",62160,null,"BERNICA","97435",null,"Béligneux",1360]
["Aixe sur Vienne",87700,null,"ST GILLES LES HAUTS","97435",null,"Bressolles",1360]
["Aizac","07530",null,"TAN ROUGE","97435",null,"La Valbonne",1360]
["Aizanville",52120,null,"ST LEU","97436",null,"Loyettes",1360]
["Aize",36150,null,"STE ANNE","97437",null,"Bény",1370]
["Aizecourt le Bas",80240,null,"GILLOT","97438",null,"Courmangoux",1370]
["Aizecourt le Haut",80200,null,"LA GRANDE MONTEE","97438",null,"Cuisiat",1370]
["Aizecq",16700,null,"RIVIERE DES PLUIES","97438",null,"Meillonnas",1370]
["Aizelles","02820",null,"STE MARIE","97438",null,"Pressiat",1370]
["Aizenay",85190,null,"LE PITON STE ROSE","97439",null,"Saint Étienne du Bois",1370]
["Aizier",27500,null,"STE ROSE","97439",null,"Treffort Cuisiat",1370]
["Aizy Jouy","02370",null,"CAMBUSTON","97440",null,"Bâgé la Ville",1380]
["Ajac",11300,null,"LA CRESSONNIERE","97440",null,"Bâgé le Châtel",1380]
["Ajaccio",20090,null,"ST ANDRE","97440",null,"Boissey",1380]
["Ajain",23380,null,"STE SUZANNE","97441",null,"Dommartin",1380]
["Ajat",24210,null,"BASSE VALLEE","97442",null,"Saint André de Bâgé",1380]
["Ajoncourt",57590,null,"ST PHILIPPE","97442",null,"Saint Cyr sur Menthon",1380]
["Ajou",27410,null,"BELLEMENE","97460",null,"Saint Genis sur Menthon",1380]
["Ajoux","07000",null,"PLATEAU CAILLOUX","97460",null,"Civrieux",1390]
["Alaigne",11240,null,"ST PAUL","97460",null,"Mionnay",1390]
["Alaincourt",70210,null,"BEAUFONDS","97470",null,"Monthieux",1390]
["Alaincourt","02240",null,"ST BENOIT","97470",null,"Rancé",1390]
["Alaincourt la Côte",57590,null,"JEAN PETIT","97480",null,"Saint André de Corcy",1390]
["Alairac",11290,null,"LES LIANES","97480",null,"Saint Jean de Thurigneux",1390]
["Alaise",25330,null,"ST JOSEPH","97480",null,"Saint Marcel",1390]
["Alan",31420,null,"VINCENDO","97480",null,"Tramoyes",1390]
["Alando",20212,null,"BOIS DE NEFLES","97490",null,"Chanoz Châtenay",1400]
["Alata",20167,null,"LA BRETAGNE","97490",null,"Châtillon sur Chalaronne",1400]
["Alba la Romaine","07400",null,"MOUFIA","97490",null,"Condeissiat",1400]
["Alban",81250,null,"ST DENIS CHAUDRON","97490",null,"Dompierre sur Chalaronne",1400]
["Albaret le Comtal",48310,null,"STE CLOTILDE","97490",null,"L'Abergement Clémenciat",1400]
["Albaret Sainte Marie",48200,null,"LANGLADE","97500",null,"Neuville les Dames",1400]
["Albas",46140,null,"MIQUELON LANGLADE","97500",null,"Romans",1400]
["Albas",11360,null,"ST PIERRE","97500",null,"Saint Georges sur Renon",1400]
["Albé",67220,null,"ACOUA","97600",null,"Sandrans",1400]
["Albefeuille Lagarde",82290,null,"BANDRELE","97600",null,"Sulignat",1400]
["Albens",73410,null,"BOUENI","97600",null,"Champfromier",1410]
["Albepierre Bredons",15300,null,"CHICONI","97600",null,"Chézery Forens",1410]
["Albert",80300,null,"KAWENI","97600",null,"Lajoux",1410]
["Albertacce",20224,null,"MAMOUDZOU","97600",null,"Lélex",1410]
["Albertville",73200,null,"MTSANGAMOUJI","97600",null,"Mijoux",1410]
["Albestroff",57670,null,"OUANGANI","97600",null,"Chanay",1420]
["Albi",81990,null,"TSINGONI","97600",null,"Corbonod",1420]
["Albi",81000,null,"DZAOUDZI","97610",null,"Lhôpital",1420]
["Albiac",46500,null,"LABATTOIR","97610",null,"Seyssel",1420]
["Albiac",31460,null,"PAMANDZI","97610",null,"Surjoux",1420]
["Albias",82350,null,"CHIRONGUI","97620",null,"Ceignes",1430]
["Albières",11330,null,"KANI KELI","97625",null,"Chevillard",1430]
["Albiès","09310",null,"MTSAMBORO","97630",null,"Condamine",1430]
["Albiez le Jeune",73300,null,"SADA","97640",null,"Izenave",1430]
["Albiez Montrond",73530,null,"BANDRABOUA","97650",null,"Lantenay",1430]
["Albiez Montrond",73300,null,"DZOUMOGNE","97650",null,"Maillat",1430]
["Albignac",19190,null,"DEMBENI","97660",null,"Outriaz",1430]
["Albigny sur Saône",69250,null,"COCONI","97670",null,"Peyriat",1430]
["Albine",81240,null,"COMBANI","97680",null,"Saint Martin du Frêne",1430]
["Albiosc","04550",null,"KOUNGOU","97690",null,"Vieu d'Izenave",1430]
["Albitreccia",20128,null,"UVEA","98600",null,"Viriat",1440]
["Albon",26140,null,"ALO","98610",null,"Bolozon",1450]
["Albon","07190",null,"SIGAVE","98620",null,"Cerdon",1450]
["Alboussière","07440",null,"ARUE","98701",null,"Challes",1450]
["Albussac",19380,null,"FAAA","98704",null,"Labalme",1450]
["Alby sur Chéran",74540,null,"HITIAA O TE RA","98705",null,"Leyssard",1450]
["Alçay Alçabéhéty Sunharette",64470,null,"MAHAENA","98706",null,"Mérignat",1450]
["Aldudes",64430,null,"PAPENOO","98707",null,"Poncin",1450]
["Alembon",62850,null,"TIAREI","98708",null,"Saint Alban",1450]
["Alençon",61000,null,"MAHINA","98709",null,"Serrières sur Ain",1450]
["Alénya",66200,null,"PAEA","98711",null,"Brion",1460]
["Aléria",20270,null,"PAPARA","98712",null,"Géovreissiat",1460]
["Alès",30100,null,"PAPEETE","98714",null,"Montréal la Cluse",1460]
["Alet les Bains",11580,null,"PIRAE","98716",null,"Nantua",1460]
["Alette",62650,null,"PUNAAUIA","98718",null,"Nurieux Volognat",1460]
["Aleu","09320",null,"AFAAHITI","98719",null,"Port",1460]
["Alex",74290,null,"FAAONE","98720",null,"Volognat",1460]
["Alexain",53240,null,"PUEU","98721",null,"Bénonces",1470]
["Aleyrac",26770,null,"TAUTIRA","98722",null,"Briord",1470]
["Alfortville",94140,null,"TEAHUPOO","98723",null,"Montagnieu",1470]
["Algajola",20220,null,"TOAHOTU","98724",null,"Seillonnaz",1470]
["Algans",81470,null,"VAIRAO","98725",null,"Serrières de Briord",1470]
["Algolsheim",68600,null,"TEVA I UTA","98726",null,"Ars sur Formans",1480]
["Algrange",57440,null,"PAPEARI","98727",null,"avigneux",1480]
["Alièze",39270,null,"MOOREA MAIAO","98728",null,"Beauregard",1480]
["Alignan du Vent",34290,null,"PAPETOAI","98729",null,"Chaleins",1480]
["Alincourt","08310",null,"HUAHINE","98731",null,"Fareins",1480]
["Alincthun",62142,null,"MAUPITI","98732",null,"Frans",1480]
["Alise Sainte Reine",21150,null,"TAHAA","98733",null,"Jassans Riottier",1480]
["Alissas","07210",null,"TAPUTAPUATEA","98735",null,"Messimy sur Saône",1480]
["Alix",69380,null,"TUMARAA","98735",null,"Villeneuve",1480]
["Alixan",26300,null,"UTUROA","98735",null,"Ambérieu en Bugey",1500]
["Alizay",27460,null,"HIVA OA","98741",null,"Ambronay",1500]
["Allain",54170,null,"NUKU HIVA","98742",null,"Ambutrix",1500]
["Allaines",80200,null,"TAHUATA","98743",null,"Bettant",1500]
["Allaines Mervilliers",28310,null,"UA HUKA","98744",null,"Château Gaillard",1500]
["Allainville",28500,null,"UA POU","98745",null,"Douvres",1500]
["Allainville aux Bois",78660,null,"RAIVAVAE","98750",null,"Saint Denis en Bugey",1500]
["Allainville en Beauce",45480,null,"RAPA","98751",null,"Saint Maurice de Rémens",1500]
["Allaire",56350,null,"RURUTU","98753",null,"Armix",1510]
["Allamont",54800,null,"TUBUAI","98754",null,"Artemare",1510]
["Allamps",54112,null,"ANAA","98760",null,"Chavornay",1510]
["Allan",26780,null,"ARUTUA","98761",null,"Cheignieu La Balme",1510]
["Allanche",15160,null,"NIUTAHI","98762",null,"La Burbanche",1510]
["Alland'huy et Sausseuil","08130",null,"ARATIKA","98764",null,"Ordonnaz",1510]
["Allarmont",88110,null,"HAO","98767",null,"Prémillieu",1510]
["Allas Bocage",17150,null,"HIKUERU","98768",null,"Pugieu",1510]
["Allas Champagne",17500,null,"MAKEMO","98769",null,"Rossillon",1510]
["Allas les Mines",24220,null,"KATIU","98770",null,"Saint Martin de Bavel",1510]
["Allassac",19240,null,"MANIHI","98771",null,"Talissieu",1510]
["Allauch",13190,null,"NAPUKA","98772",null,"Virieu le Grand",1510]
["Allègre",43270,null,"NUKUTAVAKE","98773",null,"Perrex",1540]
["Allègre",30500,null,"PUKAPUKA","98774",null,"Saint Julien sur Veyle",1540]
["Alleins",13980,null,"RANGIROA","98776",null,"Vonnas",1540]
["Allemagne en Provence","04550",null,"MATAIVA","98777",null,"Collonges",1550]
["Allemanche Launay et Soyer",51260,null,"TIKEHAU","98778",null,"Farges",1550]
["Allemans",24600,null,"REAO","98779",null,"Pougny",1550]
["Allemans du Dropt",47800,null,"PUKARUA","98780",null,"Cormoz",1560]
["Allemant",51120,null,"TAKAROA","98781",null,"Courtes",1560]
["Allemant","02320",null,"TATAKOTO","98783",null,"Curciat Dongalon",1560]
["Allemond",38114,null,"TUREIA","98784",null,"Lescheroux",1560]
["Allenay",80530,null,"MARUTEA SUD","98793",null,"Mantenay Montlin",1560]
["Allenc",48190,null,"MAROTIRI","98794",null,"Saint Jean sur Reyssouze",1560]
["Allenjoie",25490,null,"MARIA","98795",null,"Saint Julien sur Reyssouze",1560]
["Allennes les Marais",59251,null,"ILE DE CLIPPERTON","98799",null,"Saint Nizier le Bouchoux",1560]
["Allenwiller",67310,null,"NOUMEA","98800",null,"Saint Trivier de Courtes",1560]
["Allerey",21230,null,"MONT DORE","98810",null,"Servignat",1560]
["Allerey sur Saône",71350,null,"OUVEA","98814",null,"Vernoux",1560]
["Allériot",71380,null,"HOUAILOU","98816",null,"Vescours",1560]
["Allery",80270,null,"KAALA GOMEN","98817",null,"Asnières sur Saône",1570]
["Allès sur Dordogne",24480,null,"KOUAOUA","98818",null,"Feillens",1570]
["Alleuze",15100,null,"MOINDOU","98819",null,"Manziat",1570]
["Allevard",38580,null,"OUEGOA","98821",null,"Vésines",1570]
["Allèves",74540,null,"POINDIMIE","98822",null,"Granges",1580]
["Allex",26400,null,"PONERIHOUEN","98823",null,"Izernore",1580]
["Alleyrac",43150,null,"POUEBO","98824",null,"Matafelon Granges",1580]
["Alleyras",43580,null,"POUEMBOUT","98825",null,"Napt",1580]
["Alleyrat",23200,null,"POUM","98826",null,"Samognat",1580]
["Alleyrat",19200,null,"POYA","98827",null,"Sonthonnax la Montagne",1580]
["Allez et Cazeneuve",47110,null,"MARE","98828",null,"Chancia",1590]
["Alliancelles",51250,null,"THIO","98829",null,"Dortan",1590]
["Alliat","09400",null,"DUMBEA","98830",null,"Lavancia Épercy",1590]
["Allibaudières",10700,null,"TOUHO","98831",null,"Massieux",1600]
["Allichamps",52130,null,"ILE DES PINS","98832",null,"Misérieux",1600]
["Allier",65360,null,"YATE","98834",null,"Parcieux",1600]
["Allières","09240",null,"TONTOUTA","98840",null,"Reyrieux",1600]
["Alligny Cosne",58200,null,"KOUMAC","98850",null,"Saint Bernard",1600]
["Alligny en Morvan",58230,null,"KONE","98860",null,"Saint Didier de Formans",1600]
["Allineuc",22460,null,"LA FOA","98880",null,"Sainte Euphémie",1600]
["Allinges",74200,null,"SARRAMEA","98880",null,"Toussieux",1600]
["Allogny",18110,null,"PAITA","98890",null,"Trévoux",1600]
["Allondans",25550,null,"MONACO","99000",null,"Crottet",1620]
["Allondaz",73200,null,null,null,null,"Replonges",1620]
["Allondrelle la Malmaison",54260,null,null,null,null,"Saint Laurent sur Saône",1620]
["Allonne",79130,null,null,null,null,"Challex",1630]
["Allonne",60000,null,null,null,null,"Péron",1630]
["Allonnes",72700,null,null,null,null,"Saint Genis Pouilly",1630]
["Allonnes",49650,null,null,null,null,"Saint Jean de Gonville",1630]
["Allonnes",28150,null,null,null,null,"Sergy",1630]
["Allons",47420,null,null,null,null,"Boyeux Saint Jérôme",1640]
["Allons","04170",null,null,null,null,"Jujurieux",1640]
["Allonville",80260,null,null,null,null,"L'Abergement de Varey",1640]
["Allonzier la Caille",74350,null,null,null,null,"Saint Jean le Vieux",1640]
["Allos","04260",null,null,null,null,"Chaveyriat",1660]
["Allouagne",62157,null,null,null,null,"Mézériat",1660]
["Alloué",16490,null,null,null,null,"Vandeins",1660]
["Allouis",18500,null,null,null,null,"Groslée",1680]
["Allouville Bellefosse",76190,null,null,null,null,"Innimond",1680]
["Alluy",58110,null,null,null,null,"Lhuis",1680]
["Alluyes",28800,null,null,null,null,"Lompnas",1680]
["Ally",43380,null,null,null,null,"Marchamp",1680]
["Ally",15700,null,null,null,null,"Beynost",1700]
["Almayrac",81190,null,null,null,null,"Le Mas Rillier",1700]
["Almenêches",61570,null,null,null,null,"Miribel",1700]
["Almont les Junies",12300,null,null,null,null,"Neyron",1700]
["Alos","09200",null,null,null,null,"Saint Maurice de Beynost",1700]
["Alos Sibas Abense",64470,null,null,null,null,"Thoiry",1710]
["Aloxe Corton",21420,null,null,null,null,"Bourg Saint Christophe",1800]
["Alpuech",12210,null,null,null,null,"Charnoz sur Ain",1800]
["Alquines",62850,null,null,null,null,"Faramans",1800]
["Alrance",12430,null,null,null,null,"Joyeux",1800]
["Alsting",57520,null,null,null,null,"Le Montellier",1800]
["Altagène",20112,null,null,null,null,"Loyes",1800]
["Alteckendorf",67270,null,null,null,null,"Marfoz",1800]
["Altenach",68210,null,null,null,null,"Meximieux",1800]
["Altenbach",68760,null,null,null,null,"Mollon",1800]
["Altenheim",67490,null,null,null,null,"Pérouges",1800]
["Altenstadt",67160,null,null,null,null,"Rignieux le Franc",1800]
["Althen des Paluds",84210,null,null,null,null,"Saint Éloi",1800]
["Altiani",20251,null,null,null,null,"Saint Jean de Niost",1800]
["Altier",48800,null,null,null,null,"Saint Maurice de Gourdans",1800]
["Altillac",19120,null,null,null,null,"Villieu Loyes Mollon",1800]
["Altkirch",68130,null,null,null,null,"Groissiat",1810]
["Altorf",67120,null,null,null,null,"Martignat",1810]
["Altrippe",57660,null,null,null,null,"Marboz",1851]
["Altviller",57730,null,null,null,null,"Péronnas",1960]
["Altwiller",67260,null,null,null,null,"Baneins",1990]
["Aluze",71510,null,null,null,null,"Chaneins",1990]
["Alvignac",46500,null,null,null,null,"Relevant",1990]
["Alvimare",76640,null,null,null,null,"Saint Trivier sur Moignans",1990]
["Alzen","09240",null,null,null,null,"Aulnois sous Laon",2000]
["Alzi",20212,null,null,null,null,"Barenton Bugny",2000]
["Alzing",57320,null,null,null,null,"Barenton Cel",2000]
["Alzon",30770,null,null,null,null,"Bourguignon sous Montbavin",2000]
["Alzonne",11170,null,null,null,null,"Braye en Laonnois",2000]
["Amage",70280,null,null,null,null,"Chaillevois",2000]
["Amagne","08300",null,null,null,null,"Chambry",2000]
["Amagney",25220,null,null,null,null,"Chavignon",2000]
["Amailloux",79350,null,null,null,null,"Chéry lès Pouilly",2000]
["Amance",70160,null,null,null,null,"Chevregny",2000]
["Amance",54770,null,null,null,null,"Chivy lès Étouvelles",2000]
["Amance",10140,null,null,null,null,"Clacy et Thierret",2000]
["Amancey",25330,null,null,null,null,"Étouvelles",2000]
["Amancy",74800,null,null,null,null,"Filain",2000]
["Amange",39700,null,null,null,null,"Laniscourt",2000]
["Amanlis",35150,null,null,null,null,"Laon",2000]
["Amanty",55130,null,null,null,null,"Merlieux et Fouquerolles",2000]
["Amanvillers",57111,null,null,null,null,"Molinchart",2000]
["Amanzé",71610,null,null,null,null,"Monampteuil",2000]
["Amareins","01090",null,null,null,null,"Mons en Laonnois",2000]
["Amareins Francheleins Ces","01090",null,null,null,null,"Montbavin",2000]
["Amarens",81170,null,null,null,null,"Pargny Filain",2000]
["Amathay Vésigneux",25330,null,null,null,null,"Royaucourt et Chailvet",2000]
["Amayé sur Orne",14210,null,null,null,null,"Urcel",2000]
["Amayé sur Seulles",14310,null,null,null,null,"Vaucelles et Beffecourt",2000]
["Amazy",58190,null,null,null,null,"Verneuil sur Serre",2000]
["Ambacourt",88500,null,null,null,null,"Essigny le Petit",2100]
["Ambarès et Lagrave",33440,null,null,null,null,"Fayet",2100]
["Ambax",31230,null,null,null,null,"Gricourt",2100]
["Ambazac",87240,null,null,null,null,"Harly",2100]
["Ambel",38970,null,null,null,null,"Lesdins",2100]
["Ambenay",27250,null,null,null,null,"Neuville Saint Amand",2100]
["Ambérac",16140,null,null,null,null,"Omissy",2100]
["Ambérieu en Bugey","01500",null,null,null,null,"orcourt",2100]
["Ambérieux",69480,null,null,null,null,"Remaucourt",2100]
["Ambérieux en Dombes","01330",null,null,null,null,"Rouvroy",2100]
["Ambernac",16490,null,null,null,null,"Saint Quentin",2100]
["Amberre",86110,null,null,null,null,"Aisonville et Bernoville",2110]
["Ambert",63600,null,null,null,null,"Beaurevoir",2110]
["Ambès",33810,null,null,null,null,"Becquigny",2110]
["Ambeyrac",12260,null,null,null,null,"Bohain en Vermandois",2110]
["Ambialet",81430,null,null,null,null,"Brancourt le Grand",2110]
["Ambiegna",20151,null,null,null,null,"Croix Fonsommes",2110]
["Ambierle",42820,null,null,null,null,"Étaves et Bocquiaux",2110]
["Ambiévillers",70210,null,null,null,null,"Fieulaine",2110]
["Ambillou",37340,null,null,null,null,"Fonsommes",2110]
["Ambillou Château",49700,null,null,null,null,"Fontaine Notre Dame",2110]
["Ambilly",74100,null,null,null,null,"Fontaine Uterte",2110]
["Amblaincourt",55250,null,null,null,null,"Grougis",2110]
["Amblainville",60110,null,null,null,null,"La Vallée Mulâtre",2110]
["Amblans et Velotte",70200,null,null,null,null,"Molain",2110]
["Ambleny","02290",null,null,null,null,"Montbrehain",2110]
["Ambléon","01300",null,null,null,null,"Montigny en Arrouaise",2110]
["Ambleteuse",62164,null,null,null,null,"Prémont",2110]
["Ambleville",95710,null,null,null,null,"Ramicourt",2110]
["Ambleville",16300,null,null,null,null,"Ribeauville",2110]
["Amblie",14480,null,null,null,null,"Saint Martin Rivière",2110]
["Amblimont","08210",null,null,null,null,"Seboncourt",2110]
["Ambloy",41310,null,null,null,null,"Serain",2110]
["Ambly Fleury","08130",null,null,null,null,"Vaux Andigny",2110]
["Ambly sur Meuse",55300,null,null,null,null,"Audigny",2120]
["Amboise",37530,null,null,null,null,"Bernot",2120]
["Amboise",37400,null,null,null,null,"Chigny",2120]
["Ambon",56190,null,null,null,null,"Colonfay",2120]
["Ambonil",26800,null,null,null,null,"Crupilly",2120]
["Ambonnay",51150,null,null,null,null,"Flavigny le Grand et Beaurain",2120]
["Ambonville",52110,null,null,null,null,"Grand Verly",2120]
["Ambourville",76480,null,null,null,null,"Guise",2120]
["Ambrault",36120,null,null,null,null,"Hauteville",2120]
["Ambres",81500,null,null,null,null,"Landifay et Bertaignemont",2120]
["Ambricourt",62310,null,null,null,null,"Le Hérie la Viéville",2120]
["Ambrief","02200",null,null,null,null,"Lesquielles Saint Germain",2120]
["Ambrières",51290,null,null,null,null,"Longchamps",2120]
["Ambrières les Vallées",53300,null,null,null,null,"Macquigny",2120]
["Ambrines",62127,null,null,null,null,"Malzy",2120]
["Ambronay","01500",null,null,null,null,"Marly Gomont",2120]
["Ambrugeat",19250,null,null,null,null,"Monceau sur Oise",2120]
["Ambrumesnil",76550,null,null,null,null,"Noyales",2120]
["Ambrus",47160,null,null,null,null,"Proisy",2120]
["Ambutrix","01500",null,null,null,null,"Proix",2120]
["Amécourt",27140,null,null,null,null,"Puisieux et Clanlieu",2120]
["Amel sur l'Étang",55230,null,null,null,null,"Romery",2120]
["Amélécourt",57170,null,null,null,null,"Sains Richaumont",2120]
["Amélie les Bains Palalda",66110,null,null,null,null,"Tupigny",2120]
["Amendeuix Oneix",64120,null,null,null,null,"Vadencourt",2120]
["Amenoncourt",54450,null,null,null,null,"Villers lès Guise",2120]
["Amenucourt",95510,null,null,null,null,"Wiège Faty",2120]
["Ames",62190,null,null,null,null,"Arcy Sainte Restitue",2130]
["Amettes",62260,null,null,null,null,"Beuvardes",2130]
["Ameugny",71460,null,null,null,null,"Branges",2130]
["Ameuvelle",88410,null,null,null,null,"Bruyères sur Fère",2130]
["Amfreville",50480,null,null,null,null,"Cierges",2130]
["Amfréville",14860,null,null,null,null,"Cohan",2130]
["Amfreville la Campagne",27370,null,null,null,null,"Coulonges Cohan",2130]
["Amfreville la Mi Voie",76920,null,null,null,null,"Courmont",2130]
["Amfreville les Champs",76560,null,null,null,null,"Cramaille",2130]
["Amfreville les Champs",27380,null,null,null,null,"Dravegny",2130]
["Amfreville sous les Monts",27590,null,null,null,null,"Fère en Tardenois",2130]
["Amfreville sous les Monts",27380,null,null,null,null,"Fresnes en Tardenois",2130]
["Amfreville sur Iton",27400,null,null,null,null,"Goussancourt",2130]
["Amfroipret",59144,null,null,null,null,"Loupeigne",2130]
["Amiens",80090,null,null,null,null,"Mareuil en Dôle",2130]
["Amiens",80080,null,null,null,null,"Ronchères",2130]
["Amiens",80000,null,null,null,null,"Saponay",2130]
["Amifontaine","02190",null,null,null,null,"Sergy",2130]
["Amigny",50620,null,null,null,null,"Seringes et Nesles",2130]
["Amigny Rouy","02700",null,null,null,null,"Vézilly",2130]
["Amillis",77120,null,null,null,null,"Villeneuve sur Fère",2130]
["Amilly",45200,null,null,null,null,"Villers Agron Aiguizy",2130]
["Amilly",28300,null,null,null,null,"Villers sur Fère",2130]
["Amions",42260,null,null,null,null,"Bancigny",2140]
["Amirat","06910",null,null,null,null,"Braye en Thiérache",2140]
["Ammerschwihr",68770,null,null,null,null,"Burelles",2140]
["Ammerzwiller",68210,null,null,null,null,"Dagny Lambercy",2140]
["Ammeville",14170,null,null,null,null,"Fontaine lès Vervins",2140]
["Amné",72540,null,null,null,null,"Franqueville",2140]
["Amnéville",57360,null,null,null,null,"Gercy",2140]
["Amoncourt",70170,null,null,null,null,"Gronard",2140]
["Amondans",25330,null,null,null,null,"Harcigny",2140]
["Amont et Effreney",70310,null,null,null,null,"Hary",2140]
["Amorots Succos",64120,null,null,null,null,"Haution",2140]
["Amou",40330,null,null,null,null,"Houry",2140]
["Ampilly le Sec",21400,null,null,null,null,"Jeantes",2140]
["Ampilly les Bordes",21450,null,null,null,null,"La Bouteille",2140]
["Amplaing","09400",null,null,null,null,"La Vallée au Blé",2140]
["Amplepuis",69550,null,null,null,null,"Laigny",2140]
["Amplier",62760,null,null,null,null,"Landouzy la Cour",2140]
["Ampoigné",53200,null,null,null,null,"Landouzy la Ville",2140]
["Amponville",77760,null,null,null,null,"Le Sourd",2140]
["Ampriani",20272,null,null,null,null,"Lemé",2140]
["Ampuis",69420,null,null,null,null,"Lugny",2140]
["Ampus",83111,null,null,null,null,"Marfontaine",2140]
["Amuré",79210,null,null,null,null,"Nampcelles la Cour",2140]
["Amy",60310,null,null,null,null,"Plomion",2140]
["Anais",17540,null,null,null,null,"Prisces",2140]
["Anan",31230,null,null,null,null,"Rogny",2140]
["Ance",64570,null,null,null,null,"Rougeries",2140]
["Anceaumeville",76710,null,null,null,null,"Saint Gobert",2140]
["Anceins",61550,null,null,null,null,"Saint Pierre lès Franqueville",2140]
["Ancelle","05260",null,null,null,null,"Thenailles",2140]
["Ancemont",55320,null,null,null,null,"Vervins",2140]
["Ancenis",44150,null,null,null,null,"Voharies",2140]
["Ancerville",57580,null,null,null,null,"Voulpaix",2140]
["Ancerville",55170,null,null,null,null,"La Selve",2150]
["Ancerviller",54450,null,null,null,null,"Lappion",2150]
["Ancey",21410,null,null,null,null,"Nizy le Comte",2150]
["Anchamps","08500",null,null,null,null,"Sissonne",2150]
["Anché",86700,null,null,null,null,"Barbonval",2160]
["Anché",37500,null,null,null,null,"Beaurieux",2160]
["Anchenoncourt et Chazel",70210,null,null,null,null,"Blanzy lès Fismes",2160]
["Ancienville","02600",null,null,null,null,"Bouffignereux",2160]
["Ancier",70100,null,null,null,null,"Bourg et Comin",2160]
["Ancinnes",72610,null,null,null,null,"Chaudardes",2160]
["Ancizan",65440,null,null,null,null,"Concevreux",2160]
["Ancône",26200,null,null,null,null,"Craonne",2160]
["Ancourt",76370,null,null,null,null,"Craonnelle",2160]
["Ancourteville sur Héricourt",76560,null,null,null,null,"Cuiry lès Chaudardes",2160]
["Ancretiéville Saint Victor",76760,null,null,null,null,"Cuissy et Geny",2160]
["Ancretteville sur Mer",76540,null,null,null,null,"Gernicourt",2160]
["Ancteville",50200,null,null,null,null,"Glennes",2160]
["Anctoville",14240,null,null,null,null,"Guyencourt",2160]
["Anctoville sur Boscq",50400,null,null,null,null,"Jumigny",2160]
["Ancy",69490,null,null,null,null,"Longueval Barbonval",2160]
["Ancy le Franc",89160,null,null,null,null,"Maizy",2160]
["Ancy le Libre",89160,null,null,null,null,"Merval",2160]
["Ancy sur Moselle",57130,null,null,null,null,"Meurival",2160]
["Andainville",80140,null,null,null,null,"Moulins",2160]
["Andance","07340",null,null,null,null,"Moussy Verneuil",2160]
["Andancette",26140,null,null,null,null,"Muscourt",2160]
["Andard",49800,null,null,null,null,"Oeuilly",2160]
["Andé",27430,null,null,null,null,"Oulches la Vallée Foulon",2160]
["Andechy",80700,null,null,null,null,"Paissy",2160]
["Andel",22400,null,null,null,null,"Pargnan",2160]
["Andelain","02800",null,null,null,null,"Perles",2160]
["Andelaroche","03120",null,null,null,null,"Pont Arcy",2160]
["Andelarre",70000,null,null,null,null,"Pontavert",2160]
["Andelarrot",70000,null,null,null,null,"Révillon",2160]
["Andelat",15100,null,null,null,null,"Roucy",2160]
["Andelnans",90400,null,null,null,null,"Serval",2160]
["Andelot Blancheville",52700,null,null,null,null,"Soupir",2160]
["Andelot en Montagne",39110,null,null,null,null,"Vassogne",2160]
["Andelot Morval",39320,null,null,null,null,"Vauxcéré",2160]
["Andelu",78770,null,null,null,null,"Vendresse Beaulne",2160]
["Andernay",55800,null,null,null,null,"Viel Arcy",2160]
["Andernos les Bains",33510,null,null,null,null,"Ville aux Bois lès Pontavert",2160]
["Anderny",54560,null,null,null,null,"Villers en Prayères",2160]
["Andert et Condon","01300",null,null,null,null,"Barzy en Thiérache",2170]
["Andevanne","08240",null,null,null,null,"Esquéhéries",2170]
["Andeville",60570,null,null,null,null,"Fontenelle",2170]
["Andigné",49220,null,null,null,null,"Le Nouvion en Thiérache",2170]
["Andillac",81140,null,null,null,null,"Leschelles",2170]
["Andilly",95580,null,null,null,null,"Aguilcourt",2190]
["Andilly",74350,null,null,null,null,"Amifontaine",2190]
["Andilly",54200,null,null,null,null,"Berry au Bac",2190]
["Andilly",17230,null,null,null,null,"Bertricourt",2190]
["Andilly en Bassigny",52360,null,null,null,null,"Condé sur Suippe",2190]
["Andiran",47170,null,null,null,null,"Évergnicourt",2190]
["Andlau",67140,null,null,null,null,"Guignicourt",2190]
["Andoins",64420,null,null,null,null,"Juvincourt et Damary",2190]
["Andolsheim",68280,null,null,null,null,"La Malmaison",2190]
["Andon","06750",null,null,null,null,"Lor",2190]
["Andonville",45480,null,null,null,null,"Menneville",2190]
["Andornay",70200,null,null,null,null,"Neufchâtel sur Aisne",2190]
["Andouillé",53240,null,null,null,null,"Orainville",2190]
["Andouillé Neuville",35250,null,null,null,null,"Pignicourt",2190]
["Andouque",81350,null,null,null,null,"Prouvais",2190]
["Andrein",64390,null,null,null,null,"Proviseux et Plesnoy",2190]
["Andres",62340,null,null,null,null,"Variscourt",2190]
["Andrest",65390,null,null,null,null,"Acy",2200]
["Andrésy",78570,null,null,null,null,"Ambrief",2200]
["Andrezé",49600,null,null,null,null,"Belleu",2200]
["Andrezel",77390,null,null,null,null,"Berzy le Sec",2200]
["Andrézieux Bouthéon",42160,null,null,null,null,"Billy sur Aisne",2200]
["Andryes",89480,null,null,null,null,"Buzancy",2200]
["Anduze",30140,null,null,null,null,"Chacrise",2200]
["Anéran Camors",65510,null,null,null,null,"Chaudun",2200]
["Anères",65150,null,null,null,null,"Courmelles",2200]
["Anet",28260,null,null,null,null,"Cuisy en Almont",2200]
["Anetz",44150,null,null,null,null,"Mercin et Vaux",2200]
["Angaïs",64510,null,null,null,null,"Missy aux Bois",2200]
["Angé",41400,null,null,null,null,"Nampteuil sous Muret",2200]
["Angeac Champagne",16130,null,null,null,null,"Noyant et Aconin",2200]
["Angeac Charente",16120,null,null,null,null,"Pasly",2200]
["Angecourt","08450",null,null,null,null,"Pernant",2200]
["Angeduc",16300,null,null,null,null,"Ploisy",2200]
["Angely",89440,null,null,null,null,"Pommiers",2200]
["Angeot",90150,null,null,null,null,"Rozières sur Crise",2200]
["Angers",49100,null,null,null,null,"Saconin et Breuil",2200]
["Angers",49000,null,null,null,null,"Septmonts",2200]
["Angerville",91670,null,null,null,null,"Soissons",2200]
["Angerville",14430,null,null,null,null,"Vauxbuin",2200]
["Angerville Bailleul",76110,null,null,null,null,"Vauxreziz",2200]
["Angerville la Campagne",27930,null,null,null,null,"Venizel",2200]
["Angerville la Martel",76540,null,null,null,null,"Villeneuve Saint Germain",2200]
["Angerville l'Orcher",76280,null,null,null,null,"Armentières sur Ourcq",2210]
["Angervilliers",91470,null,null,null,null,"Beugneux",2210]
["Angeville",82210,null,null,null,null,"Billy sur Ourcq",2210]
["Angevillers",57440,null,null,null,null,"Brécy",2210]
["Angey",50530,null,null,null,null,"Brény",2210]
["Angicourt",60940,null,null,null,null,"Chouy",2210]
["Angiens",76740,null,null,null,null,"Coincy",2210]
["Angirey",70700,null,null,null,null,"Cugny lès Crouttes",2210]
["Angivillers",60130,null,null,null,null,"Droizy",2210]
["Anglade",33390,null,null,null,null,"Grand Rozoy",2210]
["Anglards de Saint Flour",15100,null,null,null,null,"Grisolles",2210]
["Anglards de Salers",15380,null,null,null,null,"Hartennes et Taux",2210]
["Anglars",46120,null,null,null,null,"La Croix sur Ourcq",2210]
["Anglars Juillac",46140,null,null,null,null,"Latilly",2210]
["Anglars Nozac",46300,null,null,null,null,"Launoy",2210]
["Anglars Saint Félix",12390,null,null,null,null,"Le Plessier Huleu",2210]
["Anglefort","01350",null,null,null,null,"Montgru Saint Hilaire",2210]
["Anglemont",88700,null,null,null,null,"Muret et Crouttes",2210]
["Angles",85750,null,null,null,null,"Nanteuil Notre Dame",2210]
["Angles",66210,null,null,null,null,"Oulchy la Ville",2210]
["Angles",30133,null,null,null,null,"Oulchy le Château",2210]
["Angles","04170",null,null,null,null,"Parcy et Tigny",2210]
["Anglès",81260,null,null,null,null,"Rocourt Saint Martin",2210]
["Angles sur l'Anglin",86260,null,null,null,null,"Rozet Saint Albin",2210]
["Anglesqueville la Bras Long",76740,null,null,null,null,"Saint Rémy Blanzy",2210]
["Anglesqueville l'Esneval",76280,null,null,null,null,"Vichel Nanteuil",2210]
["Anglet",64600,null,null,null,null,"Vierzy",2210]
["Angliers",86330,null,null,null,null,"Villemontoire",2210]
["Angliers",17540,null,null,null,null,"Augy",2220]
["Anglure",51260,null,null,null,null,"Bazoches sur Vesles",2220]
["Anglure sous Dun",71170,null,null,null,null,"Braine",2220]
["Anglus",52220,null,null,null,null,"Brenelle",2220]
["Angluzelles et Courcelles",51230,null,null,null,null,"Bruys",2220]
["Angoisse",24270,null,null,null,null,"Cerseuil",2220]
["Angomont",54540,null,null,null,null,"Chéry Chartreuve",2220]
["Angos",65690,null,null,null,null,"Ciry Salsogne",2220]
["Angoulême",16000,null,null,null,null,"Courcelles sur Vesles",2220]
["Angoulins",17690,null,null,null,null,"Couvrelles",2220]
["Angoumé",40990,null,null,null,null,"Cuiry Housse",2220]
["Angous",64190,null,null,null,null,"Cys la Commune",2220]
["Angoustrine Villeneuve des Escaldes",66760,null,null,null,null,"Dhuizel",2220]
["Angoville",14220,null,null,null,null,"Jouaignes",2220]
["Angoville au Plain",50480,null,null,null,null,"Lesges",2220]
["Angoville en Saire",50330,null,null,null,null,"Lhuys",2220]
["Angoville sur Ay",50430,null,null,null,null,"Limé",2220]
["Angres",62143,null,null,null,null,"Maast et Violaine",2220]
["Angresse",40150,null,null,null,null,"Mont Notre Dame",2220]
["Angrie",49440,null,null,null,null,"Mont Saint Martin",2220]
["Anguerny",14610,null,null,null,null,"Paars",2220]
["Anguilcourt le Sart","02800",null,null,null,null,"Quincy sous le Mont",2220]
["Angviller lès Bisping",57930,null,null,null,null,"Saint Mard",2220]
["Angy",60250,null,null,null,null,"Saint Thibaut",2220]
["Anhaux",64220,null,null,null,null,"Serches",2220]
["Anhiers",59194,null,null,null,null,"Sermoise",2220]
["Aniane",34150,null,null,null,null,"Tannières",2220]
["Aniche",59580,null,null,null,null,"Vasseny",2220]
["Anisy",14610,null,null,null,null,"Vauxtin",2220]
["Anizy le Château","02320",null,null,null,null,"Ville Savoye",2220]
["Anjeux",70800,null,null,null,null,"Fresnoy le Grand",2230]
["Anjou",38150,null,null,null,null,"Alaincourt",2240]
["Anjouin",36210,null,null,null,null,"Berthenicourt",2240]
["Anjoutey",90170,null,null,null,null,"Brissay Choigny",2240]
["Anla",65370,null,null,null,null,"Brissy Hamégicourt",2240]
["Anlezy",58270,null,null,null,null,"Cerizy",2240]
["Anlhiac",24160,null,null,null,null,"Châtillon sur Oise",2240]
["Annay",62880,null,null,null,null,"Itancourt",2240]
["Annay",58450,null,null,null,null,"Mézières sur Oise",2240]
["Annay la Côte",89200,null,null,null,null,"Parpeville",2240]
["Annay sur Serein",89310,null,null,null,null,"Pleine Selve",2240]
["Annebault",14430,null,null,null,null,"Regny",2240]
["Annebecq",14380,null,null,null,null,"Renansart",2240]
["Annecy",74000,null,null,null,null,"Ribemont",2240]
["Annecy le Vieux",74940,null,null,null,null,"Séry lès Mézières",2240]
["Annelles","08310",null,null,null,null,"Sissy",2240]
["Annemasse",74100,null,null,null,null,"Surfontaine",2240]
["Annéot",89200,null,null,null,null,"Villers le Sec",2240]
["Annepont",17350,null,null,null,null,"Autremencourt",2250]
["Annequin",62149,null,null,null,null,"Berlancourt",2250]
["Annesse et Beaulieu",24430,null,null,null,null,"Bosmont sur Serre",2250]
["Annet sur Marne",77410,null,null,null,null,"Chevennes",2250]
["Anneux",59400,null,null,null,null,"Cilly",2250]
["Anneville Ambourville",76480,null,null,null,null,"Erlon",2250]
["Anneville en Saire",50760,null,null,null,null,"Housset",2250]
["Annéville la Prairie",52310,null,null,null,null,"La Neuville Bosmont",2250]
["Anneville sur Mer",50560,null,null,null,null,"La Neuville Housset",2250]
["Anneville sur Scie",76590,null,null,null,null,"Marcy sous Marle",2250]
["Anneyron",26140,null,null,null,null,"Marle",2250]
["Annezay",17380,null,null,null,null,"Montigny le Franc",2250]
["Annezin",62232,null,null,null,null,"Montigny sous Marle",2250]
["Annoeullin",59112,null,null,null,null,"Saint Pierremont",2250]
["Annoire",39120,null,null,null,null,"Tavaux et Pontséricourt",2250]
["Annois","02480",null,null,null,null,"Thiernu",2250]
["Annoisin Chatelans",38460,null,null,null,null,"Toulis et Attencourt",2250]
["Annoix",18340,null,null,null,null,"Voyenne",2250]
["Annonay","07100",null,null,null,null,"Capelle",2260]
["Annonville",52230,null,null,null,null,"Clairfontaine",2260]
["Annot","04240",null,null,null,null,"Englancourt",2260]
["Annouville Vilmesnil",76110,null,null,null,null,"Erloy",2260]
["Annoux",89440,null,null,null,null,"Froidestrées",2260]
["Annoville",50660,null,null,null,null,"Gergny",2260]
["Anor",59186,null,null,null,null,"La Flamengrie",2260]
["Anos",64160,null,null,null,null,"Lerzy",2260]
["Anost",71550,null,null,null,null,"Papleux",2260]
["Anould",88650,null,null,null,null,"Rocquigny",2260]
["Anoux",54150,null,null,null,null,"Saint Algis",2260]
["Anoye",64350,null,null,null,null,"Sommeron",2260]
["Anquetierville",76490,null,null,null,null,"Assis sur Serre",2270]
["Anrosey",52500,null,null,null,null,"Barenton sur Serre",2270]
["Ansac sur Vienne",16500,null,null,null,null,"Bois lès Pargny",2270]
["Ansacq",60250,null,null,null,null,"Chalandry",2270]
["Ansan",32270,null,null,null,null,"Châtillon lès Sons",2270]
["Ansauville",54470,null,null,null,null,"Chevresis Monceau",2270]
["Ansauvillers",60120,null,null,null,null,"Couvron et Aumencourt",2270]
["Anse",69480,null,null,null,null,"Crécy sur Serre",2270]
["Anserville",60540,null,null,null,null,"Dercy",2270]
["Ansignan",66220,null,null,null,null,"Froidmont Cohartille",2270]
["Ansigny",73410,null,null,null,null,"La Ferté Chevresis",2270]
["Ansost",65140,null,null,null,null,"Mesbrecourt Richecourt",2270]
["Ansouis",84240,null,null,null,null,"Monceau le Neuf et Faucouzy",2270]
["Anstaing",59152,null,null,null,null,"Monceau lès Leups",2270]
["Antagnac",47700,null,null,null,null,"Montigny sur Crécy",2270]
["Anterrieux",15110,null,null,null,null,"Mortiers",2270]
["Anteuil",25340,null,null,null,null,"Nouvion et Catillon",2270]
["Antezant la Chapelle",17400,null,null,null,null,"Pargny lès Bois",2270]
["Anthé",47370,null,null,null,null,"Pont à Bucy",2270]
["Anthelupt",54110,null,null,null,null,"Pouilly sur Serre",2270]
["Anthenay",51700,null,null,null,null,"Remies",2270]
["Antheny","08260",null,null,null,null,"Sons et Ronchères",2270]
["Anthéor",83530,null,null,null,null,"Ambleny",2290]
["Antheuil",21360,null,null,null,null,"Bagneux",2290]
["Antheuil Portes",60162,null,null,null,null,"Berny Rivière",2290]
["Anthien",58800,null,null,null,null,"Bieuxy",2290]
["Anthon",38280,null,null,null,null,"Épagny",2290]
["Anthy sur Léman",74200,null,null,null,null,"Fontenoy",2290]
["Antibes","06600",null,null,null,null,"Montigny Lengrain",2290]
["Antibes","06160",null,null,null,null,"Morsain",2290]
["Antichan",65370,null,null,null,null,"Nouvron Vingré",2290]
["Antichan de Frontignes",31510,null,null,null,null,"Osly Courtil",2290]
["Antignac",31110,null,null,null,null,"Ressons le Long",2290]
["Antignac",17240,null,null,null,null,"Saint Bandry",2290]
["Antignac",15240,null,null,null,null,"Saint Christophe à Berry",2290]
["Antigny",86310,null,null,null,null,"Tartiers",2290]
["Antigny",85120,null,null,null,null,"Vassens",2290]
["Antigny la Ville",21230,null,null,null,null,"Vézaponin",2290]
["Antilly",60620,null,null,null,null,"Vic sur Aisne",2290]
["Antilly",57640,null,null,null,null,"Abbécourt",2300]
["Antin",65220,null,null,null,null,"Audignicourt",2300]
["Antisanti",20270,null,null,null,null,"Autreville",2300]
["Antist",65200,null,null,null,null,"Beaumont en Beine",2300]
["Antogny le Tillac",37800,null,null,null,null,"Besmé",2300]
["Antoigné",72380,null,null,null,null,"Béthancourt en Vaux",2300]
["Antoigné",49260,null,null,null,null,"Bichancourt",2300]
["Antoigny",61410,null,null,null,null,"Blérancourt",2300]
["Antoingt",63340,null,null,null,null,"Bourguignon sous Coucy",2300]
["Antonaves","05300",null,null,null,null,"Caillouël Crépigny",2300]
["Antonne et Trigonant",24420,null,null,null,null,"Camelin",2300]
["Antony",92160,null,null,null,null,"Caumont",2300]
["Antorpe",25410,null,null,null,null,"Chauny",2300]
["Antraigues sur Volane","07530",null,null,null,null,"Commenchon",2300]
["Antrain",35560,null,null,null,null,"Guivry",2300]
["Antran",86100,null,null,null,null,"Guny",2300]
["Antras",32360,null,null,null,null,"La Neuville en Beine",2300]
["Antras","09800",null,null,null,null,"Lombray",2300]
["Antrenas",48100,null,null,null,null,"Manicamp",2300]
["Antugnac",11190,null,null,null,null,"Marest Dampcourt",2300]
["Antully",71400,null,null,null,null,"Neuflieux",2300]
["Anvéville",76560,null,null,null,null,"Ognes",2300]
["Anville",16170,null,null,null,null,"Pierremande",2300]
["Anvin",62134,null,null,null,null,"Quierzy",2300]
["Any Martin Rieux","02500",null,null,null,null,"Saint Aubin",2300]
["Anzat le Luguet",63420,null,null,null,null,"Saint Paul aux Bois",2300]
["Anzeling",57320,null,null,null,null,"Selens",2300]
["Anzème",23000,null,null,null,null,"Sinceny",2300]
["Anzex",47700,null,null,null,null,"Trosly Loire",2300]
["Anzin",59410,null,null,null,null,"Ugny le Gay",2300]
["Anzin Saint Aubin",62223,null,null,null,null,"Villequier Aumont",2300]
["Anzy le Duc",71110,null,null,null,null,"Viry Noureuil",2300]
["Aoste",38490,null,null,null,null,"Bézu le Guéry",2310]
["Aougny",51170,null,null,null,null,"Charly",2310]
["Aouste","08290",null,null,null,null,"Coupru",2310]
["Aouste sur Sye",26400,null,null,null,null,"Crouttes sur Marne",2310]
["Aouze",88170,null,null,null,null,"Domptin",2310]
["Apach",57480,null,null,null,null,"Montreuil aux Lions",2310]
["Apchat",63420,null,null,null,null,"Nogent l'Artaud",2310]
["Apchon",15400,null,null,null,null,"Pavant",2310]
["Apinac",42550,null,null,null,null,"Romeny sur Marne",2310]
["Appelle",81700,null,null,null,null,"Saulchery",2310]
["Appenai sous Bellême",61130,null,null,null,null,"Villiers Saint Denis",2310]
["Appenans",25250,null,null,null,null,"Allemant",2320]
["Appenwihr",68280,null,null,null,null,"Anizy le Château",2320]
["Appeville",50500,null,null,null,null,"Brancourt en Laonnois",2320]
["Appeville Annebault",27290,null,null,null,null,"Cessières",2320]
["Appietto",20167,null,null,null,null,"Faucoucourt",2320]
["Appilly",60400,null,null,null,null,"Lizy",2320]
["Appoigny",89380,null,null,null,null,"Pinon",2320]
["Apprieu",38140,null,null,null,null,"Prémontré",2320]
["Appy","09250",null,null,null,null,"Suzy",2320]
["Apremont",85220,null,null,null,null,"Vaudesson",2320]
["Apremont",73190,null,null,null,null,"Vauxaillon",2320]
["Apremont",70100,null,null,null,null,"Wissignicourt",2320]
["Apremont",60300,null,null,null,null,"Artonges",2330]
["Apremont","08250",null,null,null,null,"Baulne en Brie",2330]
["Apremont","01100",null,null,null,null,"Celles lès Condé",2330]
["Apremont la Forêt",55300,null,null,null,null,"Condé en Brie",2330]
["Apremont sur Allier",18150,null,null,null,null,"Connigis",2330]
["Aprey",52250,null,null,null,null,"Courboin",2330]
["Apt",84400,null,null,null,null,"La Chapelle Monthodon",2330]
["Arabaux","09000",null,null,null,null,"Monthurel",2330]
["Arâches",74300,null,null,null,null,"Montigny lès Condé",2330]
["Aragnouet",65170,null,null,null,null,"Montlevon",2330]
["Aragon",11600,null,null,null,null,"Pargny la Dhuys",2330]
["Aramits",64570,null,null,null,null,"Saint Agnan",2330]
["Aramon",30390,null,null,null,null,"Saint Eugène",2330]
["Aranc","01110",null,null,null,null,"Agnicourt et Séchelles",2340]
["Arance",64300,null,null,null,null,"Berlise",2340]
["Arancou",64270,null,null,null,null,"Chaourse",2340]
["Arandas","01230",null,null,null,null,"Clermont les Fermes",2340]
["Arandon",38510,null,null,null,null,"Dizy le Gros",2340]
["Araujuzon",64190,null,null,null,null,"Lislet",2340]
["Araules",43200,null,null,null,null,"Montcornet",2340]
["Araux",64190,null,null,null,null,"Montloué",2340]
["Arbanats",33640,null,null,null,null,"Noircourt",2340]
["Arbas",31160,null,null,null,null,"Renneval",2340]
["Arbecey",70160,null,null,null,null,"Sainte Geneviève",2340]
["Arbellara",20110,null,null,null,null,"Soize",2340]
["Arbent","01100",null,null,null,null,"Thuel",2340]
["Arbéost",65560,null,null,null,null,"Vigneux Hocquet",2340]
["Arberats Sillègue",64120,null,null,null,null,"Ville aux Bois lès Dizy",2340]
["Arbignieu","01300",null,null,null,null,"Vincy Reuil et Magny",2340]
["Arbigny","01190",null,null,null,null,"Boncourt",2350]
["Arbigny sous Varennes",52500,null,null,null,null,"Bucy lès Pierrepont",2350]
["Arbin",73800,null,null,null,null,"Chivres en Laonnois",2350]
["Arbis",33760,null,null,null,null,"Cuirieux",2350]
["Arblade le Bas",32720,null,null,null,null,"Ébouleau",2350]
["Arblade le Haut",32110,null,null,null,null,"Gizy",2350]
["Arbois",39600,null,null,null,null,"Goudelancourt lès Pierrepont",2350]
["Arbon",31160,null,null,null,null,"Grandlup et Fay",2350]
["Arbonne",64210,null,null,null,null,"Liesse Notre Dame",2350]
["Arbonne la Forêt",77630,null,null,null,null,"Mâchecourt",2350]
["Arboras",34150,null,null,null,null,"Marchais",2350]
["Arbori",20160,null,null,null,null,"Missy lès Pierrepont",2350]
["Arbot",52160,null,null,null,null,"Pierrepont",2350]
["Arbouans",25400,null,null,null,null,"Sainte Preuve",2350]
["Arboucave",40320,null,null,null,null,"Vesles et Caumont",2350]
["Arbouet Sussaute",64120,null,null,null,null,"Archon",2360]
["Arbourse",58350,null,null,null,null,"Brunehamel",2360]
["Arboussols",66320,null,null,null,null,"Chéry lès Rozoy",2360]
["Arbrissel",35130,null,null,null,null,"Coingt",2360]
["Arbuissonnas",69460,null,null,null,null,"Cuiry lès Iviers",2360]
["Arbus",64230,null,null,null,null,"Dohis",2360]
["Arbusigny",74930,null,null,null,null,"Dolignon",2360]
["Arc en Barrois",52210,null,null,null,null,"Grandrieux",2360]
["Arc et Senans",25610,null,null,null,null,"Iviers",2360]
["Arc lès Gray",70100,null,null,null,null,"Les Autels",2360]
["Arc sous Cicon",25520,null,null,null,null,"Mont Saint Jean",2360]
["Arc sous Montenot",25270,null,null,null,null,"Morgny en Thiérache",2360]
["Arc sur Tille",21560,null,null,null,null,"Parfondeval",2360]
["Arcachon",33120,null,null,null,null,"Raillimont",2360]
["Arçais",79210,null,null,null,null,"Résigny",2360]
["Arcambal",46090,null,null,null,null,"Rouvroy sur Serre",2360]
["Arcangues",64200,null,null,null,null,"Rozoy sur Serre",2360]
["Arçay",86200,null,null,null,null,"Saint Clément",2360]
["Arçay",18340,null,null,null,null,"Aizy Jouy",2370]
["Arceau",21310,null,null,null,null,"Celles sur Aisne",2370]
["Arcenant",21700,null,null,null,null,"Chassemy",2370]
["Arcens","07310",null,null,null,null,"Chavonne",2370]
["Arces",17120,null,null,null,null,"Condé sur Aisne",2370]
["Arces Dilo",89320,null,null,null,null,"Jouy",2370]
["Arcey",25750,null,null,null,null,"Ostel",2370]
["Arcey",21410,null,null,null,null,"Presles et Boves",2370]
["Archail","04420",null,null,null,null,"Vailly sur Aisne",2370]
["Archamps",74160,null,null,null,null,"Bassoles Aulers",2380]
["Archelange",39290,null,null,null,null,"Coucy la Ville",2380]
["Arches",88380,null,null,null,null,"Coucy le Château Auffrique",2380]
["Arches",15200,null,null,null,null,"Crécy au Mont",2380]
["Archettes",88380,null,null,null,null,"Fresnes",2380]
["Archiac",17520,null,null,null,null,"Jumencourt",2380]
["Archignac",24590,null,null,null,null,"Landricourt",2380]
["Archignat","03380",null,null,null,null,"Leuilly sous Coucy",2380]
["Archigny",86210,null,null,null,null,"Pont Saint Mard",2380]
["Archingeay",17380,null,null,null,null,"Quincy Basse",2380]
["Archon","02360",null,null,null,null,"Verneuil sous Coucy",2380]
["Arcine",74270,null,null,null,null,"Mont d'Origny",2390]
["Arcinges",42460,null,null,null,null,"Neuvillette",2390]
["Arcins",33460,null,null,null,null,"Origny Sainte Benoîte",2390]
["Arcis le Ponsart",51170,null,null,null,null,"Thenelles",2390]
["Arcis sur Aube",10700,null,null,null,null,"Azy sur Marne",2400]
["Arcizac Adour",65360,null,null,null,null,"Belleau",2400]
["Arcizac ez Angles",65100,null,null,null,null,"Bézu Saint Germain",2400]
["Arcizans Avant",65400,null,null,null,null,"Blesmes",2400]
["Arcizans Dessus",65400,null,null,null,null,"Bonneil",2400]
["Arcomie",48200,null,null,null,null,"Bonnesvalyn",2400]
["Arcomps",18200,null,null,null,null,"Bouresches",2400]
["Arcon",42370,null,null,null,null,"Brasles",2400]
["Arçon",25300,null,null,null,null,"Chartèves",2400]
["Arconcey",21320,null,null,null,null,"Château Thierry",2400]
["Arçonnay",72610,null,null,null,null,"Chierry",2400]
["Arconsat",63250,null,null,null,null,"Épaux Bézu",2400]
["Arconville",10200,null,null,null,null,"Épieds",2400]
["Arcueil",94110,null,null,null,null,"Essômes sur Marne",2400]
["Arcy Sainte Restitue","02130",null,null,null,null,"Étampes sur Marne",2400]
["Arcy sur Cure",89270,null,null,null,null,"Étrépilly",2400]
["Ardelles",28170,null,null,null,null,"Gland",2400]
["Ardelu",28700,null,null,null,null,"Lucy le Bocage",2400]
["Ardenais",18170,null,null,null,null,"Mont Saint Père",2400]
["Ardenay sur Mérize",72370,null,null,null,null,"Monthiers",2400]
["Ardengost",65240,null,null,null,null,"Nesles la Montagne",2400]
["Ardentes",36120,null,null,null,null,"Nogentel",2400]
["Ardes",63420,null,null,null,null,"Verdilly",2400]
["Ardeuil et Montfauxelles","08400",null,null,null,null,"Saint Gobain",2410]
["Ardevon",50170,null,null,null,null,"Saint Nicolas aux bois",2410]
["Ardiège",31210,null,null,null,null,"Septvaux",2410]
["Ardilleux",79110,null,null,null,null,"Aubencheul aux Bois",2420]
["Ardillières",17290,null,null,null,null,"Bellenglise",2420]
["Ardin",79160,null,null,null,null,"Bellicourt",2420]
["Ardizas",32430,null,null,null,null,"Bony",2420]
["Ardoix","07290",null,null,null,null,"Estrées",2420]
["Ardon",45160,null,null,null,null,"Gouy",2420]
["Ardon",39300,null,null,null,null,"Hargicourt",2420]
["Ardouval",76680,null,null,null,null,"Joncourt",2420]
["Ardres",62610,null,null,null,null,"Le Catelet",2420]
["Arêches",73270,null,null,null,null,"Le Haucourt",2420]
["Aregno",20220,null,null,null,null,"Lempire",2420]
["areilles",65240,null,null,null,null,"Levergies",2420]
["Areines",41100,null,null,null,null,"Magny la Fosse",2420]
["Aren",64400,null,null,null,null,"Nauroy",2420]
["Arengosse",40110,null,null,null,null,"Sequehart",2420]
["arennes",89144,null,null,null,null,"Vendhuile",2420]
["Arenthon",74800,null,null,null,null,"Villeret",2420]
["Arès",33740,null,null,null,null,"Gauchy",2430]
["Aresches",39110,null,null,null,null,"Benay",2440]
["Aressy",64320,null,null,null,null,"Clastres",2440]
["Arette",64570,null,null,null,null,"Gibercourt",2440]
["Arfeuille Châtain",23700,null,null,null,null,"Hinacourt",2440]
["Arfeuilles","03640",null,null,null,null,"Ly Fontaine",2440]
["Arfons",81110,null,null,null,null,"Montescourt Lizerolles",2440]
["Argagnon",64300,null,null,null,null,"Remigny",2440]
["Arganchy",14400,null,null,null,null,"Bergues sur Sambre",2450]
["Argançon",10140,null,null,null,null,"Boué",2450]
["Argancy",57640,null,null,null,null,"Dorengt",2450]
["Argein","09800",null,null,null,null,"Fesmy le Sart",2450]
["Argelès",65200,null,null,null,null,"La Neuville lès Dorengt",2450]
["Argelès Gazost",65400,null,null,null,null,"Lavaqueresse",2450]
["Argelès sur Mer",66700,null,null,null,null,"Le Sart",2450]
["Argeliers",11120,null,null,null,null,"Oisy",2450]
["Argelliers",34380,null,null,null,null,"La Ferté Milon",2460]
["Argelos",64450,null,null,null,null,"Silly la Poterie",2460]
["Argelos",40700,null,null,null,null,"Troësnes",2460]
["Argelouse",40430,null,null,null,null,"Dammard",2470]
["Argences",14370,null,null,null,null,"Macogny",2470]
["Argens","04170",null,null,null,null,"Marizy Saint Mard",2470]
["Argens Minervois",11200,null,null,null,null,"Marizy Sainte Geneviève",2470]
["Argent sur Sauldre",18410,null,null,null,null,"Monnes",2470]
["Argentan",61200,null,null,null,null,"Neuilly Saint Front",2470]
["Argentat",19400,null,null,null,null,"Passy en Valois",2470]
["Argentenay",89160,null,null,null,null,"Priez",2470]
["Argenteuil",95100,null,null,null,null,"Sommelans",2470]
["Argenteuil sur Armançon",89160,null,null,null,null,"Annois",2480]
["Argentière",74400,null,null,null,null,"Artemps",2480]
["Argentières",77390,null,null,null,null,"Bray Saint Christophe",2480]
["Argentine",73220,null,null,null,null,"Cugny",2480]
["Argentolles",52330,null,null,null,null,"Dury",2480]
["Argenton",47250,null,null,null,null,"Happencourt",2480]
["Argenton Château",79150,null,null,null,null,"Jussy",2480]
["Argenton l'Église",79290,null,null,null,null,"Ollezy",2480]
["Argenton Notre Dame",53290,null,null,null,null,"Pithon",2480]
["Argenton sur Creuse",36200,null,null,null,null,"Sommette Eaucourt",2480]
["Argentré",53210,null,null,null,null,"Attilly",2490]
["Argentré du Plessis",35370,null,null,null,null,"Caulaincourt",2490]
["Argenvières",18140,null,null,null,null,"Jeancourt",2490]
["Argenvilliers",28420,null,null,null,null,"Le Verguier",2490]
["Argers",51800,null,null,null,null,"Maissemy",2490]
["Arget",64410,null,null,null,null,"Pontru",2490]
["Argiésans",90800,null,null,null,null,"Pontruet",2490]
["Argillières",70600,null,null,null,null,"Trefcon",2490]
["Argilliers",30210,null,null,null,null,"Vendelles",2490]
["Argilly",21700,null,null,null,null,"Vermand",2490]
["Argis","01230",null,null,null,null,"Any Martin Rieux",2500]
["Argiusta-Moriccio",20140,null,null,null,null,"Aubenton",2500]
["Argoeuves",80730,null,null,null,null,"Beaumé",2500]
["Argol",29560,null,null,null,null,"Besmont",2500]
["Argonay",74370,null,null,null,null,"Bucilly",2500]
["Argouges",50240,null,null,null,null,"Buire",2500]
["Argoules",80120,null,null,null,null,"Effry",2500]
["Argueil",76780,null,null,null,null,"Éparcy",2500]
["Arguel",80140,null,null,null,null,"Hirson",2500]
["Arguel",25720,null,null,null,null,"La Hérie",2500]
["Arguenos",31160,null,null,null,null,"Leuze",2500]
["Argut Dessous",31440,null,null,null,null,"Logny lès Aubenton",2500]
["Argut Dessus",31440,null,null,null,null,"Luzoir",2500]
["Argy",36500,null,null,null,null,"Martigny",2500]
["Arhansus",64120,null,null,null,null,"Mondrepuis",2500]
["Aries Espénan",65230,null,null,null,null,"Neuve Maison",2500]
["Arifat",81360,null,null,null,null,"Ohis",2500]
["Arignac","09400",null,null,null,null,"Wimy",2500]
["Arinthod",39240,null,null,null,null,"Etreux",2510]
["arisot",82160,null,null,null,null,"Hannapes",2510]
["Arith",73340,null,null,null,null,"Iron",2510]
["Arjuzanx",40110,null,null,null,null,"Vénérolles",2510]
["Arlanc",63220,null,null,null,null,"Flavy le Martel",2520]
["Arlay",39140,null,null,null,null,"Celle sous Montmirail",2540]
["Arlebosc","07410",null,null,null,null,"Fontenelle en Brie",2540]
["Arlempdes",43490,null,null,null,null,"L'Épine aux Bois",2540]
["Arles",13200,null,null,null,null,"Marchais en Brie",2540]
["Arles sur Tech",66150,null,null,null,null,"Montfaucon",2540]
["Arlet",43380,null,null,null,null,"Rozoy Bellevalle",2540]
["Arleuf",58430,null,null,null,null,"Vendières",2540]
["Arleux",59151,null,null,null,null,"Viels Maisons",2540]
["Arleux en Gohelle",62580,null,null,null,null,"Viffort",2540]
["Arlos",31440,null,null,null,null,"Origny en Thiérache",2550]
["armagne",21500,null,null,null,null,"Chézy sur Marne",2570]
["Armaillé",49420,null,null,null,null,"Essises",2570]
["Armancourt",80700,null,null,null,null,"La Chapelle sur Chézy",2570]
["Armancourt",60880,null,null,null,null,"Autreppes",2580]
["Armaucourt",54760,null,null,null,null,"Étréaupont",2580]
["Armbouts Cappel",59380,null,null,null,null,"Sorbais",2580]
["Armeau",89500,null,null,null,null,"Aubigny aux Kaisnes",2590]
["Armendarits",64640,null,null,null,null,"Beauvois en Vermandois",2590]
["Armenteule",65510,null,null,null,null,"Douchy",2590]
["Armentières",59280,null,null,null,null,"Étreillers",2590]
["Armentières en Brie",77440,null,null,null,null,"Fluquières",2590]
["Armentières sur Avre",27820,null,null,null,null,"Foreste",2590]
["Armentières sur Ourcq","02210",null,null,null,null,"Germaine",2590]
["Armentieux",32230,null,null,null,null,"Lanchy",2590]
["Armes",58500,null,null,null,null,"Roupy",2590]
["Armillac",47800,null,null,null,null,"Savy",2590]
["Armissan",11110,null,null,null,null,"Vaux en Vermandois",2590]
["Armix","01510",null,null,null,null,"Villers Saint Christophe",2590]
["Armous et Cau",32230,null,null,null,null,"Ancienville",2600]
["Armoy",74200,null,null,null,null,"Coeuvres et Valsery",2600]
["Arnac",15150,null,null,null,null,"Corcy",2600]
["Arnac la Poste",87160,null,null,null,null,"Coyolles",2600]
["Arnac Pompadour",19230,null,null,null,null,"Cutry",2600]
["Arnac sur Dourdou",12360,null,null,null,null,"Dampleux",2600]
["Arnage",72230,null,null,null,null,"Dommiers",2600]
["Arnancourt",52110,null,null,null,null,"Faverolles",2600]
["Arnas",69400,null,null,null,null,"Fleury",2600]
["Arnaud Guilhem",31360,null,null,null,null,"Haramont",2600]
["Arnave","09400",null,null,null,null,"Largny sur Automne",2600]
["Arnaville",54530,null,null,null,null,"Laversine",2600]
["Arnay le Duc",21230,null,null,null,null,"Longpont",2600]
["Arnay sous Vitteaux",21350,null,null,null,null,"Louâtre",2600]
["Arnayon",26470,null,null,null,null,"Montgobert",2600]
["Arné",65670,null,null,null,null,"Mortefontaine",2600]
["Arnéguy",64220,null,null,null,null,"Noroy sur Ourcq",2600]
["Arnèke",59285,null,null,null,null,"Oigny en Valois",2600]
["Arnicourt","08300",null,null,null,null,"Pisseleux",2600]
["Arnières sur Iton",27180,null,null,null,null,"Puiseux en Retz",2600]
["Arnoncourt sur Apance",52400,null,null,null,null,"Retheuil",2600]
["Arnos",64370,null,null,null,null,"Saint Pierre Aigle",2600]
["Arnouville lès Gonesse",95400,null,null,null,null,"Soucy",2600]
["Arnouville lès Mantes",78790,null,null,null,null,"Taillefontaine",2600]
["Aroffe",88170,null,null,null,null,"Villers Cotterêts",2600]
["Aromas",39240,null,null,null,null,"Villers Hélon",2600]
["Aron",53440,null,null,null,null,"Vivières",2600]
["Aroue Ithorots Olhaïby",64120,null,null,null,null,"Moy de l'Aisne",2610]
["Aroz",70360,null,null,null,null,"Buironfosse",2620]
["Arpaillargues et Aureillac",30700,null,null,null,null,"Mennevret",2630]
["Arpajon",91290,null,null,null,null,"Petit Verly",2630]
["Arpajon sur Cère",15130,null,null,null,null,"Wassigny",2630]
["Arpavon",26110,null,null,null,null,"Saint Simon",2640]
["Arpenans",70200,null,null,null,null,"Tugny et Pont",2640]
["Arpheuilles",36700,null,null,null,null,"Crézancy",2650]
["Arpheuilles",18200,null,null,null,null,"Fossoy",2650]
["Arpheuilles Saint Priest","03420",null,null,null,null,"Mézy Moulins",2650]
["Arphy",30120,null,null,null,null,"Champs",2670]
["Arquenay",53170,null,null,null,null,"Folembray",2670]
["Arques",62510,null,null,null,null,"Castres",2680]
["Arques",12290,null,null,null,null,"Contescourt",2680]
["Arques",11190,null,null,null,null,"Dallon",2680]
["Arques la Bataille",76880,null,null,null,null,"Fontaine lès Clercs",2680]
["Arquettes en Val",11220,null,null,null,null,"Grugies",2680]
["Arquèves",80560,null,null,null,null,"Essigny le Grand",2690]
["Arquian",58310,null,null,null,null,"Urvillers",2690]
["Arrabloy",45500,null,null,null,null,"Amigny Rouy",2700]
["Arracourt",54370,null,null,null,null,"Barisis",2700]
["Arradon",56610,null,null,null,null,"Condren",2700]
["Arraincourt",57380,null,null,null,null,"Deuillet",2700]
["Arrancourt",91690,null,null,null,null,"Fargniers",2700]
["Arrancy","02860",null,null,null,null,"Frières Faillouël",2700]
["Arrancy sur Crusne",55230,null,null,null,null,"Liez",2700]
["Arrans",21500,null,null,null,null,"Mennessis",2700]
["Arras",62000,null,null,null,null,"Quessy",2700]
["Arras en Lavedan",65400,null,null,null,null,"Servais",2700]
["Arras sur Rhône","07370",null,null,null,null,"Tergnier",2700]
["Arrast Larrebieu",64130,null,null,null,null,"Vouël",2700]
["Arraute Charritte",64120,null,null,null,null,"Homblières",2720]
["Arraye et Han",54760,null,null,null,null,"Marcy",2720]
["Arre",30120,null,null,null,null,"Mesnil Saint Laurent",2720]
["Arreau",65240,null,null,null,null,"Francilly Selency",2760]
["Arrelles",10340,null,null,null,null,"Holnon",2760]
["Arrembécourt",10330,null,null,null,null,"Séraucourt le Grand",2790]
["Arrènes",23210,null,null,null,null,"Achery",2800]
["Arrens Marsous",65400,null,null,null,null,"Andelain",2800]
["Arrentès de Corcieux",88430,null,null,null,null,"Anguilcourt le Sart",2800]
["Arrentières",10200,null,null,null,null,"Beautor",2800]
["Arrest",80820,null,null,null,null,"Bertaucourt Épourdon",2800]
["Arreux","08090",null,null,null,null,"Charmes",2800]
["Arriance",57580,null,null,null,null,"Courbes",2800]
["Arricau Bordes",64350,null,null,null,null,"Danizy",2800]
["Arrien",64420,null,null,null,null,"Fressancourt",2800]
["Arrien en Bethmale","09800",null,null,null,null,"La Fère",2800]
["Arrigas",30770,null,null,null,null,"Mayot",2800]
["Arrigny",51290,null,null,null,null,"Nouvion le Comte",2800]
["Arro",20151,null,null,null,null,"Rogécourt",2800]
["Arrodets",65130,null,null,null,null,"Travecy",2800]
["Arrodets ez Angles",65100,null,null,null,null,"Vendeuil",2800]
["Arromanches les Bains",14117,null,null,null,null,"Versigny",2800]
["Arronnes","03250",null,null,null,null,"Brumetz",2810]
["Arronville",95810,null,null,null,null,"Bussiares",2810]
["Arros de Nay",64800,null,null,null,null,"Chézy en Orxois",2810]
["Arros d'Oloron",64660,null,null,null,null,"Courchamps",2810]
["Arrosés",64350,null,null,null,null,"Gandelu",2810]
["Arrou",28290,null,null,null,null,"Hautevesnes",2810]
["Arrouède",32140,null,null,null,null,"Licy Clignon",2810]
["Arrout","09800",null,null,null,null,"Marigny en Orxois",2810]
["Arry",80120,null,null,null,null,"Montigny l'Allier",2810]
["Arry",57680,null,null,null,null,"Saint Gengoulph",2810]
["Ars",23480,null,null,null,null,"Torcy en Valois",2810]
["Ars",16130,null,null,null,null,"Veuilly la Poterie",2810]
["Ars en Ré",17590,null,null,null,null,"Aizelles",2820]
["Ars Laquenexy",57530,null,null,null,null,"Aubigny en Laonnois",2820]
["Ars les Favets",63700,null,null,null,null,"Berrieux",2820]
["Ars sur Formans","01480",null,null,null,null,"Corbeny",2820]
["Ars sur Moselle",57130,null,null,null,null,"Courtrizy et Fussigny",2820]
["Arsac",33460,null,null,null,null,"Goudelancourt lès Berrieux",2820]
["Arsac en Velay",43700,null,null,null,null,"Mauregny en Haye",2820]
["Arsague",40330,null,null,null,null,"Montaigu",2820]
["Arsans",70100,null,null,null,null,"Saint Erme Outre et Ramecourt",2820]
["Arsonval",10200,null,null,null,null,"Saint Thomas",2820]
["Arsure Arsurette",39250,null,null,null,null,"Sainte Croix",2820]
["Arsures",39600,null,null,null,null,"Saint Michel",2830]
["Arsy",60190,null,null,null,null,"Watigny",2830]
["Art sur Meurthe",54510,null,null,null,null,"Athies sous Laon",2840]
["Artagnan",65500,null,null,null,null,"Coucy lès Eppes",2840]
["Artaise le Vivier","08390",null,null,null,null,"Eppes",2840]
["Artaix",71110,null,null,null,null,"Festieux",2840]
["Artalens Souin",65400,null,null,null,null,"Monceau le Waast",2840]
["Artannes sur Indre",37260,null,null,null,null,"Parfondru",2840]
["Artannes sur Thouet",49260,null,null,null,null,"Samoussy",2840]
["Artas",38440,null,null,null,null,"Veslud",2840]
["Artassenx",40090,null,null,null,null,"Barzy sur Marne",2850]
["Artemare","01510",null,null,null,null,"Courtemont Varennes",2850]
["Artemps","02480",null,null,null,null,"Jaulgonne",2850]
["Artenay",45410,null,null,null,null,"Le Charmel",2850]
["Arthaz Pont Notre Dame",74380,null,null,null,null,"Passy sur Marne",2850]
["Arthel",58700,null,null,null,null,"Reuilly Sauvigny",2850]
["Arthémonay",26260,null,null,null,null,"Trélou sur Marne",2850]
["Arthenac",17520,null,null,null,null,"Arrancy",2860]
["Arthenas",39270,null,null,null,null,"Bièvres",2860]
["Arthès",81160,null,null,null,null,"Bouconville Vauclair",2860]
["Arthez d'Armagnac",40190,null,null,null,null,"Bruyères et Montbérault",2860]
["Arthez d'Asson",64800,null,null,null,null,"Cerny en Laonnois",2860]
["Arthez de Béarn",64370,null,null,null,null,"Chamouille",2860]
["Arthezé",72270,null,null,null,null,"Chéret",2860]
["Arthies",95420,null,null,null,null,"Chermizy Ailles",2860]
["Arthon",36330,null,null,null,null,"Colligis Crandelain",2860]
["Arthon en Retz",44320,null,null,null,null,"Laval en Laonnois",2860]
["Arthonnay",89740,null,null,null,null,"Lierval",2860]
["Arthun",42130,null,null,null,null,"Martigny Courpierre",2860]
["Artigat","09130",null,null,null,null,"Montchâlons",2860]
["Artignosc sur Verdon",83630,null,null,null,null,"Monthenault",2860]
["Artigue",31110,null,null,null,null,"Neuville sur Ailette",2860]
["Artigueloutan",64420,null,null,null,null,"Nouvion le Vineux",2860]
["Artiguelouve",64230,null,null,null,null,"Orgeval",2860]
["Artiguemy",65130,null,null,null,null,"Pancy Courtecon",2860]
["Artigues",83560,null,null,null,null,"Ployart et Vaurseine",2860]
["Artigues",65100,null,null,null,null,"Presles et Thierny",2860]
["Artigues",11140,null,null,null,null,"Trucy",2860]
["Artigues","09460",null,null,null,null,"Vorges",2860]
["Artigues près Bordeaux",33370,null,null,null,null,"Besny et Loizy",2870]
["Artins",41800,null,null,null,null,"Brie",2870]
["Artix",64170,null,null,null,null,"Bucy lès Cerny",2870]
["Artix","09120",null,null,null,null,"Cerny lès Bucy",2870]
["Artolsheim",67390,null,null,null,null,"Crépy",2870]
["Artonges","02330",null,null,null,null,"Fourdrain",2870]
["Artonne",63460,null,null,null,null,"Vivaise",2870]
["Artres",59269,null,null,null,null,"Braye",2880]
["Artzenheim",68320,null,null,null,null,"Bucy le Long",2880]
["Arudy",64260,null,null,null,null,"Chavigny",2880]
["Arue",40120,null,null,null,null,"Chivres Val",2880]
["Arvant",43360,null,null,null,null,"Clamecy",2880]
["Arvert",17530,null,null,null,null,"Crouy",2880]
["Arveyres",33500,null,null,null,null,"Cuffies",2880]
["Arvieu",12120,null,null,null,null,"Juvigny",2880]
["Arvieux","05350",null,null,null,null,"Laffaux",2880]
["Arvigna","09100",null,null,null,null,"Leury",2880]
["Arvillard",73110,null,null,null,null,"Margival",2880]
["Arville",77890,null,null,null,null,"Missy sur Aisne",2880]
["Arville",41170,null,null,null,null,"Nanteuil la Fosse",2880]
["Arvillers",80910,null,null,null,null,"Neuville sur Margival",2880]
["Arx",40310,null,null,null,null,"Sancy les Cheminots",2880]
["Arzacq Arraziguet",64410,null,null,null,null,"Terny Sorny",2880]
["Arzal",56190,null,null,null,null,"Vregny",2880]
["Arzano",29300,null,null,null,null,"Vuillery",2880]
["Arzay",38260,null,null,null,null,"Avermes",3000]
["Arzembouy",58700,null,null,null,null,"Bressolles",3000]
["Arzenc d'Apcher",48310,null,null,null,null,"Coulandon",3000]
["Arzenc de Randon",48170,null,null,null,null,"Montilly",3000]
["Arzens",11290,null,null,null,null,"Moulins",3000]
["Arzillières Neuville",51290,null,null,null,null,"Neuvy",3000]
["Arzon",56640,null,null,null,null,"Montluçon",3100]
["Arzviller",57400,null,null,null,null,"Broût Vernet",3110]
["Asasp Arros",64660,null,null,null,null,"Charmeil",3110]
["Ascain",64310,null,null,null,null,"Cognat Lyonne",3110]
["Ascarat",64220,null,null,null,null,"Escurolles",3110]
["Aschbach",67250,null,null,null,null,"Espinasse Vozelle",3110]
["Aschères le Marché",45170,null,null,null,null,"Saint Didier la Forêt",3110]
["Asco",20276,null,null,null,null,"Saint Pont",3110]
["Ascou","09110",null,null,null,null,"Saint Rémy en Rollat",3110]
["Ascoux",45300,null,null,null,null,"Serbannes",3110]
["Ascros","06260",null,null,null,null,"Vendat",3110]
["Asfeld","08190",null,null,null,null,"Andelaroche",3120]
["Aslonnes",86340,null,null,null,null,"Barrais Bussolles",3120]
["Asnan",58420,null,null,null,null,"Billezois",3120]
["Asnans Beauvoisin",39120,null,null,null,null,"Droiturier",3120]
["Asnelles",14960,null,null,null,null,"Isserpent",3120]
["Asnières",27260,null,null,null,null,"Lapalisse",3120]
["Asnières en Bessin",14710,null,null,null,null,"Le Breuil",3120]
["Asnières en Montagne",21500,null,null,null,null,"Périgny",3120]
["Asnières en Poitou",79170,null,null,null,null,"Saint Christophe",3120]
["Asnières la Giraud",17400,null,null,null,null,"Saint Prix",3120]
["Asnières lès Dijon",21380,null,null,null,null,"Servilly",3120]
["Asnières sous Bois",89660,null,null,null,null,"Avrilly",3130]
["Asnières sur Blour",86430,null,null,null,null,"Bert",3130]
["Asnières sur Nouère",16290,null,null,null,null,"Le Bouchaud",3130]
["Asnières sur Oise",95270,null,null,null,null,"Le Donjon",3130]
["Asnières sur Saône","01570",null,null,null,null,"Lenax",3130]
["Asnières sur Seine",92600,null,null,null,null,"Liernolles",3130]
["Asnières sur Vègre",72430,null,null,null,null,"Loddes",3130]
["Asnois",86250,null,null,null,null,"Luneau",3130]
["Asnois",58190,null,null,null,null,"Montaigüet en Forez",3130]
["Aspach",68130,null,null,null,null,"Montcombroux les Mines",3130]
["Aspach",57790,null,null,null,null,"Neuilly en Donjon",3130]
["Aspach le Bas",68700,null,null,null,null,"Pin",3130]
["Aspach le Haut",68700,null,null,null,null,"Saint Didier en Donjon",3130]
["Aspères",30250,null,null,null,null,"Saint Léger sur Vouzance",3130]
["Asperjoc","07600",null,null,null,null,"Barberier",3140]
["Aspet",31160,null,null,null,null,"Chantelle",3140]
["Aspin Aure",65240,null,null,null,null,"Chareil Cintrat",3140]
["Aspin en Lavedan",65100,null,null,null,null,"Charroux",3140]
["Aspiran",34800,null,null,null,null,"Chezelle",3140]
["Aspremont","06790",null,null,null,null,"Deneuille lès Chantelle",3140]
["Aspremont","05140",null,null,null,null,"Étroussat",3140]
["Aspres",61270,null,null,null,null,"Fleuriel",3140]
["Aspres lès Corps","05800",null,null,null,null,"Fourilles",3140]
["Aspres sur Buëch","05140",null,null,null,null,"Monestier",3140]
["Aspret Sarrat",31800,null,null,null,null,"Saint Germain de Salles",3140]
["Asprières",12700,null,null,null,null,"Target",3140]
["Asque",65130,null,null,null,null,"Taxat Senat",3140]
["Asques",82120,null,null,null,null,"Ussel d'Allier",3140]
["Asques",33240,null,null,null,null,"Voussac",3140]
["Asquins",89450,null,null,null,null,"Boucé",3150]
["Assac",81340,null,null,null,null,"Créchy",3150]
["Assainvillers",80500,null,null,null,null,"Langy",3150]
["Assais les Jumeaux",79600,null,null,null,null,"Montaigu le Blin",3150]
["Assas",34820,null,null,null,null,"Montoldre",3150]
["Assat",64510,null,null,null,null,"Rongères",3150]
["Assay",37120,null,null,null,null,"Saint Gérand le Puy",3150]
["Assé le Bérenger",53600,null,null,null,null,"Saint Loup",3150]
["Assé le Boisne",72130,null,null,null,null,"Sanssat",3150]
["Assé le Riboul",72170,null,null,null,null,"Varennes sur Allier",3150]
["Assenay",10320,null,null,null,null,"Bourbon l'Archambault",3160]
["Assencières",10220,null,null,null,null,"Couzon",3160]
["Assenoncourt",57810,null,null,null,null,"Franchesse",3160]
["Assérac",44410,null,null,null,null,"Saint Aubin le Monial",3160]
["Assevent",59600,null,null,null,null,"Saint Léopardin d'Augy",3160]
["Assevillers",80200,null,null,null,null,"Saint Plaisir",3160]
["Assier",46320,null,null,null,null,"Ygrande",3160]
["Assieu",38150,null,null,null,null,"Bézenet",3170]
["Assignan",34360,null,null,null,null,"Bizeneuille",3170]
["Assigny",76630,null,null,null,null,"Chamblet",3170]
["Assigny",18260,null,null,null,null,"Deneuille les Mines",3170]
["Assis sur Serre","02270",null,null,null,null,"Doyet",3170]
["Asson",64800,null,null,null,null,"Montvicq",3170]
["Asswiller",67320,null,null,null,null,"Saint Angel",3170]
["Astaffort",47220,null,null,null,null,"Audes",3190]
["Astaillac",19120,null,null,null,null,"Estivareilles",3190]
["Asté",65200,null,null,null,null,"Givarlais",3190]
["Aste Béon",64260,null,null,null,null,"Hérisson",3190]
["Astet","07330",null,null,null,null,"Louroux Hodement",3190]
["Astillé",53230,null,null,null,null,"Maillet",3190]
["Astis",64450,null,null,null,null,"Nassigny",3190]
["Astoin","04250",null,null,null,null,"Reugny",3190]
["Aston","09310",null,null,null,null,"Saint Caprais",3190]
["Astugue",65200,null,null,null,null,"Vallon en Sully",3190]
["Athée",53400,null,null,null,null,"Vaux",3190]
["Athée sur Cher",37270,null,null,null,null,"Venas",3190]
["Athesans Etroitefontaine",70110,null,null,null,null,"Verneix",3190]
["Athie",89440,null,null,null,null,"Abrest",3200]
["Athie",21500,null,null,null,null,"Vernet",3200]
["Athienville",54370,null,null,null,null,"Vichy",3200]
["Athies",80200,null,null,null,null,"Agonges",3210]
["Athies",62223,null,null,null,null,"Autry Issards",3210]
["Athies sous Laon","02840",null,null,null,null,"Besson",3210]
["Athis",51150,null,null,null,null,"Bresnay",3210]
["Athis de l'Orne",61430,null,null,null,null,"Châtillon",3210]
["Athis Mons",91200,null,null,null,null,"Chemilly",3210]
["Athos Aspis",64390,null,null,null,null,"Gipcy",3210]
["Athose",25580,null,null,null,null,"Marigny",3210]
["Attainville",95570,null,null,null,null,"Meillers",3210]
["Attancourt",52130,null,null,null,null,"Noyant d'Allier",3210]
["Attenschwiller",68220,null,null,null,null,"Saint Menoux",3210]
["Attiches",59551,null,null,null,null,"Souvigny",3210]
["Attichy",60350,null,null,null,null,"Châtelperron",3220]
["Attignat","01340",null,null,null,null,"Chavroches",3220]
["Attignat Oncin",73610,null,null,null,null,"Cindré",3220]
["Attignéville",88300,null,null,null,null,"Jaligny sur Besbre",3220]
["Attigny",88260,null,null,null,null,"Saint Léon",3220]
["Attigny","08130",null,null,null,null,"Saint Voir",3220]
["Attilloncourt",57170,null,null,null,null,"Sorbier",3220]
["Attilly","02490",null,null,null,null,"Thionne",3220]
["Attin",62170,null,null,null,null,"Tréteau",3220]
["Atton",54700,null,null,null,null,"Trézelles",3220]
["Attray",45170,null,null,null,null,"Varennes sur Tèche",3220]
["Attricourt",70100,null,null,null,null,"Vaumas",3220]
["Atur",24750,null,null,null,null,"Beaulon",3230]
["Aubagnan",40700,null,null,null,null,"Chevagnes",3230]
["Aubagne",13400,null,null,null,null,"Chézy",3230]
["Aubaine",21360,null,null,null,null,"Gannay sur Loire",3230]
["Aubais",30250,null,null,null,null,"Garnat sur Engièvre",3230]
["Aubarède",65350,null,null,null,null,"La Chapelle aux Chasses",3230]
["Aubas",24290,null,null,null,null,"Lusigny",3230]
["Aubazat",43380,null,null,null,null,"Paray le Frésil",3230]
["Aubazines",19190,null,null,null,null,"Saint Martin des Lais",3230]
["Aube",61270,null,null,null,null,"Thiel sur Acolin",3230]
["Aube",57580,null,null,null,null,"Cressanges",3240]
["Aubéguimont",76390,null,null,null,null,"Deux Chaises",3240]
["Aubenas","07200",null,null,null,null,"Le Montet",3240]
["Aubenas les Alpes","04110",null,null,null,null,"Le Theil",3240]
["Aubenasson",26340,null,null,null,null,"Rocles",3240]
["Aubencheul au Bac",59265,null,null,null,null,"Saint Sornin",3240]
["Aubencheul aux Bois","02420",null,null,null,null,"Tréban",3240]
["Aubenton","02500",null,null,null,null,"Tronget",3240]
["Aubepierre Ozouer le Repos",77720,null,null,null,null,"Arronnes",3250]
["Aubepierre sur Aube",52210,null,null,null,null,"Chabanne",3250]
["Auberchicourt",59165,null,null,null,null,"Châtel Montagne",3250]
["Aubercourt",80110,null,null,null,null,"Ferrières sur Sichon",3250]
["Aubergenville",78410,null,null,null,null,"La Guillermie",3250]
["Auberive",52160,null,null,null,null,"Laprugne",3250]
["Aubérive",51600,null,null,null,null,"Lavoine",3250]
["Auberives en Royans",38680,null,null,null,null,"Le Mayet de Montagne",3250]
["Aubérives sur Varèze",38550,null,null,null,null,"Nizerolles",3250]
["Aubermesnil aux Erables",76340,null,null,null,null,"Saint Clément",3250]
["Aubermesnil Beaumais",76550,null,null,null,null,"Saint Nicolas des Biefs",3250]
["Aubers",59249,null,null,null,null,"Billy",3260]
["Aubertans",70190,null,null,null,null,"Magnet",3260]
["Aubertin",64290,null,null,null,null,"Marcenat",3260]
["Auberville",14640,null,null,null,null,"Saint Félix",3260]
["Auberville la Campagne",76170,null,null,null,null,"Saint Germain des Fossés",3260]
["Auberville la Manuel",76450,null,null,null,null,"Seuillet",3260]
["Auberville la Renault",76110,null,null,null,null,"Busset",3270]
["Aubervilliers",93300,null,null,null,null,"Hauterive",3270]
["Aubeterre",10150,null,null,null,null,"Mariol",3270]
["Aubeterre sur Dronne",16390,null,null,null,null,"Saint Yorre",3270]
["Aubeville",16250,null,null,null,null,"Diou",3290]
["Aubevoye",27940,null,null,null,null,"Dompierre sur Besbre",3290]
["Aubiac",47310,null,null,null,null,"Saint Pourçain sur Besbre",3290]
["Aubiac",33430,null,null,null,null,"Bost",3300]
["Aubiat",63260,null,null,null,null,"Creuzier le Neuf",3300]
["Aubie et Espessas",33240,null,null,null,null,"Creuzier le Vieux",3300]
["Aubière",63170,null,null,null,null,"Cusset",3300]
["Aubiet",32270,null,null,null,null,"La Chapelle",3300]
["Aubignan",84810,null,null,null,null,"Molles",3300]
["Aubignas","07400",null,null,null,null,"Saint Étienne de Vicq",3300]
["Aubigné",79110,null,null,null,null,"Durdat Larequille",3310]
["Aubigné",35250,null,null,null,null,"Lavault Sainte Anne",3310]
["Aubigné Racan",72800,null,null,null,null,"Néris les Bains",3310]
["Aubigné sur Layon",49540,null,null,null,null,"Saint Genest",3310]
["Aubigney",70140,null,null,null,null,"Villebret",3310]
["Aubignosc","04200",null,null,null,null,"Château sur Allier",3320]
["Aubigny",85430,null,null,null,null,"Couleuvre",3320]
["Aubigny",80800,null,null,null,null,"Le Veurdre",3320]
["Aubigny",79390,null,null,null,null,"Limoise",3320]
["Aubigny",14700,null,null,null,null,"Lurcy Lévis",3320]
["Aubigny","03460",null,null,null,null,"Neure",3320]
["Aubigny au Bac",59265,null,null,null,null,"Pouzy Mésangy",3320]
["Aubigny aux Kaisnes","02590",null,null,null,null,"Bellenaves",3330]
["Aubigny en Artois",62690,null,null,null,null,"Chirat l'Église",3330]
["Aubigny en Laonnois","02820",null,null,null,null,"Coutansouze",3330]
["Aubigny en Plaine",21170,null,null,null,null,"Échassières",3330]
["Aubigny la Ronce",21340,null,null,null,null,"Louroux de Bouble",3330]
["Aubigny les Pothées","08150",null,null,null,null,"Naves",3330]
["Aubigny lès Sombernon",21540,null,null,null,null,"Valignat",3330]
["Aubigny sur Nère",18700,null,null,null,null,"Bessay sur Allier",3340]
["Aubilly",51170,null,null,null,null,"Chapeau",3340]
["Aubin",64230,null,null,null,null,"Gouise",3340]
["Aubin",12110,null,null,null,null,"La Ferté Hauterive",3340]
["Aubin Saint Vaast",62140,null,null,null,null,"Mercy",3340]
["Aubinges",18220,null,null,null,null,"Montbeugny",3340]
["Auboncourt Vauzelles","08270",null,null,null,null,"Neuilly le Réal",3340]
["Aubonne",25520,null,null,null,null,"Saint Gérand de Vaux",3340]
["Aubord",30620,null,null,null,null,"Cérilly",3350]
["Auboué",54580,null,null,null,null,"Le Brethon",3350]
["Aubous",64330,null,null,null,null,"Le Vilhain",3350]
["Aubrac",12470,null,null,null,null,"Louroux Bourbonnais",3350]
["Aubres",26110,null,null,null,null,"Theneuille",3350]
["Aubréville",55120,null,null,null,null,"Ainay le Château",3360]
["Aubrives","08320",null,null,null,null,"Braize",3360]
["Aubrometz",62390,null,null,null,null,"Isle et Bardais",3360]
["Aubry du Hainaut",59494,null,null,null,null,"Lételon",3360]
["Aubry en Exmes",61160,null,null,null,null,"Meaulne",3360]
["Aubry le Panthou",61120,null,null,null,null,"Saint Bonnet Tronçais",3360]
["Aubure",68150,null,null,null,null,"Urçay",3360]
["Aubussargues",30190,null,null,null,null,"Valigny",3360]
["Aubusson",61100,null,null,null,null,"Vitray",3360]
["Aubusson",23200,null,null,null,null,"Chambérat",3370]
["Aubusson d'Auvergne",63120,null,null,null,null,"Chazemais",3370]
["Aubvillers",80110,null,null,null,null,"Courçais",3370]
["Auby",59950,null,null,null,null,"Mesples",3370]
["Aucaleuc",22100,null,null,null,null,"Saint Désiré",3370]
["Aucamville",82600,null,null,null,null,"Saint Éloy d'Allier",3370]
["Aucamville",31140,null,null,null,null,"Saint Palais",3370]
["Aucazein","09800",null,null,null,null,"Saint Sauvier",3370]
["Aucelon",26340,null,null,null,null,"Viplaix",3370]
["Aucey la Plaine",50170,null,null,null,null,"Archignat",3380]
["Auch",32810,null,null,null,null,"Huriel",3380]
["Auch",32000,null,null,null,null,"La Chapelaude",3380]
["Auchel",62260,null,null,null,null,"Lamaids",3380]
["Auchonvillers",80560,null,null,null,null,"Quinssaines",3380]
["Auchy au Bois",62190,null,null,null,null,"Saint Martinien",3380]
["Auchy la Montagne",60360,null,null,null,null,"Treignat",3380]
["Auchy lès Hesdin",62770,null,null,null,null,"Beaune d'Allier",3390]
["Auchy les Mines",62138,null,null,null,null,"Blomard",3390]
["Auchy lès Orchies",59310,null,null,null,null,"Chappes",3390]
["Aucun",65400,null,null,null,null,"Montmarault",3390]
["Audaux",64190,null,null,null,null,"Murat",3390]
["Audéjos",64170,null,null,null,null,"Saint Bonnet de Four",3390]
["Audelange",39700,null,null,null,null,"Saint Marcel en Murat",3390]
["Audeloncourt",52240,null,null,null,null,"Saint Priest en Murat",3390]
["Audembert",62250,null,null,null,null,"Sazeret",3390]
["Audencourt",59540,null,null,null,null,"Vernusse",3390]
["Audenge",33980,null,null,null,null,"Gennetines",3400]
["Auderville",50440,null,null,null,null,"Saint Ennemond",3400]
["Audes","03190",null,null,null,null,"Toulon sur Allier",3400]
["Audeux",25170,null,null,null,null,"Yzeure",3400]
["Audeville",45300,null,null,null,null,"Domérat",3410]
["Audierne",29770,null,null,null,null,"Lignerolles",3410]
["Audignicourt","02300",null,null,null,null,"Prémilhat",3410]
["Audignies",59570,null,null,null,null,"Saint Victor",3410]
["Audignon",40500,null,null,null,null,"Teillet Argenty",3410]
["Audigny","02120",null,null,null,null,"Arpheuilles Saint Priest",3420]
["Audincourt",25400,null,null,null,null,"La Petite Marche",3420]
["Audincthun",62560,null,null,null,null,"Marcillat en Combraille",3420]
["Audinghen",62179,null,null,null,null,"Mazirat",3420]
["Audon",40400,null,null,null,null,"Ronnet",3420]
["Audouville la Hubert",50480,null,null,null,null,"Saint Fargeol",3420]
["Audrehem",62890,null,null,null,null,"Saint Marcel en Marcillat",3420]
["Audressein","09800",null,null,null,null,"Sainte Thérence",3420]
["Audresselles",62164,null,null,null,null,"Terjat",3420]
["Audrieu",14250,null,null,null,null,"Cosne d'Allier",3430]
["Audrix",24260,null,null,null,null,"Sauvagny",3430]
["Audruicq",62370,null,null,null,null,"Tortezais",3430]
["Audun le Roman",54560,null,null,null,null,"Vieure",3430]
["Audun le Tiche",57390,null,null,null,null,"Villefranche d'Allier",3430]
["Auenheim",67480,null,null,null,null,"Buxières les Mines",3440]
["Auffargis",78610,null,null,null,null,"Chavenon",3440]
["Auffay",76720,null,null,null,null,"Saint Hilaire",3440]
["Aufferville",77570,null,null,null,null,"Chouvigny",3450]
["Auffreville Brasseuil",78930,null,null,null,null,"Ébreuil",3450]
["Auflance","08370",null,null,null,null,"Lalizolle",3450]
["Auga",64450,null,null,null,null,"Nades",3450]
["Augan",56800,null,null,null,null,"Sussat",3450]
["Auge",23170,null,null,null,null,"Veauce",3450]
["Auge",16170,null,null,null,null,"Vicq",3450]
["Auge","08380",null,null,null,null,"Aubigny",3460]
["Augé",79400,null,null,null,null,"Aurouer",3460]
["Auge Saint Médard",16170,null,null,null,null,"Bagneux",3460]
["Augea",39190,null,null,null,null,"Trévol",3460]
["Auger Saint Vincent",60800,null,null,null,null,"Villeneuve sur Allier",3460]
["Augerans",39380,null,null,null,null,"Coulanges",3470]
["Augères",23210,null,null,null,null,"Monétay sur Loire",3470]
["Augerolles",63930,null,null,null,null,"Pierrefitte sur Loire",3470]
["Augers en Brie",77560,null,null,null,null,"Saligny sur Roudon",3470]
["Augerville la Rivière",45330,null,null,null,null,"Diou",3490]
["Augès","04310",null,null,null,null,"Bayet",3500]
["Augeville",52270,null,null,null,null,"Bransat",3500]
["Augicourt",70500,null,null,null,null,"Cesset",3500]
["Augignac",24300,null,null,null,null,"Châtel de Neuvre",3500]
["Augirein","09800",null,null,null,null,"Contigny",3500]
["Augisey",39270,null,null,null,null,"Lafeline",3500]
["Augnat",63340,null,null,null,null,"Loriges",3500]
["Augnax",32120,null,null,null,null,"Louchy Montfand",3500]
["Augne",87120,null,null,null,null,"Meillard",3500]
["Augny",57176,null,null,null,null,"Monétay sur Allier",3500]
["Auguaise",61270,null,null,null,null,"Montord",3500]
["Augy",89290,null,null,null,null,"Paray sous Briailles",3500]
["Augy","02220",null,null,null,null,"Saint Pourçain sur Sioule",3500]
["Augy sur Aubois",18600,null,null,null,null,"Saulcet",3500]
["Aujac",30450,null,null,null,null,"Verneuil en Bourbonnais",3500]
["Aujac",17770,null,null,null,null,"Chassenard",3510]
["Aujan Mournède",32300,null,null,null,null,"Molinet",3510]
["Aujargues",30250,null,null,null,null,"Celle",3600]
["Aujeurres",52190,null,null,null,null,"Colombier",3600]
["Aujols",46090,null,null,null,null,"Commentry",3600]
["Aulan",26570,null,null,null,null,"Hyds",3600]
["Aulas",30120,null,null,null,null,"Louroux de Beaune",3600]
["Aulhat Saint Privat",63500,null,null,null,null,"Malicorne",3600]
["Aullène",20116,null,null,null,null,"Désertines",3630]
["Aulnat",63510,null,null,null,null,"Arfeuilles",3640]
["Aulnay",86330,null,null,null,null,"Châtelus",3640]
["Aulnay",17470,null,null,null,null,"Bellerive sur Allier",3700]
["Aulnay",10240,null,null,null,null,"Brugheas",3700]
["Aulnay aux Planches",51130,null,null,null,null,"Bègues",3800]
["Aulnay la Rivière",45390,null,null,null,null,"Biozat",3800]
["Aulnay l'Aître",51240,null,null,null,null,"Charmes",3800]
["Aulnay sous Bois",93600,null,null,null,null,"Gannat",3800]
["Aulnay sur Iton",27180,null,null,null,null,"Jenzat",3800]
["Aulnay sur Marne",51150,null,null,null,null,"Le Mayet d'École",3800]
["Aulnay sur Mauldre",78126,null,null,null,null,"Mazerier",3800]
["Aulnizeux",51130,null,null,null,null,"Monteignet sur l'Andelot",3800]
["Aulnois",88300,null,null,null,null,"Poëzat",3800]
["Aulnois en Perthois",55170,null,null,null,null,"Saint Bonnet de Rochefort",3800]
["Aulnois sous Laon","02000",null,null,null,null,"Saint Priest d'Andelot",3800]
["Aulnois sous Vertuzey",55200,null,null,null,null,"Saulzet",3800]
["Aulnois sur Seille",57590,null,null,null,null,"Ainac",4000]
["Aulnoy",77120,null,null,null,null,"Digne les Bains",4000]
["Aulnoy lez Valenciennes",59300,null,null,null,null,"Entrages",4000]
["Aulnoy sur Aube",52160,null,null,null,null,"Esclangon",4000]
["Aulnoye Aymeries",59620,null,null,null,null,"Lambert",4000]
["Aulon",65440,null,null,null,null,"Les Dourbes",4000]
["Aulon",31420,null,null,null,null,"Robine sur Galabre",4000]
["Aulon",23210,null,null,null,null,"Tanaron",4000]
["Aulos","09310",null,null,null,null,"Manosque",4100]
["Ault",80460,null,null,null,null,"Aubenas les Alpes",4110]
["Aulus les Bains","09140",null,null,null,null,"Montfuron",4110]
["Aulx lès Cromary",70190,null,null,null,null,"Montjustin",4110]
["Aumagne",17770,null,null,null,null,"Oppedette",4110]
["Aumale",76390,null,null,null,null,"Reillanne",4110]
["Aumâtre",80140,null,null,null,null,"Sainte Croix à Lauze",4110]
["Aumelas",34230,null,null,null,null,"Vachères",4110]
["Auménancourt",51110,null,null,null,null,"Villemus",4110]
["Aumerval",62550,null,null,null,null,"Castellane",4120]
["Aumes",34530,null,null,null,null,"Chasteuil",4120]
["Aumessas",30770,null,null,null,null,"Châteauneuf les Moustiers",4120]
["Aumetz",57710,null,null,null,null,"Demandolx",4120]
["Aumeville Lestre",50630,null,null,null,null,"Eoulx",4120]
["Aumont",80640,null,null,null,null,"La Garde",4120]
["Aumont",39800,null,null,null,null,"Palud sur Verdon",4120]
["Aumont Aubrac",48130,null,null,null,null,"Peyroules",4120]
["Aumont en Halatte",60300,null,null,null,null,"Rougon",4120]
["Aumontzey",88640,null,null,null,null,"Soleilhas",4120]
["Aumur",39410,null,null,null,null,"Taloire",4120]
["Aunac",16460,null,null,null,null,"Taulanne",4120]
["Aunat",11140,null,null,null,null,"Volx",4130]
["Aunay en Bazois",58110,null,null,null,null,"Auzet",4140]
["Aunay les Bois",61500,null,null,null,null,"Barles",4140]
["Aunay sous Auneau",28700,null,null,null,null,"Le Vernet",4140]
["Aunay sous Crécy",28500,null,null,null,null,"Montclar",4140]
["Aunay sur Odon",14260,null,null,null,null,"Seyne",4140]
["Auneau",28700,null,null,null,null,"Verdaches",4140]
["Auneuil",60390,null,null,null,null,"Banon",4150]
["Aunou le Faucon",61200,null,null,null,null,"Carniol",4150]
["Aunou sur Orne",61500,null,null,null,null,"La Rochegiron",4150]
["Auppegard",76730,null,null,null,null,"L'Hospitalet",4150]
["Aups",83630,null,null,null,null,"Montsalier",4150]
["Auquainville",14140,null,null,null,null,"Redortiers",4150]
["Auquemesnil",76630,null,null,null,null,"Revest des Brousses",4150]
["Auradé",32600,null,null,null,null,"Revest du Bion",4150]
["Auradou",47140,null,null,null,null,"Saumane",4150]
["Auragne",31190,null,null,null,null,"Simiane la Rotonde",4150]
["Auray",56400,null,null,null,null,"Château Arnoux Saint Auban",4160]
["Aure","08400",null,null,null,null,"L'Escale",4160]
["Aurec sur Loire",43110,null,null,null,null,"Allons",4170]
["Aureil",87220,null,null,null,null,"Angles",4170]
["Aureilhan",65800,null,null,null,null,"Argens",4170]
["Aureilhan",40200,null,null,null,null,"Lambruisse",4170]
["Aureille",13930,null,null,null,null,"Moriez",4170]
["Aurel",84390,null,null,null,null,"Mure Argens",4170]
["Aurel",26340,null,null,null,null,"Saint André les Alpes",4170]
["Aurelle Verlac",12130,null,null,null,null,"Saint Julien du Verdon",4170]
["Aurensan",65390,null,null,null,null,"Thorame Basse",4170]
["Aurensan",32400,null,null,null,null,"Thorame Haute",4170]
["Aureville",31320,null,null,null,null,"Vergons",4170]
["Auriac",64450,null,null,null,null,"Villeneuve",4180]
["Auriac",19220,null,null,null,null,"Les Mées",4190]
["Auriac",11330,null,null,null,null,"Aubignosc",4200]
["Auriac de Bourzac",24320,null,null,null,null,"Authon",4200]
["Auriac du Périgord",24290,null,null,null,null,"Bevons",4200]
["Auriac Lagast",12120,null,null,null,null,"Châteauneuf Miravail",4200]
["Auriac l'Église",15500,null,null,null,null,"Châteauneuf Val Saint Donat",4200]
["Auriac sur Dropt",47120,null,null,null,null,"Curel",4200]
["Auriac sur Vendinelle",31460,null,null,null,null,"Entrepierres",4200]
["Auriat",23400,null,null,null,null,"Les Omergues",4200]
["Auribail",31190,null,null,null,null,"Mison",4200]
["Auribeau",84400,null,null,null,null,"Noyers sur Jabron",4200]
["Auribeau","04380",null,null,null,null,"Peipin",4200]
["Auribeau sur Siagne","06810",null,null,null,null,"Saint Geniez",4200]
["Aurice",40500,null,null,null,null,"Saint Symphorien",4200]
["Auriébat",65700,null,null,null,null,"Saint Vincent sur Jabron",4200]
["Aurières",63210,null,null,null,null,"Sigoyer",4200]
["Aurignac",31420,null,null,null,null,"Sisteron",4200]
["Aurillac",15000,null,null,null,null,"Thèze",4200]
["Aurimont",32450,null,null,null,null,"Valbelle",4200]
["Aurin",31570,null,null,null,null,"Valernes",4200]
["Auriol",13390,null,null,null,null,"Vaumeilh",4200]
["Auriolles",33790,null,null,null,null,"Vilhosc",4200]
["Auriolles","07120",null,null,null,null,"Brunet",4210]
["Aurions Idernes",64350,null,null,null,null,"Valensole",4210]
["Auris",38142,null,null,null,null,"Corbières",4220]
["Auron","06660",null,null,null,null,"Sainte Tulle",4220]
["Aurons",13121,null,null,null,null,"Cruis",4230]
["Auros",33124,null,null,null,null,"Fontienne",4230]
["Aurouer","03460",null,null,null,null,"Lardiers",4230]
["Auroux",48600,null,null,null,null,"Mallefougasse Augès",4230]
["Aussac",81600,null,null,null,null,"Montlaux",4230]
["Ausseing",31260,null,null,null,null,"Ongles",4230]
["Aussevielle",64230,null,null,null,null,"Revest Saint Martin",4230]
["Aussillon",81200,null,null,null,null,"Saint Étienne les Orgues",4230]
["Aussois",73500,null,null,null,null,"Annot",4240]
["Ausson",31210,null,null,null,null,"Braux",4240]
["Aussonce","08310",null,null,null,null,"Le Fugeret",4240]
["Aussonne",31840,null,null,null,null,"Méailles",4240]
["Aussos",32140,null,null,null,null,"Saint Benoît",4240]
["Aussurucq",64130,null,null,null,null,"Ubraye",4240]
["Autainville",41240,null,null,null,null,"Astoin",4250]
["Autechaux",25110,null,null,null,null,"Bayons",4250]
["Autechaux Roide",25150,null,null,null,null,"Bellaffaire",4250]
["Auterive",82500,null,null,null,null,"Châteaufort",4250]
["Auterive",32550,null,null,null,null,"Clamensane",4250]
["Auterive",31190,null,null,null,null,"Esparron la Bâtie",4250]
["Auterrive",64270,null,null,null,null,"Faucon du Caire",4250]
["Autet",70180,null,null,null,null,"Gigors",4250]
["Auteuil",78770,null,null,null,null,"La Motte du Caire",4250]
["Auteuil",60390,null,null,null,null,"Le Caire",4250]
["Autevielle Saint Martin Bideren",64390,null,null,null,null,"Melve",4250]
["Authe","08240",null,null,null,null,"Nibles",4250]
["Autheuil",61190,null,null,null,null,"Reynier",4250]
["Autheuil",28220,null,null,null,null,"Turriers",4250]
["Autheuil Authouillet",27490,null,null,null,null,"Valavoire",4250]
["Autheuil en Valois",60890,null,null,null,null,"Allos",4260]
["Autheux",80600,null,null,null,null,"Beynes",4270]
["Authevernes",27420,null,null,null,null,"Bras d'Asse",4270]
["Authézat",63730,null,null,null,null,"Chabrières",4270]
["Authie",80560,null,null,null,null,"Châteauredon",4270]
["Authie",14280,null,null,null,null,"Estoublon",4270]
["Authieule",80600,null,null,null,null,"Le Poil",4270]
["Authieux Ratiéville",76690,null,null,null,null,"Majastres",4270]
["Authieux sur le Port Saint Ouen",76520,null,null,null,null,"Mézel",4270]
["Authiou",58700,null,null,null,null,"Saint Jeannet",4270]
["Authoison",70190,null,null,null,null,"Saint Julien d'Asse",4270]
["Authon",41310,null,null,null,null,"Trévans",4270]
["Authon","04200",null,null,null,null,"Céreste",4280]
["Authon du Perche",28330,null,null,null,null,"Salignac",4290]
["Authon Ebéon",17770,null,null,null,null,"Sourribes",4290]
["Authon la Plaine",91410,null,null,null,null,"Volonne",4290]
["Authou",27290,null,null,null,null,"Dauphin",4300]
["Authouillet",27490,null,null,null,null,"Forcalquier",4300]
["Authuille",80300,null,null,null,null,"Limans",4300]
["Authume",39100,null,null,null,null,"Mane",4300]
["Authumes",71270,null,null,null,null,"Niozelles",4300]
["Autichamp",26400,null,null,null,null,"Pierrerue",4300]
["Autignac",34480,null,null,null,null,"Saint Maime",4300]
["Autigny",76740,null,null,null,null,"Sigonce",4300]
["Autigny la Tour",88300,null,null,null,null,"Augès",4310]
["Autigny le Grand",52300,null,null,null,null,"Ganagobie",4310]
["Autigny le Petit",52300,null,null,null,null,"Peyruis",4310]
["Autingues",62610,null,null,null,null,"Castellet lès Sausses",4320]
["Autoire",46400,null,null,null,null,"Entrevaux",4320]
["Autoreille",70700,null,null,null,null,"Sausses",4320]
["Autouillet",78770,null,null,null,null,"Val de Chalvagne",4320]
["Autrac",43450,null,null,null,null,"Villevieille",4320]
["Autrans",38880,null,null,null,null,"Barrême",4330]
["Autrèche",37110,null,null,null,null,"Blieux",4330]
["Autrechêne",90140,null,null,null,null,"Chaudon Norante",4330]
["Autrêches",60350,null,null,null,null,"Clumanc",4330]
["Autrecourt et Pourron","08210",null,null,null,null,"Saint Jacques",4330]
["Autrecourt sur Aire",55120,null,null,null,null,"Saint Lions",4330]
["Autremencourt","02250",null,null,null,null,"Sénez",4330]
["Autrepierre",54450,null,null,null,null,"Tartonne",4330]
["Autreppes","02580",null,null,null,null,"La Bréole",4340]
["Autretot",76190,null,null,null,null,"Le Lauzet Ubaye",4340]
["Autreville",88300,null,null,null,null,"Méolans",4340]
["Autreville","02300",null,null,null,null,"Méolans Revel",4340]
["Autréville Saint Lambert",55700,null,null,null,null,"Revel",4340]
["Autreville sur la Renne",52120,null,null,null,null,"Saint Vincent les Forts",4340]
["Autreville sur Moselle",54380,null,null,null,null,"Malijai",4350]
["Autrey",88700,null,null,null,null,"Moustiers Sainte Marie",4360]
["Autrey",54160,null,null,null,null,"Beauvezer",4370]
["Autrey le Vay",70110,null,null,null,null,"Colmars",4370]
["Autrey lès Cerre",70110,null,null,null,null,"Auribeau",4380]
["Autrey lès Gray",70100,null,null,null,null,"Barras",4380]
["Autricourt",21570,null,null,null,null,"Le Castellard Melan",4380]
["Autruche","08240",null,null,null,null,"Mélan",4380]
["Autruy sur Juine",45480,null,null,null,null,"Thoard",4380]
["Autry","08250",null,null,null,null,"Barcelonnette",4400]
["Autry Issards","03210",null,null,null,null,"Enchastrayes",4400]
["Autry le Châtel",45500,null,null,null,null,"Faucon de Barcelonnette",4400]
["Autun",71400,null,null,null,null,"Les Thuiles",4400]
["Auty",82220,null,null,null,null,"Pra Loup",4400]
["Auvare","06260",null,null,null,null,"Saint Pons",4400]
["Auve",51800,null,null,null,null,"Uvernet Fours",4400]
["Auvergny",27250,null,null,null,null,"Puimoisson",4410]
["Auvernaux",91830,null,null,null,null,"Saint Jurs",4410]
["Auvers",50500,null,null,null,null,"Archail",4420]
["Auvers",43300,null,null,null,null,"Beaujeu",4420]
["Auvers le Hamon",72300,null,null,null,null,"Blégiers",4420]
["Auvers Saint Georges",91580,null,null,null,null,"Draix",4420]
["Auvers sous Montfaucon",72540,null,null,null,null,"La Javie",4420]
["Auvers sur Oise",95760,null,null,null,null,"Le Brusquet",4420]
["Auvers sur Oise",95430,null,null,null,null,"Marcoux",4420]
["Auverse",49490,null,null,null,null,"Mariaud",4420]
["Auvet et la Chapelotte",70100,null,null,null,null,"Prads Haute Bléone",4420]
["Auvillar",82340,null,null,null,null,"Saint Martin lès Seyne",4460]
["Auvillars",14340,null,null,null,null,"Selonnet",4460]
["Auvillars sur Saône",21250,null,null,null,null,"Montagnac Montpezat",4500]
["Auvillers les Forges","08260",null,null,null,null,"Montpezat",4500]
["Auvilliers",76270,null,null,null,null,"Quinson",4500]
["Auvilliers en Gâtinais",45270,null,null,null,null,"Riez",4500]
["Aux Aussat",32170,null,null,null,null,"Roumoules",4500]
["Aux Marais",60000,null,null,null,null,"Saint Laurent du Verdon",4500]
["Auxais",50500,null,null,null,null,"Sainte Croix de Verdon",4500]
["Auxange",39700,null,null,null,null,"Aiglun",4510]
["Auxant",21360,null,null,null,null,"Chaffaut Saint Jurson",4510]
["Auxelles Bas",90200,null,null,null,null,"Espinouse",4510]
["Auxelles Haut",90200,null,null,null,null,"Mallemoisson",4510]
["Auxerre",89000,null,null,null,null,"Mirabeau",4510]
["Auxey Duresses",21190,null,null,null,null,"Condamine Châtelard",4530]
["Auxi le Château",62390,null,null,null,null,"Larche",4540]
["Auxillac",48500,null,null,null,null,"Meyronnes",4540]
["Auxon",70000,null,null,null,null,"Albiosc",4550]
["Auxon",10130,null,null,null,null,"Allemagne en Provence",4550]
["Auxon Dessous",25870,null,null,null,null,"Esparron de Verdon",4550]
["Auxon Dessus",25870,null,null,null,null,"Montfort",4600]
["Auxonne",21130,null,null,null,null,"Saint Auban",4600]
["Auxy",71400,null,null,null,null,"Villars Colmars",4640]
["Auxy",45340,null,null,null,null,"Champtercier",4660]
["Auzainvilliers",88140,null,null,null,null,"Entrevennes",4700]
["Auzances",23700,null,null,null,null,"La Brillanne",4700]
["Auzas",31360,null,null,null,null,"Le Castellet",4700]
["Auzat","09220",null,null,null,null,"Lurs",4700]
["Auzat sur Allier",63570,null,null,null,null,"Oraison",4700]
["Auzay",85200,null,null,null,null,"Puimichel",4700]
["Auzebosc",76190,null,null,null,null,"Gréoux les Bains",4800]
["Auzécourt",55800,null,null,null,null,"Saint Martin de Brômes",4800]
["Auzelles",63590,null,null,null,null,"Jausiers",4850]
["Auzers",15240,null,null,null,null,"Pierrevert",4860]
["Auzet","04140",null,null,null,null,"Lincel",4870]
["Auzéville en Argonne",55120,null,null,null,null,"Saint Martin les Eaux",4870]
["Auzeville Tolosane",31320,null,null,null,null,"Saint Michel l'Observatoire",4870]
["Auzielle",31650,null,null,null,null,"Châteauvieux",5000]
["Auzits",12390,null,null,null,null,"Gap",5000]
["Auzon",43390,null,null,null,null,"La Bâtie Vieille",5000]
["Auzouer en Touraine",37110,null,null,null,null,"La Freissinouse",5000]
["Auzouville Auberbosc",76640,null,null,null,null,"La Rochette",5000]
["Auzouville l'Esneval",76760,null,null,null,null,"Neffes",5000]
["Auzouville sur Ry",76116,null,null,null,null,"Pelleautier",5000]
["Auzouville sur Saâne",76730,null,null,null,null,"Rambaud",5000]
["Availles en Châtellerault",86530,null,null,null,null,"Romette",5000]
["Availles Limouzine",86460,null,null,null,null,"Briançon",5100]
["Availles sur Chizé",79170,null,null,null,null,"Cervières",5100]
["Availles sur Seiche",35130,null,null,null,null,"Montgenèvre",5100]
["Availles Thouarsais",79600,null,null,null,null,"Névache",5100]
["Avajan",65240,null,null,null,null,"Puy Saint André",5100]
["aval",38190,null,null,null,null,"Puy Saint Pierre",5100]
["Avallon",89200,null,null,null,null,"Val des Prés",5100]
["Avanchers Valmorel",73260,null,null,null,null,"Villar Saint Pancrace",5100]
["Avançon","08300",null,null,null,null,"Barcillonnette",5110]
["Avançon","05230",null,null,null,null,"Claret",5110]
["Avanne Aveney",25720,null,null,null,null,"Curbans",5110]
["Avant lès Marcilly",10400,null,null,null,null,"Esparron",5110]
["Avant lès Ramerupt",10240,null,null,null,null,"La Saulce",5110]
["Avanton",86170,null,null,null,null,"Lardier et Valença",5110]
["Avapessa",20225,null,null,null,null,"Monêtier Allemont",5110]
["Avaray",41500,null,null,null,null,"Vitrolles",5110]
["Avaux","08190",null,null,null,null,"L'Argentière la Bessée",5120]
["Aveize",69610,null,null,null,null,"Les Vigneaux",5120]
["Aveizieux",42330,null,null,null,null,"Saint Martin de Queyrières",5120]
["Avelanges",21120,null,null,null,null,"Fouillouse",5130]
["Avelesges",80270,null,null,null,null,"Jarjayes",5130]
["Avelin",59710,null,null,null,null,"Lettret",5130]
["Aveluy",80300,null,null,null,null,"Piégut",5130]
["Avenas",69430,null,null,null,null,"Saint Étienne le Laus",5130]
["Avenay",14210,null,null,null,null,"Sigoyer",5130]
["Avenay Val d'Or",51160,null,null,null,null,"Tallard",5130]
["Avène",34260,null,null,null,null,"Valserres",5130]
["Aveney",25720,null,null,null,null,"Venterol",5130]
["Avenheim",67370,null,null,null,null,"Aspremont",5140]
["Avensac",32120,null,null,null,null,"Aspres sur Buëch",5140]
["Avensan",33480,null,null,null,null,"Haute Beaume",5140]
["Aventignan",65660,null,null,null,null,"La Beaume",5140]
["Averan",65380,null,null,null,null,"La Faurie",5140]
["Averdoingt",62127,null,null,null,null,"Montbrand",5140]
["Averdon",41330,null,null,null,null,"Saint Julien en Beauchêne",5140]
["Avermes","03000",null,null,null,null,"Saint Pierre d'Argençon",5140]
["Avernes",95450,null,null,null,null,"Bruis",5150]
["Avernes Saint Gourgon",61470,null,null,null,null,"Montjay",5150]
["Avernes sous Exmes",61310,null,null,null,null,"Montmorin",5150]
["Avéron Bergelle",32290,null,null,null,null,"Moydans",5150]
["Averton",53700,null,null,null,null,"Ribeyret",5150]
["Avesnelles",59440,null,null,null,null,"Rosans",5150]
["Avesnes",62650,null,null,null,null,"Saint André de Rosans",5150]
["Avesnes Chaussoy",80140,null,null,null,null,"Sainte Marie",5150]
["Avesnes en Bray",76220,null,null,null,null,"Sorbiers",5150]
["Avesnes en Saosnois",72260,null,null,null,null,"Pontis",5160]
["Avesnes en Val",76630,null,null,null,null,"Réallon",5160]
["Avesnes le Comte",62810,null,null,null,null,"Saint Apollinaire",5160]
["Avesnes le Sec",59296,null,null,null,null,"Sauze du Lac",5160]
["Avesnes lès Aubert",59129,null,null,null,null,"Savines le Lac",5160]
["Avesnes lès Bapaume",62450,null,null,null,null,"Orcières",5170]
["Avesnes sur Helpe",59440,null,null,null,null,"Bréziers",5190]
["Avessac",44460,null,null,null,null,"Espinasses",5190]
["Avessé",72350,null,null,null,null,"Remollon",5190]
["Aveux",65370,null,null,null,null,"Rochebrune",5190]
["Avezac Prat Lahitte",65130,null,null,null,null,"Rousset",5190]
["Avezan",32380,null,null,null,null,"Théus",5190]
["Avèze",63690,null,null,null,null,"Baratier",5200]
["Avèze",30120,null,null,null,null,"Crévoux",5200]
["Avezé",72400,null,null,null,null,"Crots",5200]
["Aviernoz",74570,null,null,null,null,"Embrun",5200]
["avigneux","01480",null,null,null,null,"Les Orres",5200]
["Avignon",84000,null,null,null,null,"Puy Saint Eusèbe",5200]
["Avignon lès Saint Claude",39200,null,null,null,null,"Puy Sanières",5200]
["Avignonet",38650,null,null,null,null,"Saint André d'Embrun",5200]
["Avignonet Lauragais",31290,null,null,null,null,"Saint Sauveur",5200]
["Avillers",88500,null,null,null,null,"Le Monêtier les Bains",5220]
["Avillers",54490,null,null,null,null,"Avançon",5230]
["Avillers Sainte Croix",55210,null,null,null,null,"Chorges",5230]
["Avilley",25680,null,null,null,null,"La Bâtie Neuve",5230]
["Avilly Saint Léonard",60300,null,null,null,null,"Montgardin",5230]
["Avion",62210,null,null,null,null,"Prunières",5230]
["Avioth",55600,null,null,null,null,"Salle les Alpes",5240]
["Aviré",49500,null,null,null,null,"Agnières en Dévoluy",5250]
["Avirey Lingey",10340,null,null,null,null,"La Cluse",5250]
["Aviron",27930,null,null,null,null,"Saint Disdier",5250]
["Avize",51190,null,null,null,null,"Saint Étienne en Dévoluy",5250]
["Avocourt",55270,null,null,null,null,"Ancelle",5260]
["Avoine",61150,null,null,null,null,"Chabottes",5260]
["Avoine",37420,null,null,null,null,"Champoléon",5260]
["Avoise",72430,null,null,null,null,"Forest Saint Julien",5260]
["Avolsheim",67120,null,null,null,null,"Saint Jean Saint Nicolas",5260]
["Avon",79800,null,null,null,null,"Saint Léger les Mélèzes",5260]
["Avon",77210,null,null,null,null,"Saint Michel de Chaillol",5260]
["Avon la Pèze",10290,null,null,null,null,"Puy Saint Vincent",5290]
["Avon les Roches",37220,null,null,null,null,"Vallouise",5290]
["Avondance",62310,null,null,null,null,"Antonaves",5300]
["Avord",18520,null,null,null,null,"Barret le Bas",5300]
["Avoriaz",74110,null,null,null,null,"Châteauneuf de Châbre",5300]
["Avosnes",21350,null,null,null,null,"Eyguians",5300]
["Avot",21580,null,null,null,null,"Lagrand",5300]
["Avoudrey",25690,null,null,null,null,"Laragne Montéglin",5300]
["Avrainville",91630,null,null,null,null,"Lazer",5300]
["Avrainville",88130,null,null,null,null,"Le Poët",5300]
["Avrainville",54385,null,null,null,null,"Ribiers",5300]
["Avrainville",52130,null,null,null,null,"Saint Genis",5300]
["Avranches",50300,null,null,null,null,"Saint Pierre Avez",5300]
["Avranville",88630,null,null,null,null,"Saléon",5300]
["Avrechy",60130,null,null,null,null,"Salérans",5300]
["Avrecourt",52140,null,null,null,null,"Upaix",5300]
["Avrée",58170,null,null,null,null,"Ventavon",5300]
["Avregny",74350,null,null,null,null,"Champcella",5310]
["Avremesnil",76730,null,null,null,null,"Freissinières",5310]
["Avressieux",73240,null,null,null,null,"La Roche de Rame",5310]
["Avreuil",10130,null,null,null,null,"Grave",5320]
["Avricourt",60310,null,null,null,null,"Saint Chaffrey",5330]
["Avricourt",57810,null,null,null,null,"Ailefroide",5340]
["Avricourt",54450,null,null,null,null,"Pelvoux",5340]
["Avrieux",73500,null,null,null,null,"Arvieux",5350]
["Avrigney Virey",70150,null,null,null,null,"Château Queyras",5350]
["Avrigny",60190,null,null,null,null,"Château Ville Vieille",5350]
["Avril",54150,null,null,null,null,"Molines en Queyras",5350]
["Avril sur Loire",58300,null,null,null,null,"Saint Véran",5350]
["Avrillé",85440,null,null,null,null,"Châteauroux",5380]
["Avrillé",49240,null,null,null,null,"Chabestan",5400]
["Avrillé les Ponceaux",37340,null,null,null,null,"Châteauneuf d'Oze",5400]
["Avrilly",61700,null,null,null,null,"Furmeyer",5400]
["Avrilly",27240,null,null,null,null,"La Roche des Arnauds",5400]
["Avrilly","03130",null,null,null,null,"Le Saix",5400]
["Avrolles",89600,null,null,null,null,"Manteyer",5400]
["Avroult",62560,null,null,null,null,"Montmaur",5400]
["Avy",17800,null,null,null,null,"Oze",5400]
["Awoingt",59400,null,null,null,null,"Rabou",5400]
["Ax les Thermes","09110",null,null,null,null,"Saint Auban d'Oze",5400]
["Axat",11140,null,null,null,null,"Veynes",5400]
["Axiat","09250",null,null,null,null,"Abriès",5460]
["Ay",51160,null,null,null,null,"Château Ville Vieille",5460]
["Ay sur Moselle",57300,null,null,null,null,"Ristolas",5460]
["Ayat sur Sioule",63390,null,null,null,null,"Aiguilles",5470]
["Aydat",63970,null,null,null,null,"Château Ville Vieille",5470]
["Aydie",64330,null,null,null,null,"Villar d'Arène",5480]
["Aydius",64490,null,null,null,null,"Bénévent et Charbillac",5500]
["Aydoilles",88600,null,null,null,null,"Buissard",5500]
["Ayen",19310,null,null,null,null,"La Fare en Champsaur",5500]
["Ayencourt",80500,null,null,null,null,"La Motte en Champsaur",5500]
["Ayette",62116,null,null,null,null,"Laye",5500]
["Ayguade Ceinturon",83400,null,null,null,null,"Le Noyer",5500]
["Ayguatébia Talau",66360,null,null,null,null,"Les Costes",5500]
["Ayguemorte les Graves",33640,null,null,null,null,"Les Infournas",5500]
["Ayguesvives",31450,null,null,null,null,"Poligny",5500]
["Ayguetinte",32410,null,null,null,null,"Saint Bonnet en Champsaur",5500]
["Ayherre",64240,null,null,null,null,"Saint Eusèbe en Champsaur",5500]
["Ayn",73470,null,null,null,null,"Saint Julien en Champsaur",5500]
["Aynac",46120,null,null,null,null,"Saint Laurent du Cros",5500]
["Ayrens",15250,null,null,null,null,"Vars",5560]
["Ayron",86190,null,null,null,null,"Ceillac",5600]
["Ayros Arbouix",65400,null,null,null,null,"Eygliers",5600]
["Ayse",74130,null,null,null,null,"Guillestre",5600]
["Ayssènes",12430,null,null,null,null,"Mont Dauphin",5600]
["Aytré",17440,null,null,null,null,"Réotier",5600]
["Ayzac Ost",65400,null,null,null,null,"Risoul",5600]
["Ayzieu",32800,null,null,null,null,"Saint Clément sur Durance",5600]
["Azannes et Soumazannes",55150,null,null,null,null,"Saint Crépin",5600]
["Azas",31380,null,null,null,null,"Chanousse",5700]
["Azat Chatenet",23210,null,null,null,null,"Etoile Saint Cyrice",5700]
["Azat le Ris",87360,null,null,null,null,"La Bâtie Montsaléon",5700]
["Azay le Brûlé",79400,null,null,null,null,"La Piarre",5700]
["Azay le Ferron",36290,null,null,null,null,"Le Bersac",5700]
["Azay le Rideau",37190,null,null,null,null,"L'Épine",5700]
["Azay sur Cher",37270,null,null,null,null,"Méreuil",5700]
["Azilone-Ampaza",20190,null,null,null,null,"Saint Jacques en Valgodemard",5800]
["Azur",40140,null,null,null,null,"Nice",6100]
["Bacilly",50530,null,null,null,null,"Mougins",6250]
["Bagnac sur Célé",46270,null,null,null,null,"Cannes",6400]
["Bagneux","03460",null,null,null,null,"Valdeblore",6420]
["Baigneaux",28140,null,null,null,null,"Caussols",6460]
["Bailleulval",62123,null,null,null,null,"Le Broc",6510]
["Bainville aux Saules",88270,null,null,null,null,"Bar sur Loup",6620]
["Baissey",52250,null,null,null,null,"Le Rouret",6650]
["Balansun",64300,null,null,null,null,"Tournefort",6710]
["Balignicourt",10330,null,null,null,null,"Briançonnet",6850]
["Balsièges",48000,null,null,null,null,"Chassiers",7110]
["Banat","09400",null,null,null,null,"Rocles",7110]
["Bannes",51230,null,null,null,null,"Soyons",7130]
["Baons le Comte",76190,null,null,null,null,"Accons",7160]
["Barbaise","08430",null,null,null,null,"Saint Andéol de Berg",7170]
["Barbonville",54360,null,null,null,null,"Rochecolombe",7200]
["Bardos",64520,null,null,null,null,"Saint Vincent de Barrès",7210]
["Barie",33190,null,null,null,null,"Le Pouzin",7250]
["Barlieu",18260,null,null,null,null,"Nozières",7270]
["Barneville la Bertran",14600,null,null,null,null,"Saint Symphorien de Mahun",7290]
["Barret le Bas","05300",null,null,null,null,"Rochepaule",7320]
["Barville",88300,null,null,null,null,"Serrières",7340]
["Bassan",34290,null,null,null,null,"Prades",7380]
["Bassoncourt",52240,null,null,null,null,"Savas",7430]
["Batilly",54980,null,null,null,null,"Lac d'Issarlès",7470]
["Baudinard sur Verdon",83630,null,null,null,null,"Le Roux",7560]
["Baugy",60190,null,null,null,null,"Juvinas",7600]
["Baulny",55270,null,null,null,null,"Le Béage",7630]
["Bay sur Aube",52160,null,null,null,null,"Saint Georges les Bains",7800]
["Bayonville sur Mad",54890,null,null,null,null,"Montcornet",8090]
["Bazicourt",60700,null,null,null,null,"Tremblois lès Carignan",8110]
["Bazolles",58110,null,null,null,null,"Semuy",8130]
["Béard",58160,null,null,null,null,"L'Échelle",8150]
["Beauche",28270,null,null,null,null,"Étrépigny",8160]
["Beaufai",61270,null,null,null,null,"Balham",8190]
["Beaufort",38270,null,null,null,null,"Roizy",8190]
["Beaulieu",38470,null,null,null,null,"Chappes",8220]
["Beaumais",14620,null,null,null,null,"Seraincourt",8220]
["Beaumont",19390,null,null,null,null,"Châtillon sur Bar",8240]
["Beaumont lès Randan",63310,null,null,null,null,"Champigneulle",8250]
["Beaune",21200,null,null,null,null,"Termes",8250]
["Beaupont","01270",null,null,null,null,"Champlin",8260]
["Beausemblant",26240,null,null,null,null,"Blanchefosse et Bay",8290]
["Beausse",49410,null,null,null,null,"Liart",8290]
["Beauvoir",60120,null,null,null,null,"Rethel",8300]
["Beblenheim",68980,null,null,null,null,"Ménil Annelles",8310]
["Bédéchan",32450,null,null,null,null,"Noyers Pont Maugis",8350]
["Béhasque Lapiste",64120,null,null,null,null,"Fligny",8380]
["Bel Air",49520,null,null,null,null,"Aure",8400]
["Bélesta","09300",null,null,null,null,"Marvaux Vieux",8400]
["Belfort du Quercy",46230,null,null,null,null,"Savigny sur Aisne",8400]
["Belle Isle en Terre",22810,null,null,null,null,"Jandun",8430]
["Bellegarde en Marche",23190,null,null,null,null,"Connage",8450]
["Bellesserre",31480,null,null,null,null,"Foisches",8600]
["Belloc","09600",null,null,null,null,"Baulou",9000]
["Belmont",67130,null,null,null,null,"Serres sur Arget",9000]
["Belrupt",88260,null,null,null,null,"Saint Jean du Falga",9100]
["Belvézet",30580,null,null,null,null,"Tignac",9110]
["Bénac","09000",null,null,null,null,"Dalou",9120]
["Beneuvre",21290,null,null,null,null,"Pailhès",9130]
["Bentayou Sérée",64460,null,null,null,null,"Barjac",9190]
["Berelles",59740,null,null,null,null,"Lercoul",9220]
["Bergouey",40250,null,null,null,null,"La Bastide de Sérou",9240]
["Berlou",34360,null,null,null,null,"Mazères",9270]
["Bernaville",80370,null,null,null,null,"Péreille",9300]
["Berneville",62123,null,null,null,null,"Urs",9310]
["Berrias et Casteljau","07460",null,null,null,null,"Arignac",9400]
["Bertaucourt Épourdon","02800",null,null,null,null,"Ussat",9400]
["Berthelange",25410,null,null,null,null,"Artigues",9460]
["Bertrimont",76890,null,null,null,null,"Sainte Foi",9500]
["Berzy le Sec","02200",null,null,null,null,"Tabre",9600]
["Bessans",73480,null,null,null,null,"Audressein",9800]
["Bessey lès Citeaux",21110,null,null,null,null,"Uchentein",9800]
["Béthancourt en Valois",60129,null,null,null,null,"Celles sur Ource",10110]
["Bétoncourt les Ménétriers",70120,null,null,null,null,"Avreuil",10130]
["Betpouy",65230,null,null,null,null,"Davrey",10130]
["Betting lès Saint Avold",57800,null,null,null,null,"Juvanzé",10140]
["Beurizot",21350,null,null,null,null,"Pont Sainte Marie",10150]
["Beuvry la Forêt",59310,null,null,null,null,"Étrelles sur Aube",10170]
["Beychac et Caillau",33750,null,null,null,null,"Neuville sur Vannes",10190]
["Bezange la Grande",54370,null,null,null,null,"Engente",10200]
["Bézu Saint Germain","02400",null,null,null,null,"Ville sur Terre",10200]
["Bidart",64210,null,null,null,null,"Villiers sous Praslin",10210]
["Biederthal",68480,null,null,null,null,"Géraudot",10220]
["Bierry les Belles Fontaines",89420,null,null,null,null,"Mesnil Lettre",10240]
["Bignoux",86800,null,null,null,null,"Daudes",10270]
["Billième",73170,null,null,null,null,"Trancault",10290]
["Bilzheim",68250,null,null,null,null,"Machy",10320]
["Bioule",82800,null,null,null,null,"Arrelles",10340]
["Bischwihr",68320,null,null,null,null,"Villenauxe la Grande",10370]
["Bitschwiller lès Thann",68620,null,null,null,null,"Montpothier",10400]
["Biville sur Mer",76630,null,null,null,null,"Saint Aubin",10400]
["Blain",44130,null,null,null,null,"Courcelles sur Voire",10500]
["Blaisy Haut",21540,null,null,null,null,"Molins sur Aube",10500]
["Blangy sur Ternoise",62770,null,null,null,null,"Villacerf",10600]
["Blargies",60220,null,null,null,null,"Saint Rémy sous Barbuise",10700]
["Blécourt",59268,null,null,null,null,"Rouillerot",10800]
["Blet",18350,null,null,null,null,"Marcorignan",11120]
["Bligny sur Ouche",21360,null,null,null,null,"Galinagues",11140]
["Blois",41000,null,null,null,null,"Marsa",11140]
["Bocé",49150,null,null,null,null,"Villeneuve Minervois",11160]
["Boesenbiesen",67390,null,null,null,null,"Antugnac",11190]
["Bois",17240,null,null,null,null,"Cruscades",11200]
["Bois Himont",76190,null,null,null,null,"Caunettes en Val",11220]
["Boisleux Saint Marc",62175,null,null,null,null,"Caudeval",11230]
["Boisset les Prévanches",27120,null,null,null,null,"Ferran",11240]
["Boissy en Drouais",28500,null,null,null,null,"Pomas",11250]
["Boissy le Châtel",77169,null,null,null,null,"Villebazy",11250]
["Bolozon","01450",null,null,null,null,"Roullens",11290]
["Boncourt",27120,null,null,null,null,"Malras",11300]
["Bonnac la Côte",87270,null,null,null,null,"Les Cassés",11320]
["Bonneil","02400",null,null,null,null,"Salza",11330]
["Bonneval",28800,null,null,null,null,"Fontjoncouse",11360]
["Bonningues lès Calais",62340,null,null,null,null,"Issel",11400]
["Bonvillet",88260,null,null,null,null,"Belflou",11410]
["Bordères sur l'Échez",65320,null,null,null,null,"Peyriac de Mer",11440]
["Bords",17430,null,null,null,null,"Granès",11500]
["Bort l'Étang",63190,null,null,null,null,"Mas des Cours",11570]
["Bosguérard de Marcouville",27520,null,null,null,null,"Limousis",11600]
["Bossugan",33350,null,null,null,null,"Fontcouverte",11700]
["Boucey",50170,null,null,null,null,"Le Monastère",12000]
["Boudeville",76560,null,null,null,null,"Aurelle Verlac",12130]
["Bouffry",41270,null,null,null,null,"Sévérac le Château",12150]
["Bouilh Pereuilh",65350,null,null,null,null,"Saint Salvadou",12200]
["Bouilland",21420,null,null,null,null,"Curières",12210]
["Bouisse",11190,null,null,null,null,"Lapanouse de Cernon",12230]
["Bouleurs",77580,null,null,null,null,"Foissac",12260]
["Boulogne sur Mer",62200,null,null,null,null,"Prades Salars",12290]
["Bourbon Lancy",71140,null,null,null,null,"Saint Cyprien sur Dourdou",12320]
["Bourdonné",78113,null,null,null,null,"Prévinquières",12350]
["Bourg du Bost",24600,null,null,null,null,"Auzits",12390]
["Bourganeuf",23400,null,null,null,null,"Cantoin",12420]
["Bourgneuf",73390,null,null,null,null,"La Salvetat Peyralès",12440]
["Bourguignon lès la Charité",70190,null,null,null,null,"Broquiès",12480]
["Bourneau",85200,null,null,null,null,"Paulhe",12520]
["Bourrou",24110,null,null,null,null,"Campuac",12580]
["Boussais",79600,null,null,null,null,"La Loubière",12740]
["Boussy",74150,null,null,null,null,"Marseille 3",13003]
["Bouvent","01100",null,null,null,null,"Saint Antonin sur Bayon",13100]
["Bouville",76360,null,null,null,null,"Coudoux",13111]
["Bouzin",31420,null,null,null,null,"Arles",13200]
["Bouzy",51150,null,null,null,null,"Cornillon Confoux",13250]
["Brabant le Roi",55800,null,null,null,null,"Lambesc",13410]
["Brain sur Allonnes",49650,null,null,null,null,"La Fare les Oliviers",13580]
["Branches",89113,null,null,null,null,"Le Pigeonnier",13720]
["Bransat","03500",null,null,null,null,"Roquefort la Bédoule",13830]
["Bratte",54610,null,null,null,null,"L'Hôtellerie",14100]
["Braux le Châtel",52120,null,null,null,null,"Saint Germain de Livet",14100]
["Brébières",62117,null,null,null,null,"Drubec",14130]
["Brech",56400,null,null,null,null,"Le Theil en Auge",14130]
["Bréhand",22510,null,null,null,null,"Cheffreville Tonnencourt",14140]
["Brenac",11500,null,null,null,null,"Saint Germain de Montgommery",14140]
["Bresle",80300,null,null,null,null,"Écots",14170]
["Bretagnolles",27220,null,null,null,null,"Thiéville",14170]
["Brettes",16240,null,null,null,null,"Évrecy",14210]
["Bretteville sur Odon",14760,null,null,null,null,"Mondrainville",14210]
["Breux",55600,null,null,null,null,"Saint Laurent de Condel",14220]
["Brevans",39100,null,null,null,null,"Cardonville",14230]
["Briançon","05100",null,null,null,null,"Livry",14240]
["Brie","09700",null,null,null,null,"Tilly sur Seulles",14250]
["Brieuil sur Chizé",79170,null,null,null,null,"Canon",14270]
["Briis sous Forges",91640,null,null,null,null,"Cerqueux",14290]
["Brion",36110,null,null,null,null,"Villy Bocage",14310]
["Brioux sur Boutonne",79170,null,null,null,null,"Le Breuil en Bessin",14330]
["Broin",21250,null,null,null,null,"Valsemé",14340]
["Brotte lès Luxeuil",70300,null,null,null,null,"Saint Jean des Essartiers",14350]
["Brouqueyran",33124,null,null,null,null,"Annebecq",14380]
["Brousseval",52130,null,null,null,null,"Le Gast",14380]
["Broyes",60120,null,null,null,null,"Bayeux",14400]
["Brugheas","03700",null,null,null,null,"Saint Martin des Entrées",14400]
["Brunvillers la Motte",60130,null,null,null,null,"Angerville",14430]
["Bruyères le Châtel",91680,null,null,null,null,"Gerrots",14430]
["Budelière",23170,null,null,null,null,"Sainte Croix sur Mer",14480]
["Bugny",25520,null,null,null,null,"Roullours",14500]
["Buisson",84110,null,null,null,null,"Rocquancourt",14540]
["Bulan",65130,null,null,null,null,"Le Vey",14570]
["Bully les Mines",62160,null,null,null,null,"Anguerny",14610]
["Buré",61170,null,null,null,null,"Cagny",14630]
["Burnhaupt le Bas",68520,null,null,null,null,"Rapilly",14690]
["Bus la Mésière",80700,null,null,null,null,"Martigny sur l'Ante",14700]
["Bussières",42510,null,null,null,null,"Lasson",14740]
["Bussy le Repos",51330,null,null,null,null,"Saint Vigor des Mézerets",14770]
["Butten",67430,null,null,null,null,"Bréville",14860]
["Buxerulles",55300,null,null,null,null,"Bénerville sur Mer",14910]
["Buzet sur Baïse",47160,null,null,null,null,"Bernières sur Mer",14990]
["Cabrerets",46330,null,null,null,null,"Saint Martial",15110]
["Cachen",40120,null,null,null,null,"Vieillevie",15120]
["Cagnano",20228,null,null,null,null,"Salers",15140]
["Caillavet",32190,null,null,null,null,"Sainte Anastasie",15170]
["Calamane",46150,null,null,null,null,"Madic",15210]
["Callian",32190,null,null,null,null,"Saignes",15240]
["Calmont",12450,null,null,null,null,"Marmanhac",15250]
["Camaret sur Mer",29570,null,null,null,null,"Albepierre Bredons",15300]
["Cambremer",14340,null,null,null,null,"Veyrières",15350]
["Camiac et Saint Denis",33420,null,null,null,null,"Collandres",15400]
["Campagne sur Arize","09350",null,null,null,null,"Velzic",15590]
["Camplong",34260,null,null,null,null,"Polminhac",15800]
["Campugnan",33390,null,null,null,null,"Pranzac",16110]
["Canapville",61120,null,null,null,null,"Bassac",16120]
["Canehan",76260,null,null,null,null,"Angeac Champagne",16130]
["Cannelle",20151,null,null,null,null,"La Chapelle",16140]
["Cantillac",24530,null,null,null,null,"Bonneville",16170]
["Capbreton",40130,null,null,null,null,"Aignes et Puypéroux",16190]
["Caramany",66720,null,null,null,null,"Réparsac",16200]
["Cardonville",14230,null,null,null,null,"Orgedeuil",16220]
["Carling",57490,null,null,null,null,"Sainte Colombe",16230]
["Carnac Rouffiac",46140,null,null,null,null,"La Magdeleine",16240]
["Caromb",84330,null,null,null,null,"Étriac",16250]
["Carsac de Gurson",24610,null,null,null,null,"Nieuil",16270]
["Cassaber",64270,null,null,null,null,"Saint Palais du Né",16300]
["Cassen",40380,null,null,null,null,"Verneuil",16310]
["Castel Sarrazin",40330,null,null,null,null,"Chassiecq",16350]
["Castelnau Chalosse",40360,null,null,null,null,"Aubeterre sur Dronne",16390]
["Castelnau sur Gupie",47200,null,null,null,null,"Lesterps",16420]
["Castelnou",66300,null,null,null,null,"Nersac",16440]
["Castillon","06500",null,null,null,null,"Sauvignac",16480]
["Castres","02680",null,null,null,null,"Tourriers",16560]
["Cateri",20225,null,null,null,null,"Ruelle sur Touvre",16600]
["Caubiac",31480,null,null,null,null,"Poursac",16700]
["Caumont",27310,null,null,null,null,"Breuillet",17113]
["Cauroy","08310",null,null,null,null,"Chartuzac",17130]
["Cauville",14770,null,null,null,null,"Meschers sur Gironde",17132]
["Cavarc",47330,null,null,null,null,"Boisredon",17150]
["Cazaux Debat",65590,null,null,null,null,"Ferrières",17170]
["Cazillac",46600,null,null,null,null,"Montlieu la Garde",17210]
["Céaux",50220,null,null,null,null,"Sainte Colombe",17210]
["Cellé",41360,null,null,null,null,"Longèves",17230]
["Cemboing",70500,null,null,null,null,"Romegoux",17250]
["Cenves",69840,null,null,null,null,"Clérac",17270]
["Cerfontaine",59680,null,null,null,null,"Marennes",17320]
["Cernay",28120,null,null,null,null,"Yves",17340]
["Cérons",33720,null,null,null,null,"Annezay",17380]
["Césarches",73200,null,null,null,null,"Courcelles",17400]
["Cessieu",38110,null,null,null,null,"Saint Palais sur Mer",17420]
["Cestas",33610,null,null,null,null,"Moragne",17430]
["Chablis",89800,null,null,null,null,"Nuaillé sur Boutonne",17470]
["Chaffaut Saint Jurson","04510",null,null,null,null,"Clam",17500]
["Chailly en Brie",77120,null,null,null,null,"Les Éduts",17510]
["Chalamont","01320",null,null,null,null,"Sainte Lheurine",17520]
["Chalette sur Voire",10500,null,null,null,null,"Corme Écluse",17600]
["Chaligny",54230,null,null,null,null,"Médis",17600]
["Chaltrait",51130,null,null,null,null,"Saint Saturnin du Bois",17700]
["Chamadelle",33230,null,null,null,null,"Sainte Marie de Ré",17740]
["Chamblay",39380,null,null,null,null,"Belluire",17800]
["Chambon sur Lac",63790,null,null,null,null,"Salignac sur Charente",17800]
["Chambry",77910,null,null,null,null,"Saint Georges sur Moulon",18110]
["Chamoux",89660,null,null,null,null,"Dun sur Auron",18130]
["Champagnat",23190,null,null,null,null,"Saint Léger le Petit",18140]
["Champagne en Valromey","01260",null,null,null,null,"Germigny l'Exempt",18150]
["Champclause",43260,null,null,null,null,"Ainay le Vieil",18200]
["Champdeuil",77390,null,null,null,null,"Bruère Allichamps",18200]
["Champforgeuil",71530,null,null,null,null,"Brécy",18220]
["Champigny",51370,null,null,null,null,"La Chapelotte",18250]
["Champniers",86400,null,null,null,null,"Couargues",18300]
["Champrougier",39230,null,null,null,null,"Verdigny",18300]
["Champvans",39100,null,null,null,null,"Arçay",18340]
["Chamrousse",38410,null,null,null,null,"Saint Germain des Bois",18340]
["Channay",21330,null,null,null,null,"Presly",18380]
["Chanonat",63450,null,null,null,null,"Osmoy",18390]
["Chantepie",35135,null,null,null,null,"Morthomiers",18570]
["Chaon",41600,null,null,null,null,"Farges en Septaine",18800]
["Chapelle Guillaume",28330,null,null,null,null,"Saint Bonnet la Rivière",19130]
["Chapelon",45270,null,null,null,null,"Cornil",19150]
["Charbonnières",28330,null,null,null,null,"Saint Pantaléon de Lapleau",19160]
["Charentilly",37390,null,null,null,null,"Aix",19200]
["Charleval",27380,null,null,null,null,"Saint Victour",19200]
["Charmes","02800",null,null,null,null,"Beyssac",19230]
["Charmes sur Rhône","07800",null,null,null,null,"Saint Viance",19240]
["Charnay lès Chalon",71350,null,null,null,null,"Chavanac",19290]
["Charron",17230,null,null,null,null,"Lafage sur Sombre",19320]
["Chartrier Ferrière",19600,null,null,null,null,"Courteix",19340]
["Chassaignes",24600,null,null,null,null,"Forgès",19380]
["Chassey lès Scey",70360,null,null,null,null,"Camps Saint Mathurin Léobazel",19430]
["Chasteuil","04120",null,null,null,null,"Marcillac la Croze",19500]
["Château Arnoux Saint Auban","04160",null,null,null,null,"Turenne",19500]
["Château Larcher",86370,null,null,null,null,"Nespouls",19600]
["Châteaudun",28200,null,null,null,null,"Belvédère-Campomoro",20110]
["Châteauneuf d'Entraunes","06470",null,null,null,null,"Tolla",20117]
["Châteauneuf sur Sarthe",49330,null,null,null,null,"Guargualé",20128]
["Châtel Censoir",89660,null,null,null,null,"Casalabriva",20140]
["Châtellerault",86100,null,null,null,null,"Sant'Andréa-d'Orcino",20151]
["Châtenet",17210,null,null,null,null,"Sarrola-Carcopino",20167]
["Châtenois les Forges",90700,null,null,null,null,"Carbini",20170]
["Châtillon la Borde",77820,null,null,null,null,"Favalello",20212]
["Chatonrupt Sommermont",52300,null,null,null,null,"Castifao",20218]
["Chauconin Neufmontiers",77124,null,null,null,null,"Algajola",20220]
["Chaudun","02200",null,null,null,null,"Cateri",20225]
["Chaumergy",39230,null,null,null,null,"Polveroso",20229]
["Chaumont sur Aire",55260,null,null,null,null,"Taglio-Isolaccio",20230]
["Chaussy",95710,null,null,null,null,"Castirla",20236]
["Chauvigné",35490,null,null,null,null,"La Porta",20237]
["Chavagnac",24120,null,null,null,null,"Aiti",20244]
["Chaveignes",37120,null,null,null,null,"Lento",20252]
["Chavornay","01510",null,null,null,null,"Aghione",20270]
["Chazemais","03370",null,null,null,null,"Borgo",20290]
["Chelers",62127,null,null,null,null,"Genlis",21110]
["Chémery sur Bar","08450",null,null,null,null,"Thorey en Plaine",21110]
["Chenailler Mascheix",19120,null,null,null,null,"Til Châtel",21120]
["Chenay le Châtel",71340,null,null,null,null,"Darois",21121]
["Chênex",74520,null,null,null,null,"Villers lès Pots",21130]
["Cheptainville",91630,null,null,null,null,"Grignon",21150]
["Chérier",42430,null,null,null,null,"Flavignerot",21160]
["Cherves",86170,null,null,null,null,"Corcelles les Arts",21190]
["Chevaigné",35250,null,null,null,null,"Sainte Marie la Blanche",21200]
["Chevigney lès Vercel",25530,null,null,null,null,"Chambolle Musigny",21220]
["Chèvremont",90340,null,null,null,null,"Urcy",21220]
["Chevrières",60710,null,null,null,null,"Culêtre",21230]
["Chèze",65120,null,null,null,null,"Broin",21250]
["Chilly",80170,null,null,null,null,"Heuilley sur Saône",21270]
["Chirac",48100,null,null,null,null,"Tellecey",21270]
["Chitenay",41120,null,null,null,null,"Voulaines les Templiers",21290]
["Choloy Ménillot",54200,null,null,null,null,"Bellenot sous Pouilly",21320]
["Choux",39370,null,null,null,null,"Sainte Sabine",21320]
["Cideville",76570,null,null,null,null,"Verdonnet",21330]
["Cintré",35310,null,null,null,null,"Massingy lès Vitteaux",21350]
["Ciry le Noble",71420,null,null,null,null,"Bligny sur Ouche",21360]
["Civières",27630,null,null,null,null,"Veilly",21360]
["Civrieux d'Azergues",69380,null,null,null,null,"Curtil Saint Seine",21380]
["Clairfontaine","02260",null,null,null,null,"Roilly",21390]
["Claracq",64330,null,null,null,null,"Puits",21400]
["Claville",27180,null,null,null,null,"Saint Victor sur Ouche",21410]
["Clémencey",21220,null,null,null,null,"Villiers en Morvan",21430]
["Clermont Créans",72200,null,null,null,null,"Poiseul la Ville et Laperrière",21450]
["Clermont l'Hérault",34800,null,null,null,null,"Forléans",21460]
["Clesles",51260,null,null,null,null,"Ruffey lès Échirey",21490]
["Clion",17240,null,null,null,null,"Nogent lès Montbard",21500]
["Clumanc","04330",null,null,null,null,"Échalot",21510]
["Coëtlogon",22210,null,null,null,null,"Sincey lès Rouvray",21530]
["Cogolin",83310,null,null,null,null,"Verrey sous Drée",21540]
["Coiserette",39200,null,null,null,null,"Fénay",21600]
["Colletot",27500,null,null,null,null,"Blessey",21690]
["Collobrières",83610,null,null,null,null,"Arcenant",21700]
["Colmars","04370",null,null,null,null,"Prissey",21700]
["Colombey les deux Églises",52330,null,null,null,null,"Noiron sous Gevrey",21910]
["Colombiers",17460,null,null,null,null,"Trélivan",22100]
["Combéranche et Épeluche",24600,null,null,null,null,"Bégard",22140]
["Combrailles",63380,null,null,null,null,"Ploeuc sur Lié",22150]
["Commentry","03600",null,null,null,null,"Plérin",22190]
["Compreignac",87140,null,null,null,null,"Minihy Tréguier",22220]
["Concarneau",29900,null,null,null,null,"Saint Vran",22230]
["Concourson sur Layon",49700,null,null,null,null,"Trédias",22250]
["Condé lès Autry","08250",null,null,null,null,"Lannebert",22290]
["Condezaygues",47500,null,null,null,null,"Trémel",22310]
["Congéniès",30111,null,null,null,null,"Trébrivan",22340]
["Connaux",30330,null,null,null,null,"Pont Melvez",22390]
["Contescourt","02680",null,null,null,null,"Plouzélambre",22420]
["Contremoulins",76400,null,null,null,null,"Troguéry",22450]
["Coolus",51510,null,null,null,null,"Lanrivain",22480]
["Corbeil Cerf",60110,null,null,null,null,"Kerfot",22500]
["Corbreuse",91410,null,null,null,null,"Hénanbihen",22550]
["Cordonnet",70190,null,null,null,null,"Saint Maudan",22600]
["Cormeilles en Vexin",95830,null,null,null,null,"Trélévern",22660]
["Cornac",46130,null,null,null,null,"Senven Léhart",22720]
["Cornimont",88310,null,null,null,null,"Loc Envel",22810]
["Correns",83570,null,null,null,null,"Saint Michel de Plélan",22980]
["Corte",20250,null,null,null,null,"Saint Léger le Guérétois",23000]
["Cosnac",19360,null,null,null,null,"Chambonchard",23110]
["Cottance",42360,null,null,null,null,"Blaudeix",23140]
["Coudekerque",59380,null,null,null,null,"Saint Germain Beaupré",23160]
["Couffé",44521,null,null,null,null,"La Chaussade",23200]
["Coulanges","03470",null,null,null,null,"Bénévent l'Abbaye",23210]
["Coulomby",62380,null,null,null,null,"La Chapelle Saint Martial",23250]
["Coulonges",16330,null,null,null,null,"Crocq",23260]
["Courances",91490,null,null,null,null,"Montaigut le Blanc",23320]
["Courcelette",80300,null,null,null,null,"Bourganeuf",23400]
["Courcelles lès Montbard",21500,null,null,null,null,"Royère de Vassivière",23460]
["Courcelles sur Aire",55260,null,null,null,null,"Fransèches",23480]
["Courchapon",25170,null,null,null,null,"Bussière Saint Georges",23600]
["Courdimanche",95800,null,null,null,null,"Les Mars",23700]
["Courmelles","02200",null,null,null,null,"Saint Astier",24110]
["Cournonterral",34660,null,null,null,null,"Bosset",24130]
["Courtaoult",10130,null,null,null,null,"Calès",24150]
["Courtesoult et Gatey",70600,null,null,null,null,"Saint Médard d'Excideuil",24160]
["Courville",51170,null,null,null,null,"Saint Pompont",24170]
["Coussa","09120",null,null,null,null,"Saint Germain du Salembre",24190]
["Coutens","09500",null,null,null,null,"Bars",24210]
["Couvrelles","02220",null,null,null,null,"Montcaret",24230]
["Coyviller",54210,null,null,null,null,"Saussignac",24240]
["Cramchaban",17170,null,null,null,null,"Saint Aubin de Nabirat",24250]
["Cravanche",90300,null,null,null,null,"Sergeac",24290]
["Créchets",65370,null,null,null,null,"Biras",24310]
["Crempigny Bonneguête",74150,null,null,null,null,"La Chapelle Grésignac",24320]
["Crépand",21500,null,null,null,null,"Verteillac",24320]
["Crespin",59154,null,null,null,null,"Les Graulges",24340]
["Creuë",55210,null,null,null,null,"Saint Barthélemy de Bussière",24360]
["Creyers",26410,null,null,null,null,"Fouleix",24380]
["Cricqueville en Bessin",14450,null,null,null,null,"Granges d'Ans",24390]
["Crocy",14620,null,null,null,null,"Puymangou",24410]
["Croix",59170,null,null,null,null,"Born de Champs",24440]
["Cros",63810,null,null,null,null,"Négrondes",24460]
["Crosne",91560,null,null,null,null,"Molières",24480]
["Crouseilles",64350,null,null,null,null,"Serres et Montguyard",24500]
["Crugny",51170,null,null,null,null,"Saint Pancrace",24530]
["Cubièrettes",48190,null,null,null,null,"Mazeyrolles",24550]
["Cudos",33430,null,null,null,null,"Monmarvès",24560]
["Cuiseaux",71480,null,null,null,null,"Petit Bersac",24600]
["Culmont",52600,null,null,null,null,"Peyzac le Moustier",24620]
["Cumières le Mort Homme",55100,null,null,null,null,"Cubjac",24640]
["Curdin",71130,null,null,null,null,"Cornille",24750]
["Curmont",52330,null,null,null,null,"Saint Paul la Roche",24800]
["Cussy",14400,null,null,null,null,"Pont lès Moulins",25110]
["Cuverville",14840,null,null,null,null,"Villers le Lac",25130]
["Cuzieu","01300",null,null,null,null,"Vermondans",25150]
["Dalou","09120",null,null,null,null,"Lantenne Vertière",25170]
["Damerey",71620,null,null,null,null,"Montancy",25190]
["Damloup",55400,null,null,null,null,"Noirefontaine",25190]
["Dampierre en Graçay",18310,null,null,null,null,"Mont de Laval",25210]
["Dampierre sur Boutonne",17470,null,null,null,null,"Vaire le Petit",25220]
["Danestal",14430,null,null,null,null,"Étrappe",25250]
["Dannemarie",25310,null,null,null,null,"Soye",25250]
["Darmannes",52700,null,null,null,null,"Rurey",25290]
["Davayat",63200,null,null,null,null,"Abbans Dessous",25320]
["Dehéries",59127,null,null,null,null,"Déservillers",25330]
["Deluz",25960,null,null,null,null,"Reugney",25330]
["Dercé",86420,null,null,null,null,"Nancray",25360]
["Destord",88600,null,null,null,null,"Charmoille",25380]
["Dettwiller",67490,null,null,null,null,"Rosureux",25380]
["Devèze",65230,null,null,null,null,"Exincourt",25400]
["Dieffenthal",67650,null,null,null,null,"Servin",25430]
["Dieulefit",26220,null,null,null,null,"Fourg",25440]
["Dimancheville",45390,null,null,null,null,"Belfays",25470]
["Dingy Saint Clair",74230,null,null,null,null,"Urtière",25470]
["Dizy",51200,null,null,null,null,"Adam lès Vercel",25530]
["Dolcourt",54170,null,null,null,null,"Laire",25550]
["Dolmayrac",47110,null,null,null,null,"Boujailles",25560]
["Dombasle devant Darney",88260,null,null,null,null,"Lavans Vuillafans",25580]
["Domfront",61700,null,null,null,null,"Blarians",25640]
["Dommartin Dampierre",51800,null,null,null,null,"Rigney",25640]
["Dommiers","02600",null,null,null,null,"La Vèze",25660]
["Dompierre les Églises",87190,null,null,null,null,"Gondenans les Moulins",25680]
["Don",59272,null,null,null,null,"Pugey",25720]
["Doncourt lès Longuyon",54620,null,null,null,null,"Franois",25770]
["Donville les Bains",50350,null,null,null,null,"Moncey",25870]
["Dorlisheim",67120,null,null,null,null,"Chaudebonne",26110]
["Doucier",39130,null,null,null,null,"Montmeyran",26120]
["Doulezon",33350,null,null,null,null,"Laval d'Aix",26150]
["Douville en Auge",14430,null,null,null,null,"Pont de Barret",26160]
["Douzillac",24190,null,null,null,null,"La Roche sur le Buis",26170]
["Dreuil lès Molliens",80540,null,null,null,null,"Épinouze",26210]
["Drignac",15700,null,null,null,null,"Comps",26220]
["Droupt Sainte Marie",10170,null,null,null,null,"Mureils",26240]
["Druyes les Belles Fontaines",89560,null,null,null,null,"Mirmande",26270]
["Dunes",82340,null,null,null,null,"Lesches en Diois",26310]
["Durbans",46320,null,null,null,null,"Chalançon",26340]
["Durtol",63830,null,null,null,null,"Saint Bonnet de Valclérieux",26350]
["Eaux Bonnes",64440,null,null,null,null,"Eurre",26400]
["Échalou",61440,null,null,null,null,"Saint Martin en Vercors",26420]
["Échavanne",70400,null,null,null,null,"Bézaudun sur Bîne",26460]
["Échilleuses",45390,null,null,null,null,"Chauvac",26510]
["Écluzelles",28500,null,null,null,null,"Izon la Bruisse",26560]
["Écourt Saint Quentin",62860,null,null,null,null,"Serves sur Rhône",26600]
["Écublé",28170,null,null,null,null,"Châtillon Saint Jean",26750]
["Effincourt",52300,null,null,null,null,"La Baume de Transit",26790]
["Egliseneuve d'Entraigues",63850,null,null,null,null,"Évreux",27000]
["Élencourt",60210,null,null,null,null,"Venon",27110]
["Elise Daucourt",51800,null,null,null,null,"Boncourt",27120]
["Empuré",16240,null,null,null,null,"Bouchevilliers",27150]
["Encausse",32430,null,null,null,null,"Coudray",27150]
["Engwiller",67350,null,null,null,null,"Guernanville",27160]
["Entrains sur Nohain",58410,null,null,null,null,"Le Tilleul Othon",27170]
["Entressen",13118,null,null,null,null,"Saint Sébastien de Morsent",27180]
["Épénancourt",80190,null,null,null,null,"Conteville",27210]
["Épiais Rhus",95810,null,null,null,null,"Foucrainville",27220]
["Épinonville",55270,null,null,null,null,"Favril",27230]
["Epping",57720,null,null,null,null,"Chanteloup",27240]
["Éraines",14700,null,null,null,null,"Chambord",27250]
["Erbrée",35500,null,null,null,null,"Rugles",27250]
["Érin",62134,null,null,null,null,"La Chapelle Gauthier",27270]
["Ermont",95120,null,null,null,null,"Illeville sur Montfort",27290]
["Erstroff",57660,null,null,null,null,"Caumont",27310]
["Escanecrabe",31350,null,null,null,null,"Gisay la Coudre",27330]
["Esclassan Labastide",32140,null,null,null,null,"Fouqueville",27370]
["Escosse","09100",null,null,null,null,"Saint Ouen de Pontcheuil",27370]
["Escoulis",31260,null,null,null,null,"Amfreville sous les Monts",27380]
["Eslourenties Daban",64420,null,null,null,null,"Verneusses",27390]
["Espaon",32220,null,null,null,null,"Surtauville",27400]
["Espeluche",26780,null,null,null,null,"Authevernes",27420]
["Espondeilhan",34290,null,null,null,null,"Saint Georges du Vièvre",27450]
["Esse",16500,null,null,null,null,"Authouillet",27490]
["Essômes sur Marne","02400",null,null,null,null,"Fontenay",27510]
["Esteil",63570,null,null,null,null,"Theillement",27520]
["Esternay",51310,null,null,null,null,"Fontaine la Soret",27550]
["Estouches",91660,null,null,null,null,"Pitres",27590]
["Estrées Mons",80200,null,null,null,null,"Dampsmesnil",27630]
["Étaing",62156,null,null,null,null,"Bosnormand",27670]
["Étercy",74150,null,null,null,null,"Dangu",27720]
["Étouvelles","02000",null,null,null,null,"Malleville sur le Bec",27800]
["Étrépagny",27150,null,null,null,null,"es Hogues",27910]
["Ettendorf",67350,null,null,null,null,"Guichainville",27930]
["Éturqueraye",27350,null,null,null,null,"Le Boulay Morin",27930]
["Évaux et Ménil",88450,null,null,null,null,"La Chapelle Réanville",27950]
["Évres",55250,null,null,null,null,"Ermenonville la Grande",28120]
["Exoudun",79800,null,null,null,null,"Hanches",28130]
["Eyrein",19800,null,null,null,null,"Tillay le Péneux",28140]
["Fâchin",58430,null,null,null,null,"Dangeau",28160]
["Falaise","08400",null,null,null,null,"Maillebois",28170]
["Fanlac",24290,null,null,null,null,"Orrouer",28190]
["Faramans","01800",null,null,null,null,"Saint Georges sur Eure",28190]
["Farnay",42320,null,null,null,null,"Saint Denis les Ponts",28200]
["Fauverney",21110,null,null,null,null,"Romilly sur Aigre",28220]
["Faverges de la Tour",38110,null,null,null,null,"Montlandon",28240]
["Favières",28170,null,null,null,null,"Guainville",28260]
["Fayet",12360,null,null,null,null,"Châtillon en Dunois",28290]
["Fegersheim",67640,null,null,null,null,"Saint Germain la Gâtine",28300]
["Félines","07340",null,null,null,null,"Poinville",28310]
["Felletin",23500,null,null,null,null,"Gallardon",28320]
["Fépin","08170",null,null,null,null,"Morvilliers",28340]
["Ferrières",80470,null,null,null,null,"Argenvilliers",28420]
["Ferrières en Bray",76220,null,null,null,null,"La Croix du Perche",28480]
["Fesches le Châtel",25490,null,null,null,null,"Ouerre",28500]
["Feuillade",16380,null,null,null,null,"Ardelu",28700]
["Fiefs",62134,null,null,null,null,"Orlu",28700]
["Fillières",54560,null,null,null,null,"Montboissier",28800]
["Flabeuville",54260,null,null,null,null,"Saint Yvy",29140]
["Flainval",54110,null,null,null,null,"Gouézec",29190]
["Flaugnac",46170,null,null,null,null,"Plougoulm",29250]
["Flavignac",87230,null,null,null,null,"Kernouës",29260]
["Flée",21140,null,null,null,null,"Lanrivoaré",29290]
["Fleurey sur Ouche",21410,null,null,null,null,"Bodilis",29400]
["Fleury les Aubrais",45400,null,null,null,null,"Plouescat",29430]
["Flirey",54470,null,null,null,null,"Guipavas",29490]
["Florimont",90100,null,null,null,null,"Plonévez Porzay",29550]
["Foissac",30700,null,null,null,null,"Plouigneau",29610]
["Folschviller",57730,null,null,null,null,"Taulé",29670]
["Foncine le Haut",39460,null,null,null,null,"Locmaria Berrien",29690]
["Fontaine",10200,null,null,null,null,"Plobannalec",29740]
["Fontaine l'Abbé",27300,null,null,null,null,"Trémaouézan",29800]
["Fontaine l'Etalon",62390,null,null,null,null,"Plouvien",29860]
["Fontaines",71150,null,null,null,null,"Ile de Sein",29990]
["Fontangy",21390,null,null,null,null,"Le Vigan",30120]
["Fontenay aux Roses",92260,null,null,null,null,"Carsan",30130]
["Fontenay sur Mer",50310,null,null,null,null,"Tornac",30140]
["Fontenelle","02170",null,null,null,null,"Bordezac",30160]
["Fonteny",39110,null,null,null,null,"Dions",30190]
["Forceville en Vimeu",80140,null,null,null,null,"Castillon du Gard",30210]
["Forléans",21460,null,null,null,null,"Salinelles",30250]
["Fosse",66220,null,null,null,null,"L'Ardoise",30290]
["Fouchécourt",70160,null,null,null,null,"Saint André d'Olérargues",30330]
["Fougères",35133,null,null,null,null,"Lédignan",30350]
["Foulognes",14240,null,null,null,null,"Saint Jean de Ceyrargues",30360]
["Fouquerolles",60510,null,null,null,null,"Domazan",30390]
["Fourneaux",50420,null,null,null,null,"Génolhac",30450]
["Fours",58250,null,null,null,null,"Saint Denis",30500]
["Fraisnes en Saintois",54930,null,null,null,null,"Gallician",30600]
["Francarville",31460,null,null,null,null,"Franquevaux",30640]
["Francilly Selency","02760",null,null,null,null,"Serviers et Labaume",30700]
["Frangy",74270,null,null,null,null,"Dourbies",30750]
["Frans","01480",null,null,null,null,"Salazac",30760]
["Frayssinet",46310,null,null,null,null,"Saint Jean de Valériscle",30960]
["Fréjus",83600,null,null,null,null,"Moustajon",31110]
["Frénois",88270,null,null,null,null,"Fonbeauzard",31140]
["Fresne le Plan",76520,null,null,null,null,"Cabanac Cazaux",31160]
["Fresnières",60310,null,null,null,null,"Rouffiac Tolosan",31180]
["Fressancourt","02800",null,null,null,null,"Clarac",31210]
["Frétigny",28480,null,null,null,null,"Le Plan",31220]
["Frévent",62270,null,null,null,null,"Saint Julien",31220]
["Fricourt",80300,null,null,null,null,"Molas",31230]
["Froidos",55120,null,null,null,null,"Montsaunès",31260]
["Frontenay Rohan Rohan",79270,null,null,null,null,"Saint Germier",31290]
["Frouzins",31270,null,null,null,null,"Gouzens",31310]
["Furmeyer","05400",null,null,null,null,"Ondes",31330]
["Gabriac",12340,null,null,null,null,"Lunax",31350]
["Gaillard",74240,null,null,null,null,"Laffite Toupière",31360]
["Galié",31510,null,null,null,null,"Savères",31370]
["Gandrange",57175,null,null,null,null,"Salles sur Garonne",31390]
["Ganties",31160,null,null,null,null,"Mauzac",31410]
["Gardonne",24680,null,null,null,null,"Terrebasse",31420]
["Garidech",31380,null,null,null,null,"Saint Élix le Château",31430]
["Gas",28320,null,null,null,null,"Signac",31440]
["Gaud",31440,null,null,null,null,"Pouze",31450]
["Gauville",80590,null,null,null,null,"Vendine",31460]
["Geay",79330,null,null,null,null,"Puysségur",31480]
["Gelles",63740,null,null,null,null,"Saint Bertrand de Comminges",31510]
["Gémages",61130,null,null,null,null,"Bellegarde Sainte Marie",31530]
["Générac",30510,null,null,null,null,"Gaillac Toulza",31550]
["Génillé",37460,null,null,null,null,"Balesta",31580]
["Genouillac",16270,null,null,null,null,"Muret",31600]
["Géovreisset","01100",null,null,null,null,"Beauzelle",31700]
["Gergny","02260",null,null,null,null,"Pointis Inard",31800]
["Germigny l'Evêque",77910,null,null,null,null,"Villate",31860]
["Gertwiller",67140,null,null,null,null,"Cravencères",32110]
["Gerzat",63360,null,null,null,null,"Nogaro",32110]
["Gez",65400,null,null,null,null,"Cazaux Savès",32130]
["Gidy",45520,null,null,null,null,"Chélan",32140]
["Gigney",88390,null,null,null,null,"Jû Belloc",32160]
["Gillois",39250,null,null,null,null,"Mont de Marrast",32170]
["Ginestas",11120,null,null,null,null,"Séailles",32190]
["Giriviller",54830,null,null,null,null,"Montadet",32220]
["Giscaro",32200,null,null,null,null,"Laveraët",32230]
["Givarlais","03190",null,null,null,null,"Tourdun",32230]
["Givron","08220",null,null,null,null,"Labarrère",32250]
["Glanon",21250,null,null,null,null,"Castelnavet",32290]
["Glomel",22110,null,null,null,null,"Loubersan",32300]
["Goès",64400,null,null,null,null,"Sainte Aurence Cazaux",32300]
["Gommerville",76430,null,null,null,null,"Peyrecave",32340]
["Gondrexon",54450,null,null,null,null,"Sainte Christie d'Armagnac",32370]
["Gonfreville Caillot",76110,null,null,null,null,"Estramiac",32380]
["Gorniès",34190,null,null,null,null,"Corneillan",32400]
["Gouaix",77114,null,null,null,null,"Saint Mont",32400]
["Goujounac",46250,null,null,null,null,"Cologne",32430]
["Gourdièges",15230,null,null,null,null,"Sémézies Cachan",32450]
["Gournay le Guérin",27580,null,null,null,null,"Castelnau d'Arbieu",32500]
["Gouvets",50420,null,null,null,null,"Monbrun",32600]
["Gouzangrez",95450,null,null,null,null,"Beccas",32730]
["Goven",35580,null,null,null,null,"Ayzieu",32800]
["Gramazie",11240,null,null,null,null,"Arcachon",33120]
["Grand Brassac",24350,null,null,null,null,"Le Tuzan",33125]
["Grandchamp Le Château",14140,null,null,null,null,"Vertheuil",33180]
["Grandouet",14340,null,null,null,null,"Mongauzy",33190]
["Grandvillers",88600,null,null,null,null,"Langon",33210]
["Granieu",38490,null,null,null,null,"Saint Quentin de Caplong",33220]
["Grauves",51190,null,null,null,null,"La Lande de Fronsac",33240]
["Gredisans",39290,null,null,null,null,"Le Pian Médoc",33290]
["Grenade",31330,null,null,null,null,"Saint Émilion",33330]
["Greuville",76810,null,null,null,null,"Mouliets et Villemartin",33350]
["Grez",60210,null,null,null,null,"Saint Philippe d'Aiguille",33350]
["Grièges","01290",null,null,null,null,"Biganos",33380]
["Grimbosq",14220,null,null,null,null,"Donzac",33410]
["Grivy Loisy","08400",null,null,null,null,"Moulon",33420]
["Grosley sur Risle",27170,null,null,null,null,"Sauviac",33430]
["Grun Bordas",24380,null,null,null,null,"Caudrot",33490]
["Guagno",20160,null,null,null,null,"Sainte Foy la Longue",33490]
["Guengat",29180,null,null,null,null,"Saint Martin du Puy",33540]
["Guêprei",61160,null,null,null,null,"Le Tourne",33550]
["Guéron",14400,null,null,null,null,"Dieulivol",33580]
["Gugney aux Aulx",88450,null,null,null,null,"Marcenais",33620]
["Guiler sur Goyen",29710,null,null,null,null,"Porchères",33660]
["Guilmécourt",76630,null,null,null,null,"Cauvignac",33690]
["Guiseniers",27700,null,null,null,null,"Teuillac",33710]
["Guivry","02300",null,null,null,null,"Virelade",33720]
["Gunstett",67360,null,null,null,null,"Saint Germain du Puch",33750]
["Guyencourt Saulcourt",80240,null,null,null,null,"Soulignac",33760]
["Hâcourt",52150,null,null,null,null,"Saint Ciers sur Gironde",33820]
["Haims",86310,null,null,null,null,"Bonzac",33910]
["Hallu",80320,null,null,null,null,"Audenge",33980]
["Hames Boucres",62340,null,null,null,null,"Mauguio",34130]
["Handschuheim",67117,null,null,null,null,"Saint Guilhem le Désert",34150]
["Haravilliers",95640,null,null,null,null,"Saint Bauzille de Putois",34190]
["Harcourt",27800,null,null,null,null,"Cassagnoles",34210]
["Hargicourt","02420",null,null,null,null,"Aumelas",34230]
["Hartmannswiller",68500,null,null,null,null,"Camplong",34260]
["Haucourt",60112,null,null,null,null,"Espondeilhan",34290]
["Haussonville",54290,null,null,null,null,"Néffiès",34320]
["Haute Kontz",57480,null,null,null,null,"Prades sur Vernazobre",34360]
["Hautefort",24390,null,null,null,null,"Saint Martin de Londres",34380]
["Hautot Saint Sulpice",76190,null,null,null,null,"Nissan lez Enserune",34440]
["Hautvillers Ouville",80132,null,null,null,null,"Autignac",34480]
["Haynecourt",59265,null,null,null,null,"Le Caylar",34520]
["Hégenheim",68220,null,null,null,null,"Saussan",34570]
["Hellenvilliers",27240,null,null,null,null,"Joncels",34650]
["Hendecourt lès Cagnicourt",62182,null,null,null,null,"Poujols",34700]
["Herbécourt",80200,null,null,null,null,"Celles",34800]
["Herbitzheim",67260,null,null,null,null,"Péret",34800]
["Herm",40990,null,null,null,null,"Baguer Pican",35120]
["Hermelinghen",62132,null,null,null,null,"La Boussac",35120]
["Herpont",51460,null,null,null,null,"Billé",35133]
["Hesbécourt",80240,null,null,null,null,"Bédée",35137]
["Heudicourt",80122,null,null,null,null,"Breteil",35160]
["Heurtevent",14140,null,null,null,null,"Trimer",35190]
["Hindlingen",68580,null,null,null,null,"Andouillé Neuville",35250]
["Hirtzfelden",68740,null,null,null,null,"Combourg",35270]
["Holnon","02760",null,null,null,null,"Saulnières",35320]
["Honnecourt sur Escaut",59266,null,null,null,null,"Saint Uniac",35360]
["Hostias","01110",null,null,null,null,"Paramé",35400]
["Houdain",62150,null,null,null,null,"Ossé",35410]
["Houilles",78800,null,null,null,null,"Feins",35440]
["Houssaye Béranger",76690,null,null,null,null,"La Noë Blanche",35470]
["Huest",27930,null,null,null,null,"Melesse",35520]
["Huisseau sur Cosson",41350,null,null,null,null,"Pipriac",35550]
["Hure",33190,null,null,null,null,"Roz sur Couesnon",35610]
["Ichtratzheim",67640,null,null,null,null,"Langon",35660]
["Igornay",71540,null,null,null,null,"Saint Gonlay",35750]
["Ile de Batz",29253,null,null,null,null,"Dinard",35800]
["Illeville sur Montfort",27290,null,null,null,null,"Brives",36100]
["Imphy",58160,null,null,null,null,"Brion",36110]
["Ingwiller",67340,null,null,null,null,"La Buxerette",36140]
["Inxent",62170,null,null,null,null,"Reboursin",36150]
["Isigny le Buat",50540,null,null,null,null,"Vigoux",36170]
["Issarlès","07470",null,null,null,null,"Menetou sur Nahon",36210]
["Issy les Moulineaux",92130,null,null,null,null,"Fougerolles",36230]
["Itteville",91760,null,null,null,null,"Écueillé",36240]
["Ivry le Temple",60173,null,null,null,null,"Chantôme",36270]
["Izotges",32400,null,null,null,null,"Beaulieu",36310]
["Jaligny sur Besbre","03220",null,null,null,null,"Bélâbre",36370]
["Janvilliers",51210,null,null,null,null,"Méobecq",36500]
["Jasney",70800,null,null,null,null,"Saint Médard",36700]
["Jaure",24140,null,null,null,null,"Les Hermites",37110]
["Jeanménil",88700,null,null,null,null,"Verneuil le Château",37120]
["Jebsheim",68320,null,null,null,null,"Essards",37130]
["Joannas","07110",null,null,null,null,"Épeigné les Bois",37150]
["Jonchery sur Vesle",51140,null,null,null,null,"Villaines les Rochers",37190]
["Jonzac",17500,null,null,null,null,"Tavant",37220]
["Joué du Plain",61150,null,null,null,null,"Athée sur Cher",37270]
["Joux",69170,null,null,null,null,"Cormery",37320]
["Joze",63350,null,null,null,null,"Continvoir",37340]
["Juillac le Coq",16130,null,null,null,null,"Louestault",37370]
["Juillan",65290,null,null,null,null,"Neuvy le Roi",37370]
["Julos",65100,null,null,null,null,"Lussault sur Loire",37400]
["Juranville",45340,null,null,null,null,"Chinon",37500]
["Justine Herbigny","08270",null,null,null,null,"La Riche",37520]
["Juvrecourt",54370,null,null,null,null,"Saint Jean Saint Germain",37600]
["Kerfourn",56920,null,null,null,null,"Bonnefamille",38090]
["Kertzfeld",67230,null,null,null,null,"Veurey Voroize",38113]
["Knoeringue",68220,null,null,null,null,"Saint Julien de Raz",38134]
["Knoersheim",67310,null,null,null,null,"Paladru",38137]
["Kuttolsheim",67520,null,null,null,null,"Agnin",38150]
["La Bastide d'Engras",30330,null,null,null,null,"Saint Sauveur",38160]
["La Bâtie Montgascon",38110,null,null,null,null,"Sainte Agnès",38190]
["La Belliole",89150,null,null,null,null,"Montchaboud",38220]
["La Boissière sur Evre",49110,null,null,null,null,"Gillonnay",38260]
["La Bréole","04340",null,null,null,null,"Marcollin",38270]
["La Cabanasse",66210,null,null,null,null,"Domarin",38300]
["La Caunette",34210,null,null,null,null,"Poisat",38320]
["La Cellette",23350,null,null,null,null,"Saint Honoré",38350]
["La Chaise Dieu",43160,null,null,null,null,"Susville",38350]
["La Chapelle au Riboul",53440,null,null,null,null,"Charette",38390]
["La Chapelle Craonnaise",53230,null,null,null,null,"Meyrieu les Etangs",38440]
["La Chapelle en Vercors",26420,null,null,null,null,"Siccieu Saint Julien et Carisie",38460]
["La Chapelle Hugon",18150,null,null,null,null,"Varacieux",38470]
["La Chapelle Montabourlet",24320,null,null,null,null,"Chimilin",38490]
["La Chapelle Saint Martial",23250,null,null,null,null,"Vénosc",38520]
["La Chapelle sur Coise",69590,null,null,null,null,"Champ sur Drac",38560]
["La Chapelle sur Oreuse",89260,null,null,null,null,"Morêtel de Mailles",38570]
["La Charce",26470,null,null,null,null,"Fontaine",38600]
["La Chaux",71310,null,null,null,null,"Saint Andéol",38650]
["La Colle sur Loup","06480",null,null,null,null,"Belmont",38690]
["La Cour Marigny",45260,null,null,null,null,"Prébois",38710]
["La Croix Avranchin",50240,null,null,null,null,"L'Alpe d'Huez",38750]
["La Cure",39220,null,null,null,null,"Saint Bonnet de Chavagne",38840]
["La Faute sur Mer",85460,null,null,null,null,"Le Monestier du Percy",38930]
["La Ferté Alais",91590,null,null,null,null,"Sainte Luce",38970]
["La Ferté Gaucher",77320,null,null,null,null,"Authume",39100]
["La Flamengrie","02260",null,null,null,null,"Aresches",39110]
["La Forteresse",38590,null,null,null,null,"Balaiseaux",39120]
["La Garde Adhémar",26700,null,null,null,null,"Barésia sur l'Ain",39130]
["La Godivelle",63850,null,null,null,null,"Le Frasnois",39130]
["La Grève sur Mignon",17170,null,null,null,null,"Desnes",39140]
["La Harengère",27370,null,null,null,null,"Lac des Rouges Truites",39150]
["La Hoguette",14700,null,null,null,null,"Lavans lès Saint Claude",39170]
["La Houssaye en Brie",77610,null,null,null,null,"Ravilloles",39170]
["La Lande sur Eure",61290,null,null,null,null,"La Rixouse",39200]
["La Loupe",28240,null,null,null,null,"Montain",39210]
["La Marche",58400,null,null,null,null,"Les Deux Fays",39230]
["La Milesse",72650,null,null,null,null,"Cézia",39240]
["La Motte Fanjas",26190,null,null,null,null,"Vescles",39240]
["La Neuvelle lès Scey",70360,null,null,null,null,"La Latette",39250]
["La Neuville Vault",60112,null,null,null,null,"Montcusel",39260]
["La Noë Poulain",27560,null,null,null,null,"Alièze",39270]
["La Petite Raon",88210,null,null,null,null,"Sarrogna",39270]
["La Possonnière",49170,null,null,null,null,"Pointre",39290]
["La Renaudie",63930,null,null,null,null,"Pillemoine",39300]
["La Roche Blanche",63670,null,null,null,null,"Andelot Morval",39320]
["La Roche sur Yon",85000,null,null,null,null,"Pagnoz",39330]
["La Rochelle",17000,null,null,null,null,"Pagney",39350]
["La Roussière",27270,null,null,null,null,"Les Rousses",39400]
["La Rouxière",44370,null,null,null,null,"Longchaumois",39400]
["La Séauve sur Semène",43140,null,null,null,null,"Courlans",39570]
["La Suze sur Sarthe",72210,null,null,null,null,"Quintigny",39570]
["La Tour en Jarez",42580,null,null,null,null,"Saint Cyr Montmalin",39600]
["La Trinité","06340",null,null,null,null,"Fraisans",39700]
["La Valla en Gier",42131,null,null,null,null,"Aumont",39800]
["La Vicomté sur Rance",22690,null,null,null,null,"Vaux sur Poligny",39800]
["La Villeneuve en Chevrie",78270,null,null,null,null,"Mont de Marsan",40090]
["Labarthe",32260,null,null,null,null,"Lacquy",40120]
["Labassère",65200,null,null,null,null,"Roquefort",40120]
["Labastide Marnhac",46090,null,null,null,null,"Benesse lès Dax",40180]
["L'Abergement de Varey","01640",null,null,null,null,"Villeneuve de Marsan",40190]
["Lablachère","07230",null,null,null,null,"Saint Geours de Maremne",40230]
["Labrousse",15130,null,null,null,null,"Hauriet",40250]
["Lacapelle Pinet",81340,null,null,null,null,"Renung",40270]
["Lachamp",48100,null,null,null,null,"Orthevielle",40300]
["Lachaussée du Bois d'Ecu",60480,null,null,null,null,"Castelnau Tursan",40320]
["Lacommande",64360,null,null,null,null,"Lauret",40320]
["Ladignac le Long",87500,null,null,null,null,"Donzacq",40360]
["Lafeline","03500",null,null,null,null,"Saint Geours d'Auribat",40380]
["Lagarde",65320,null,null,null,null,"Tartas",40400]
["Lagleygeolle",19500,null,null,null,null,"Gousse",40465]
["Lagraulet Saint Nicolas",31480,null,null,null,null,"Saint Michel Escalus",40550]
["Lahitte Toupière",65700,null,null,null,null,"Lacrabe",40700]
["Lailly en Val",45740,null,null,null,null,"Herm",40990]
["Lainville",78440,null,null,null,null,"Saint Denis sur Loire",41000]
["Lalanne Arqué",32140,null,null,null,null,"Villetrun",41100]
["Lalleyriat","01130",null,null,null,null,"Les Montils",41120]
["Lamanère",66230,null,null,null,null,"Monteaux",41150]
["Lambach",57410,null,null,null,null,"Arville",41170]
["Lamontgie",63570,null,null,null,null,"Saint Étienne des Guérets",41190]
["Lamotte Warfusée",80720,null,null,null,null,"Saint Laurent Nouan",41220]
["Lancieux",22770,null,null,null,null,"Villermain",41240]
["Landange",57830,null,null,null,null,"Mont près Chambord",41250]
["Landevieille",85220,null,null,null,null,"Villeneuve Frouville",41290]
["Landrais",17290,null,null,null,null,"Saint Amand Longpré",41310]
["Landujan",35360,null,null,null,null,"Huisseau sur Cosson",41350]
["Lanfains",22800,null,null,null,null,"Talcy",41370]
["Langourla",22330,null,null,null,null,"Suèvres",41500]
["Lanloup",22580,null,null,null,null,"Bonneveau",41800]
["Lanne Soubiran",32110,null,null,null,null,"Les Essarts",41800]
["Lanobre",15270,null,null,null,null,"Civens",42110]
["Lanterne et les Armonts",70270,null,null,null,null,"Cordelle",42123]
["Lanty sur Aube",52120,null,null,null,null,"Sainte Agathe la Bouteresse",42130]
["Lapanouse de Cernon",12230,null,null,null,null,"Lentigny",42155]
["Lapouyade",33620,null,null,null,null,"Boisset lès Montrond",42210]
["Larche",19600,null,null,null,null,"Bussy Albieux",42260]
["Larivière Arnoncourt",52400,null,null,null,null,"Crozet",42310]
["Larnat","09310",null,null,null,null,"Cellieu",42320]
["Larrau",64560,null,null,null,null,"Arcon",42370]
["Lasbordes",11400,null,null,null,null,"Champoly",42430]
["Lasse",49490,null,null,null,null,"Saint Priest la Vêtre",42440]
["Lassy",14770,null,null,null,null,"Balbigny",42510]
["Laubach",67580,null,null,null,null,"Margerie Chantagret",42560]
["Laurac",11270,null,null,null,null,"Lérigneux",42600]
["Laussou",47150,null,null,null,null,"Pradines",42630]
["Laval Morency","08150",null,null,null,null,"Pouilly sous Charlieu",42720]
["Lavans Quingey",25440,null,null,null,null,"Sainte Croix en Jarez",42800]
["Lavau",89170,null,null,null,null,"Châtelneuf",42940]
["Lavazan",33690,null,null,null,null,"Cohade",43100]
["Lavernoy",52140,null,null,null,null,"Saint Pierre du Champ",43130]
["Lavit",82120,null,null,null,null,"Malvières",43160]
["Lazenay",18120,null,null,null,null,"Saint Julien du Pinet",43200]
["Le Bellay en Vexin",95750,null,null,null,null,"Josat",43230]
["Le Born",31340,null,null,null,null,"Monlet",43270]
["Le Bouchet Saint Nicolas",43510,null,null,null,null,"Chastel",43300]
["Le Breuil",69620,null,null,null,null,"Vergezac",43320]
["Le Breuil sur Couze",63340,null,null,null,null,"Rauret",43340]
["Le Cannet","06110",null,null,null,null,"Ally",43380]
["Le Champ de la Pierre",61320,null,null,null,null,"Chaudeyrolles",43430]
["Le Châtellier",35470,null,null,null,null,"Vielprat",43490]
["Le Cloître Pleyben",29190,null,null,null,null,"Croisances",43580]
["Le Cuing",31210,null,null,null,null,"Malrevers",43800]
["Le Doulieu",59940,null,null,null,null,"Saint Aubin des Châteaux",44110]
["Le Fayet",74190,null,null,null,null,"Fay de Bretagne",44130]
["Le Freney d'Oisans",38142,null,null,null,null,"Abbaretz",44170]
["Le Girouard",85150,null,null,null,null,"La Chapelle sur Erdre",44240]
["Le Guédéniau",49150,null,null,null,null,"Arthon en Retz",44320]
["Le Hézo",56450,null,null,null,null,"Cordemais",44360]
["Le Lindois",16310,null,null,null,null,"Assérac",44410]
["Le Manoir",14400,null,null,null,null,"Mauves sur Loire",44470]
["Le Masnau Massuguiès",81530,null,null,null,null,"La Roche Blanche",44522]
["Le Meix Tiercelin",51320,null,null,null,null,"Saint Sulpice des Landes",44540]
["Le Mesnil Amey",50570,null,null,null,null,"La Montagne",44620]
["Le Mesnil Eudes",14100,null,null,null,null,"Saint Julien de Vouvantes",44670]
["Le Mesnil sous Jumièges",76480,null,null,null,null,"Brains",44830]
["Le Miroir",71480,null,null,null,null,"Cepoy",45120]
["Le Neubourg",27110,null,null,null,null,"Darvoy",45150]
["Le Perchay",95450,null,null,null,null,"Amilly",45200]
["Le Petit Fougeray",35320,null,null,null,null,"Louzouer",45210]
["Le Pin",44540,null,null,null,null,"Melleroy",45220]
["Le Plessier sur Bulles",60130,null,null,null,null,"Ménestreau en Villette",45240]
["Le Plessis Placy",77440,null,null,null,null,"Bellegarde",45270]
["Le Port","09320",null,null,null,null,"Courcelles",45300]
["Le Puech",34700,null,null,null,null,"Pannecières",45300]
["Le Revest les Eaux",83200,null,null,null,null,"Ervauville",45320]
["Le Russey",25210,null,null,null,null,"Gaubertin",45340]
["Le Soler",66270,null,null,null,null,"Jouy le Potier",45370]
["Le Tartre",71330,null,null,null,null,"Dimancheville",45390]
["Le Thillot",88160,null,null,null,null,"Dammarie en Puisaye",45420]
["Le Torp Mesnil",76560,null,null,null,null,"Allainville en Beauce",45480]
["Le Val d'Ajol",88340,null,null,null,null,"Gien",45500]
["Le Vaumain",60590,null,null,null,null,"Combreux",45530]
["Le Vieux Cérier",16350,null,null,null,null,"Cortrat",45700]
["Léaupartie",14340,null,null,null,null,"Combleux",45800]
["Léchelle",77171,null,null,null,null,"Le Montat",46090]
["Leffond",70600,null,null,null,null,"Bétaille",46110]
["Leignes sur Fontaine",86300,null,null,null,null,"Saint Bressou",46120]
["Lelling",57660,null,null,null,null,"Bretenoux",46130]
["Lempire aux Bois",55100,null,null,null,null,"Belaye",46140]
["Lenoncourt",54110,null,null,null,null,"Montgesty",46150]
["Lépinas",23150,null,null,null,null,"Sainte Alauzie",46170]
["Léré",18240,null,null,null,null,"Pinsac",46200]
["Les Andelys",27700,null,null,null,null,"Laburgade",46230]
["Les Baumettes",13009,null,null,null,null,"Beauregard",46260]
["Les Bouchoux",39370,null,null,null,null,"Fajoles",46300]
["Les Cammazes",81540,null,null,null,null,"Saint Cirq Souillaguet",46300]
["Les Chéris",50220,null,null,null,null,"Espédaillac",46320]
["Les Écharmeaux",69870,null,null,null,null,"Sauliac sur Célé",46330]
["Les Fontenelles",25210,null,null,null,null,"Saint Céré",46400]
["Les Goudes",13008,null,null,null,null,"Lavergne",46500]
["Les Herbiers",85500,null,null,null,null,"Floressas",46700]
["Les Loges Margueron",10210,null,null,null,null,"Saux",46800]
["Les Mesneux",51370,null,null,null,null,"Saint Pierre sur Dropt",47120]
["Les Mollettes",73800,null,null,null,null,"Port Sainte Marie",47130]
["Les Ollières",74370,null,null,null,null,"Lacaussade",47150]
["Les Pieux",50340,null,null,null,null,"Villefranche du Queyran",47160]
["Les Roches de Condrieu",38370,null,null,null,null,"Longueville",47200]
["Les Salins d'Hyères",83400,null,null,null,null,"Mazières Naresse",47210]
["Les Villettes",43600,null,null,null,null,"Lafox",47240]
["Lescouët Jugon",22270,null,null,null,null,"La Sauvetat de Savères",47270]
["Lesparre Médoc",33340,null,null,null,null,"Saint Pastour",47290]
["Lespouey",65190,null,null,null,null,"Moncaut",47310]
["Lesson",85490,null,null,null,null,"Ferrensac",47330]
["Léthuin",28700,null,null,null,null,"Peyrière",47350]
["Leury","02880",null,null,null,null,"Montastruc",47380]
["Lèves et Thoumeyragues",33220,null,null,null,null,"Varès",47400]
["Leyritz Moncassin",47700,null,null,null,null,"Bajamont",47480]
["Lézigneux",42600,null,null,null,null,"Lasserre",47600]
["Lhôpital","01420",null,null,null,null,"Armillac",47800]
["L'Hospitalet","04150",null,null,null,null,"Barjac",48000]
["Liancourt Fosse",80700,null,null,null,null,"Gabrias",48100]
["Liederschiedt",57230,null,null,null,null,"Javols",48130]
["Liettres",62145,null,null,null,null,"Saint Julien des Points",48160]
["Lièvremont",25650,null,null,null,null,"Le Bleymard",48190]
["Lignéville",88800,null,null,null,null,"Chanac",48230]
["Ligny en Brionnais",71110,null,null,null,null,"Fontanès",48300]
["L'Île d'Olonne",85340,null,null,null,null,"Les Hermaux",48340]
["Limanton",58290,null,null,null,null,"Les Vanels",48400]
["Limetz Villez",78270,null,null,null,null,"La Tieule",48500]
["Linas",91310,null,null,null,null,"Saint Gal",48700]
["Liniez",36150,null,null,null,null,"Montrevault",49110]
["Liouc",30260,null,null,null,null,"Le May sur Èvre",49122]
["Lisle en Rigault",55000,null,null,null,null,"Montreuil sur Loir",49140]
["Lisseuil",63440,null,null,null,null,"Saint Quentin lès Beaurepaire",49150]
["Lithaire",50250,null,null,null,null,"Behuard",49170]
["Lizines",77650,null,null,null,null,"Corné",49250]
["Lochwiller",67440,null,null,null,null,"Saint Macaire du Bois",49260]
["Locmariaquer",56740,null,null,null,null,"Saint Christophe la Couperie",49270]
["Lodes",31800,null,null,null,null,"Cerqueux sous Passavant",49310]
["Lohuec",22160,null,null,null,null,"Saint Sulpice",49320]
["Lolme",24540,null,null,null,null,"Trèves Cunault",49350]
["Lonçon",64410,null,null,null,null,"La Breille les Pins",49390]
["Longchamps",27150,null,null,null,null,"Saumur",49400]
["Longjumeau",91160,null,null,null,null,"Roussay",49450]
["Longueil Annel",60150,null,null,null,null,"Lasse",49490]
["Longuesse",95450,null,null,null,null,"Aviré",49500]
["Longwy",54400,null,null,null,null,"Bouillé Ménard",49520]
["Lor","02190",null,null,null,null,"Fontevraud l'Abbaye",49590]
["Lormaye",28210,null,null,null,null,"Ambillou Château",49700]
["Lothey",29190,null,null,null,null,"Turquant",49730]
["Loubejac",24550,null,null,null,null,"Chazé Henry",49860]
["Louesme",21520,null,null,null,null,"Gathemo",50150]
["Loupfougères",53700,null,null,null,null,"Boucey",50170]
["Loupiac de la Réole",33190,null,null,null,null,"Moidrey",50170]
["Lournand",71250,null,null,null,null,"Saint Germain sur Sèves",50190]
["Louvencourt",80560,null,null,null,null,"Saussey",50200]
["Louvilliers lès Perche",28250,null,null,null,null,"Précey",50220]
["Lozay",17330,null,null,null,null,"Houtteville",50250]
["Luby Betmont",65220,null,null,null,null,"Surville",50250]
["Luchat",17600,null,null,null,null,"Coudeville sur Mer",50290]
["Ludesse",63320,null,null,null,null,"Éroudeville",50310]
["Luemschwiller",68720,null,null,null,null,"Montebourg",50310]
["Luigné",49320,null,null,null,null,"Le Tanu",50320]
["Lunel Viel",34400,null,null,null,null,"Bricquebosq",50340]
["Lurcy","01090",null,null,null,null,"Picauville",50360]
["Lusigny sur Ouche",21360,null,null,null,null,"Hautteville Bocage",50390]
["Lussat",23170,null,null,null,null,"Le Guislain",50410]
["Luzancy",77138,null,null,null,null,"Beaumont Hague",50440]
["Lynde",59173,null,null,null,null,"Le Mesnil Bonant",50450]
["Lyon 4",69004,null,null,null,null,"Saint Denis le Gast",50450]
["Machault","08310",null,null,null,null,"Hiesville",50480]
["Mâcot la Plagne",73210,null,null,null,null,"Baupte",50500]
["Maennolsheim",67700,null,null,null,null,"Lengronne",50510]
["Magnet","03260",null,null,null,null,"Montviron",50530]
["Magny",28120,null,null,null,null,"Anneville sur Mer",50560]
["Magstatt le Bas",68510,null,null,null,null,"Lapenty",50600]
["Maignaut Tauzia",32310,null,null,null,null,"Parigny",50600]
["Mainfonds",16250,null,null,null,null,"Hyenville",50660]
["Maing",59233,null,null,null,null,"Lingreville",50660]
["Maison Feyne",23800,null,null,null,null,"Hardinvast",50690]
["Maisonnay",79500,null,null,null,null,"Urville",50700]
["Maizières",14190,null,null,null,null,"Montfarville",50760]
["Malancourt",55270,null,null,null,null,"La Lande d'Airou",50800]
["Malay le Grand",89100,null,null,null,null,"Fermanville",50840]
["Malintrat",63510,null,null,null,null,"Caurel",51110]
["Malmerspach",68550,null,null,null,null,"Les Essarts lès Sézanne",51120]
["Malvillers",70120,null,null,null,null,"Bergères lès Vertus",51130]
["Mametz",80300,null,null,null,null,"Gionges",51130]
["Manderen",57480,null,null,null,null,"Bouvancourt",51140]
["Maninghem",62650,null,null,null,null,"Louvois",51150]
["Manoncourt en Woëvre",54385,null,null,null,null,"Aougny",51170]
["Manspach",68210,null,null,null,null,"Poilly",51170]
["Marange Silvange",57159,null,null,null,null,"Monthelon",51200]
["Marbéville",52320,null,null,null,null,"Margny",51210]
["Marcenat",15190,null,null,null,null,"Thil",51220]
["Marchais","02350",null,null,null,null,"Connantray Vaurefroy",51230]
["Marchéville",28120,null,null,null,null,"Cernon",51240]
["Marcillat",63440,null,null,null,null,"Saint Germain la Ville",51240]
["Marclopt",42210,null,null,null,null,"Marsangis",51260]
["Marcy l'Étoile",69280,null,null,null,null,"La Chapelle sous Orbais",51270]
["Marest sur Matz",60490,null,null,null,null,"Margerie Hancourt",51290]
["Marey lès Fussey",21700,null,null,null,null,"Couvrot",51300]
["Margny aux Cerises",60310,null,null,null,null,"Merlaut",51300]
["Margueray",50410,null,null,null,null,"Pringy",51300]
["Marignac Laspeyres",31220,null,null,null,null,"Les Essarts le Vicomte",51310]
["Marigny le Cahouet",21150,null,null,null,null,"Saint Ouen Domprot",51320]
["Marles en Brie",77610,null,null,null,null,"Somme Yèvre",51330]
["Marmeaux",89420,null,null,null,null,"Vouillers",51340]
["Marolles",51300,null,null,null,null,"Saint Euphraise et Clairizet",51390]
["Marpaps",40330,null,null,null,null,"Bezannes",51430]
["Marquaix",80240,null,null,null,null,"Courtisols",51460]
["Mars",30120,null,null,null,null,"Nanteuil la Forêt",51480]
["Marsan",32270,null,null,null,null,"Écueil",51500]
["Marseille 12",13012,null,null,null,null,"Fagnières",51510]
["Marsous",65400,null,null,null,null,"Somme Tourbe",51600]
["Martignat","01810",null,null,null,null,"Olizy",51700]
["Martragny",14740,null,null,null,null,"Fontaine en Dormois",51800]
["Mas Blanc des Alpilles",13103,null,null,null,null,"Vienne la Ville",51800]
["Mas d'Auvignon",32700,null,null,null,null,"Ville sur Tourbe",51800]
["Masparraute",64120,null,null,null,null,"Montsaon",52000]
["Massiac",15500,null,null,null,null,"Ambonville",52110]
["Massy",71250,null,null,null,null,"Nully Trémilly",52110]
["Maubec",82500,null,null,null,null,"Attancourt",52130]
["Mauléon",79700,null,null,null,null,"Wassy",52130]
["Maureilhan",34370,null,null,null,null,"Gonaincourt",52150]
["Mauron",56430,null,null,null,null,"Auberive",52160]
["Maury",66460,null,null,null,null,"Colmier le Haut",52160]
["Mauvilly",21510,null,null,null,null,"Vitry en Montagne",52160]
["Mayres Savel",38350,null,null,null,null,"Saint Michel",52190]
["Mazeirat",23150,null,null,null,null,"Courcelles en Montagne",52200]
["Mazet Saint Voy",43520,null,null,null,null,"Bugnières",52210]
["Méasnes",23360,null,null,null,null,"Sauvage Magny",52220]
["Médonville",88140,null,null,null,null,"Saudron",52230]
["Meigneux",80590,null,null,null,null,"Merrey",52240]
["Mélamare",76170,null,null,null,null,"Bettaincourt sur Rognon",52270]
["Mellé",35420,null,null,null,null,"Ferrière et Lafolie",52300]
["Melun",77000,null,null,null,null,"Saint Urbain Maconcourt",52300]
["Menades",89450,null,null,null,null,"Ormoy lès Sexfontaines",52310]
["Ménessaire",21430,null,null,null,null,"Biernes",52330]
["Ménil Froger",61240,null,null,null,null,"Bannes",52360]
["Ménoire",19190,null,null,null,null,"Champigny sous Varennes",52400]
["Mentières",15100,null,null,null,null,"Neuvelle lès Voisey",52400]
["Mercoeur",19430,null,null,null,null,"Farincourt",52500]
["Mérens lès Vals","09110",null,null,null,null,"Tornay",52500]
["Méricourt en Vimeu",80640,null,null,null,null,"Le Pailly",52600]
["Mérignies",59710,null,null,null,null,"Andelot Blancheville",52700]
["Merlieux et Fouquerolles","02000",null,null,null,null,"Mareilles",52700]
["Méru",60110,null,null,null,null,"Poulangy",52800]
["Meschers sur Gironde",17132,null,null,null,null,"Brécé",53120]
["Mesmont",21540,null,null,null,null,"Saint Cyr en Pail",53140]
["Mesnil Sellières",10220,null,null,null,null,"La Bazouge de Chemeré",53170]
["Messein",54850,null,null,null,null,"Chemazé",53200]
["Météren",59270,null,null,null,null,"Saint Berthevin la Tannière",53220]
["Metz",57070,null,null,null,null,"Cossé le Vivien",53230]
["Meulson",21510,null,null,null,null,"Les Chapelles",53250]
["Meylan",47170,null,null,null,null,"Saint Michel de Feins",53290]
["Mezel",63115,null,null,null,null,"Saulges",53340]
["Mézières en Vexin",27510,null,null,null,null,"Boulay les Ifs",53370]
["Michery",89140,null,null,null,null,"Olivet",53410]
["Migné Auxances",86440,null,null,null,null,"Ernée",53500]
["Milizac",29290,null,null,null,null,"Montreuil Poulay",53640]
["Millas",66170,null,null,null,null,"Crennes sur Fraubée",53700]
["Milly sur Thérain",60112,null,null,null,null,"Louverné",53950]
["Mirabeau","04510",null,null,null,null,"Vannes le Châtel",54112]
["Mirecourt",88500,null,null,null,null,"Vandeléville",54115]
["Miserey",27930,null,null,null,null,"Azerailles",54122]
["Mittainville",78125,null,null,null,null,"Lantéfontaine",54150]
["Moëns","01280",null,null,null,null,"Mont l'Étroit",54170]
["Moingt",42600,null,null,null,null,"Jaillon",54200]
["Moirans en Montagne",39260,null,null,null,null,"Ménil la Tour",54200]
["Moissy Cramayel",77550,null,null,null,null,"Chaligny",54230]
["Molières Cavaillac",30120,null,null,null,null,"Mazerulles",54280]
["Mollans",70240,null,null,null,null,"Haigneville",54290]
["Momy",64350,null,null,null,null,"Manonviller",54300]
["Moncaup",64350,null,null,null,null,"Ognéville",54330]
["Monceaux le Comte",58190,null,null,null,null,"Damelevières",54360]
["Monchaux sur Écaillon",59224,null,null,null,null,"Bathelémont lès Bauzemont",54370]
["Monclar sur Losse",32300,null,null,null,null,"Serres",54370]
["Mondion",86230,null,null,null,null,"Manonville",54385]
["Monfaucon",24130,null,null,null,null,"Gondrexon",54450]
["Monieux",84390,null,null,null,null,"Vého",54450]
["Monpézat",64350,null,null,null,null,"Saint Baussant",54470]
["Monségur",64460,null,null,null,null,"Xivry Circourt",54490]
["Mont Cauvaire",76690,null,null,null,null,"Neuviller lès Badonviller",54540]
["Mont Louis",66210,null,null,null,null,"Saint Ail",54580]
["Mont Saint Vincent",71690,null,null,null,null,"Sivry",54610]
["Montabard",61160,null,null,null,null,"Doncourt lès Longuyon",54620]
["Montagnole",73000,null,null,null,null,"Loisy",54700]
["Montagoudin",33190,null,null,null,null,"Fléville devant Nancy",54710]
["Montalba le Château",66130,null,null,null,null,"Xirocourt",54740]
["Montarcher",42380,null,null,null,null,"Affléville",54800]
["Montauban de Bretagne",35360,null,null,null,null,"Mars la Tour",54800]
["Montayral",47500,null,null,null,null,"Sexey les Bois",54840]
["Montbernard",31230,null,null,null,null,"Morfontaine",54920]
["Montbizot",72380,null,null,null,null,"Fraisnes en Saintois",54930]
["Montbrun des Corbières",11700,null,null,null,null,"Hargeville sur Chée",55000]
["Montceau les Mines",71300,null,null,null,null,"Rosières devant Bar",55000]
["Montchevrel",61170,null,null,null,null,"Esnes en Argonne",55100]
["Montcoy",71620,null,null,null,null,"Dannevoux",55110]
["Montécheroux",25190,null,null,null,null,"Sivry sur Meuse",55110]
["Montenach",57480,null,null,null,null,"Récicourt",55120]
["Monterrein",56800,null,null,null,null,"Tréveray",55130]
["Montesquieu",47130,null,null,null,null,"Burey la Côte",55140]
["Montfaucon","02540",null,null,null,null,"Étraye",55150]
["Montferrand la Fare",26510,null,null,null,null,"Romagne sous les Côtes",55150]
["Montfroc",26560,null,null,null,null,"Moulotte",55160]
["Montgellafrey",73130,null,null,null,null,"Juvigny en Perthois",55170]
["Montgueux",10300,null,null,null,null,"Aulnois sous Vertuzey",55200]
["Monthou sur Bièvre",41120,null,null,null,null,"Avillers Sainte Croix",55210]
["Montignac de Lauzun",47800,null,null,null,null,"Woël",55210]
["Montigné le Brillant",53970,null,null,null,null,"Osches",55220]
["Montigny lès Condé","02330",null,null,null,null,"Senon",55230]
["Montigny Saint Barthélemy",21390,null,null,null,null,"Beaulieu en Argonne",55250]
["Montivilliers",76290,null,null,null,null,"Courouvre",55260]
["Montjoire",31380,null,null,null,null,"Thillombois",55260]
["Montlouet",28320,null,null,null,null,"Morley",55290]
["Montmartin sur Mer",50590,null,null,null,null,"Lacroix sur Meuse",55300]
["Montmirey la Ville",39290,null,null,null,null,"Seuzey",55300]
["Montmurat",15600,null,null,null,null,"Les Monthairons",55320]
["Montord","03500",null,null,null,null,"Darmont",55400]
["Montpeyroux",24610,null,null,null,null,"Chanteraine",55500]
["Montrabot",50810,null,null,null,null,"Nançois le Grand",55500]
["Montret",71440,null,null,null,null,"Chauvency le Château",55600]
["Montreuil sur Ille",35440,null,null,null,null,"Beaufort en Argonne",55700]
["Montrigaud",26350,null,null,null,null,"Contrisson",55800]
["Monts",60119,null,null,null,null,"Le Saint",56110]
["Montsec",55300,null,null,null,null,"La Roche Bernard",56130]
["Montsoreau",49730,null,null,null,null,"Pleucadeuc",56140]
["Monze",11800,null,null,null,null,"Lauzach",56190]
["Moras en Valloire",26210,null,null,null,null,"Larré",56230]
["Morey",71510,null,null,null,null,"Port Louis",56290]
["Morisel",80110,null,null,null,null,"Saint Jean la Poterie",56350]
["Mornac",16600,null,null,null,null,"Auray",56400]
["Morsang sur Seine",91250,null,null,null,null,"Néant sur Yvel",56430]
["Mortefontaine",60128,null,null,null,null,"La Trinité sur Mer",56470]
["Morvilliers",28340,null,null,null,null,"Saint Caradec Trégomel",56540]
["Moslins",51200,null,null,null,null,"Bréhan",56580]
["Mouans Sartoux","06370",null,null,null,null,"Nostang",56690]
["Mouhet",36170,null,null,null,null,"Ploërmel",56800]
["Moulin Mage",81320,null,null,null,null,"Crach",56950]
["Moulins sur Orne",61200,null,null,null,null,"Budling",57110]
["Mourjou",15340,null,null,null,null,"Fleisheim",57119]
["Mourvilles Hautes",31540,null,null,null,null,"Ancy sur Moselle",57130]
["Moustier Ventadour",19300,null,null,null,null,"Châtel Saint Germain",57160]
["Mouterre Silly",86200,null,null,null,null,"Attilloncourt",57170]
["Moutiers sous Argenton",79150,null,null,null,null,"Wuisse",57170]
["Mouzieys Panens",81170,null,null,null,null,"Bisten en Lorraine",57220]
["Moyon",50860,null,null,null,null,"Niedervisse",57220]
["Mulcent",78790,null,null,null,null,"Reyersviller",57230]
["Murat le Quaire",63150,null,null,null,null,"Lindre Basse",57260]
["Muret le Château",12330,null,null,null,null,"Fameck",57290]
["Mussidan",24400,null,null,null,null,"Menskirch",57320]
["Mutigny",51160,null,null,null,null,"Tromborn",57320]
["Nadillac",46360,null,null,null,null,"Dalhain",57340]
["Namps Maisnil",80710,null,null,null,null,"Flévy",57365]
["Nancy sur Cluses",74300,null,null,null,null,"Arraincourt",57380]
["Nantes",44000,null,null,null,null,"Haut Clocher",57400]
["Nantua","01460",null,null,null,null,"Chérisey",57420]
["Narnhac",15230,null,null,null,null,"Moncheux",57420]
["Naveil",41100,null,null,null,null,"Réding",57444]
["Naves","03330",null,null,null,null,"Seingbouse",57450]
["Nébian",34800,null,null,null,null,"Manderen",57480]
["Néoux",23200,null,null,null,null,"Alsting",57520]
["Nerville la Forêt",95590,null,null,null,null,"Ogy",57530]
["Nessa",20225,null,null,null,null,"Saint Quirin",57560]
["Neufchâtel Hardelot",62152,null,null,null,null,"Rodemack",57570]
["Neuillé le Lierre",37380,null,null,null,null,"Aulnois sur Seille",57590]
["Neuilly l'Hôpital",80132,null,null,null,null,"Oriocourt",57590]
["Neuilly sur Seine",92200,null,null,null,null,"Xocourt",57590]
["Neuvelle lès Voisey",52400,null,null,null,null,"Bettelainville",57640]
["Neuville de Poitou",86170,null,null,null,null,"Gréning",57660]
["Neuville sous Montreuil",62170,null,null,null,null,"Lhor",57670]
["Neuvillers sur Fave",88100,null,null,null,null,"Bambiderstroff",57690]
["Neuvy en Dunois",28800,null,null,null,null,"Breidenbach",57720]
["Nézel",78410,null,null,null,null,"Lorquin",57790]
["Nibles","04250",null,null,null,null,"Merlebach",57800]
["Niedermodern",67350,null,null,null,null,"Henridorff",57820]
["Nieul sur l'Autise",85240,null,null,null,null,"Montois la Montagne",57860]
["Nivillac",56130,null,null,null,null,"Kemplich",57920]
["Noalhac",48310,null,null,null,null,"Saint Jean de Bassel",57930]
["Nogent",52800,null,null,null,null,"Bazolles",58110]
["Nogna",39570,null,null,null,null,"Corancy",58120]
["Noiron",70100,null,null,null,null,"Pouilly sur Loire",58150]
["Nomain",59310,null,null,null,null,"Marzy",58180]
["Nontron",24300,null,null,null,null,"Teigny",58190]
["Nonza",20217,null,null,null,null,"Pougny",58200]
["Norrent Fontès",62120,null,null,null,null,"Donzy",58220]
["Notre Dame d'Allençon",49380,null,null,null,null,"Luthenay Uxeloup",58240]
["Notre Dame de Riez",85270,null,null,null,null,"Billy Chevannes",58270]
["Notre Dame du Touchet",50140,null,null,null,null,"Cossaye",58300]
["Nousty",64420,null,null,null,null,"Saint Bénin des Bois",58330]
["Novion Porcien","08270",null,null,null,null,"Dornes",58390]
["Noyelles en Chaussée",80150,null,null,null,null,"Chevannes Changy",58420]
["Noyelles sous Bellonne",62490,null,null,null,null,"Moraches",58420]
["Noyers sur Jabron","04200",null,null,null,null,"Armes",58500]
["Nuillé sur Ouette",53210,null,null,null,null,"Authiou",58700]
["Oberhergheim",68127,null,null,null,null,"Marigny sur Yonne",58800]
["Obersoultzbach",67330,null,null,null,null,"Seclin",59113]
["Ocqueville",76450,null,null,null,null,"Dehéries",59127]
["Offendorf",67850,null,null,null,null,"Wallers",59135]
["Ognéville",54330,null,null,null,null,"Watten",59143]
["Ohis","02500",null,null,null,null,"Jenlain",59144]
["Oisilly",21310,null,null,null,null,"Estrées",59151]
["Olemps",12510,null,null,null,null,"Capinghem",59160]
["Olliergues",63880,null,null,null,null,"Goeulzin",59169]
["Omicourt","08450",null,null,null,null,"Fenain",59179]
["Ondes",31330,null,null,null,null,"Hondeghem",59190]
["Oppenans",70110,null,null,null,null,"Sommaing",59213]
["Oradour",16140,null,null,null,null,"Beugnies",59216]
["Orçay",41300,null,null,null,null,"Forest en Cambrésis",59222]
["Ordizan",65200,null,null,null,null,"Gouzeaucourt",59231]
["Orgeux",21490,null,null,null,null,"Templeuve",59242]
["Origny le Sec",10510,null,null,null,null,"Haveluy",59255]
["Orly sur Morin",77750,null,null,null,null,"Quérénaing",59269]
["Ormoy le Davien",60620,null,null,null,null,"Mardyck",59279]
["Orrouer",28190,null,null,null,null,"Aulnoy lez Valenciennes",59300]
["Orsanco",64120,null,null,null,null,"Beuvry la Forêt",59310]
["Orus","09220",null,null,null,null,"Éclaibes",59330]
["Osches",55220,null,null,null,null,"Mons en Baroeul",59370]
["Osselle",25320,null,null,null,null,"Awoingt",59400]
["Ottersthal",67700,null,null,null,null,"Floursies",59440]
["Ouessant",29242,null,null,null,null,"Bruille lez Marchiennes",59490]
["Oulchy le Château","02210",null,null,null,null,"Ghissignies",59530]
["Ourville en Caux",76450,null,null,null,null,"Taisnières en Thiérache",59550]
["Oust","09140",null,null,null,null,"Esquerchin",59553]
["Ouzilly",86380,null,null,null,null,"La Flamengrie",59570]
["Oysonville",28700,null,null,null,null,"Féron",59610]
["Paars","02220",null,null,null,null,"Hardifort",59670]
["Pagolle",64120,null,null,null,null,"Ennevelin",59710]
["Paizay Naudouin Embourie",16240,null,null,null,null,"Willies",59740]
["Pallegney",88330,null,null,null,null,"Marchiennes",59870]
["Panazol",87350,null,null,null,null,"Odomez",59970]
["Panges",21540,null,null,null,null,"Curgies",59990]
["Parcoul",24410,null,null,null,null,"Braisnes",60113]
["Parfondru","02840",null,null,null,null,"Cormeilles",60120]
["Parigny",50600,null,null,null,null,"Vendeuil Caply",60120]
["Parigny les Vaux",58320,null,null,null,null,"Éméville",60123]
["Paris",75001,null,null,null,null,"Le Plessier sur Saint Just",60130]
["Paroy sur Tholon",89300,null,null,null,null,"Giraumont",60150]
["Pasilly",89310,null,null,null,null,"Cambronne lès Ribécourt",60170]
["Passavant la Rochère",70210,null,null,null,null,"Ivry le Temple",60173]
["Paulin",24590,null,null,null,null,"Brombos",60210]
["Payros Cazautets",40320,null,null,null,null,"Thieuloy Saint Antoine",60210]
["Pechbonnieu",31140,null,null,null,null,"Saint Arnoult",60220]
["Pecqueuse",91470,null,null,null,null,"Bachivillers",60240]
["Pellefigue",32420,null,null,null,null,"Le Mesnil Théribus",60240]
["Penne d'Agenais",47140,null,null,null,null,"Lamorlaye",60260]
["Percy",38930,null,null,null,null,"Senlis",60300]
["Péret Bel Air",19300,null,null,null,null,"Dives",60310]
["Pernois",80670,null,null,null,null,"Jaulzy",60350]
["Perrancey les Vieux Moulins",52200,null,null,null,null,"Prévillers",60360]
["Perrogney les Fontaines",52160,null,null,null,null,"Saint Quentin des Prés",60380]
["Perroy",58220,null,null,null,null,"Villers Vermont",60380]
["Perville",82400,null,null,null,null,"Crisolles",60400]
["Petit Mesnil",10500,null,null,null,null,"Villeneuve sur Verberie",60410]
["Peuvillers",55150,null,null,null,null,"Saint Sulpice",60430]
["Peyrat de Bellac",87300,null,null,null,null,"Précy sur Oise",60460]
["Peyrilhac",87510,null,null,null,null,"Boulogne la Grasse",60490]
["Peyrusse Massas",32360,null,null,null,null,"Essuiles",60510]
["Pfulgriesheim",67370,null,null,null,null,"Fresnoy en Thelle",60530]
["Phalsbourg",57370,null,null,null,null,"Neuilly en Thelle",60530]
["Pied de Borne",48800,null,null,null,null,"Sérifontaine",60590]
["Pierrecourt",76340,null,null,null,null,"Boullarre",60620]
["Pierrelatte",26700,null,null,null,null,"Hannaches",60650]
["Pierreville",50340,null,null,null,null,"Cramoisy",60660]
["Pignicourt","02190",null,null,null,null,"Les Ageux",60700]
["Pinay",42590,null,null,null,null,"Ressons l'Abbaye",60790]
["Pionsat",63330,null,null,null,null,"Cuigy en Bray",60850]
["Pipriac",35550,null,null,null,null,"Le Coudray Saint Germer",60850]
["Pissy Pôville",76360,null,null,null,null,"Neufchelles",60890]
["Plaimpied Givaudins",18340,null,null,null,null,"La Lande Patry",61100]
["Plan de la Tour",83120,null,null,null,null,"Verrières",61110]
["Planioles",46100,null,null,null,null,"Appenai sous Bellême",61130]
["Plavilla",11270,null,null,null,null,"Beaulandais",61140]
["Plémy",22150,null,null,null,null,"Sevrai",61150]
["Plessis Saint Jean",89140,null,null,null,null,"Saint Gervais des Sablons",61160]
["Plessix Balisson",22650,null,null,null,null,"Saint Lambert sur Dive",61160]
["Pleuville",16490,null,null,null,null,"Sainte Scolasse sur Sarthe",61170]
["Plombières les Bains",88370,null,null,null,null,"Sai",61200]
["Plouégat Guérand",29620,null,null,null,null,"Crâménil",61220]
["Plougoumelen",56400,null,null,null,null,"Le Sap André",61230]
["Ploumoguer",29810,null,null,null,null,"Cuissai",61250]
["Plouyé",29690,null,null,null,null,"La Rouge",61260]
["Plussulien",22320,null,null,null,null,"Marchainville",61290]
["Pogny",51240,null,null,null,null,"La Cochère",61310]
["Poilhès",34310,null,null,null,null,"Carrouges",61320]
["Pointvillers",25440,null,null,null,null,"Loré",61330]
["Polignac",17210,null,null,null,null,"Saint Jouin de Blavou",61360]
["Polveroso",20229,null,null,null,null,"Sainte Céronne lès Mortagne",61380]
["Pommerol",26470,null,null,null,null,"Loisail",61400]
["Pompierre sur Doubs",25340,null,null,null,null,"La Roche Mabile",61420]
["Ponson Debat Pouts",64460,null,null,null,null,"Aunou sur Orne",61500]
["Pont de Barret",26160,null,null,null,null,"Bocquencé",61550]
["Pont de Labeaume","07380",null,null,null,null,"Marnefer",61550]
["Pont Évêque",38780,null,null,null,null,"Le Château d'Almenêches",61570]
["Pont sur Yonne",89140,null,null,null,null,"Saint Brice",61700]
["Pontavert","02160",null,null,null,null,"Saint Cornier des Landes",61800]
["Ponthierry",77310,null,null,null,null,"Corbehem",62112]
["Pontruet","02490",null,null,null,null,"Campagne lès Wardrecques",62120]
["Port","01460",null,null,null,null,"Bihucourt",62121]
["Port Navalo",56640,null,null,null,null,"Montenescourt",62123]
["Port sur Seille",54700,null,null,null,null,"Beaumetz lès Cambrai",62124]
["Potelières",30500,null,null,null,null,"Penin",62127]
["Poubeau",31110,null,null,null,null,"Écoust Saint Mein",62128]
["Pouillon",40350,null,null,null,null,"Guinecourt",62130]
["Poulangy",52800,null,null,null,null,"Saint Pol sur Ternoise",62130]
["Pournoy la Chétive",57420,null,null,null,null,"Prédefin",62134]
["Pouy de Touges",31430,null,null,null,null,"Cavron Saint Martin",62140]
["Poyans",70100,null,null,null,null,"Vacqueriette Erquières",62140]
["Pradelles",59190,null,null,null,null,"Colembert",62142]
["Prangey",52190,null,null,null,null,"Caucourt",62150]
["Prato-di-Giovellina",20218,null,null,null,null,"Burbure",62151]
["Prébois",38710,null,null,null,null,"Aix Noulette",62160]
["Précy sur Oise",60460,null,null,null,null,"Brimeux",62170]
["Prémontré","02320",null,null,null,null,"Rivière",62173]
["Presles",95590,null,null,null,null,"Tigny Noyelle",62180]
["Pretin",39110,null,null,null,null,"Hesdigneul lès Béthune",62196]
["Preuilly",18120,null,null,null,null,"Agny",62217]
["Primarette",38270,null,null,null,null,"Bournonville",62240]
["Prisces","02140",null,null,null,null,"Wirwignes",62240]
["Pronleroy",60190,null,null,null,null,"Bonnières",62270]
["Provenchères sur Meuse",52140,null,null,null,null,"Rébreuviette",62270]
["Prunet",31460,null,null,null,null,"Senlis",62310]
["Puceul",44390,null,null,null,null,"Guînes",62340]
["Pugny Chatenod",73100,null,null,null,null,"Audruicq",62370]
["Puilly et Charbeaux","08370",null,null,null,null,"Ruminghem",62370]
["Puligny Montrachet",21190,null,null,null,null,"Fontaine l'Etalon",62390]
["Purgerot",70160,null,null,null,null,"Béthune",62400]
["Puy de Serre",85240,null,null,null,null,"Le Sars",62450]
["Puycornet",82220,null,null,null,null,"Quiéry la Motte",62490]
["Puyrenier",24340,null,null,null,null,"Marest",62550]
["Quarante",34310,null,null,null,null,"Renty",62560]
["Quemper Guézennec",22260,null,null,null,null,"Thélus",62580]
["Questrecques",62830,null,null,null,null,"Maresville",62630]
["Quévert",22100,null,null,null,null,"Ergny",62650]
["Quiberville",76860,null,null,null,null,"Zoteux",62650]
["Quimiac",44420,null,null,null,null,"Villers Châtel",62690]
["Quincy sous Sénart",91480,null,null,null,null,"Orville",62760]
["Rabat les Trois Seigneurs","09400",null,null,null,null,"Leforest",62790]
["Radinghem",62310,null,null,null,null,"Le Souich",62810]
["Rainsars",59177,null,null,null,null,"Alquines",62850]
["Ramasse","01250",null,null,null,null,"Baralle",62860]
["Rampoux",46340,null,null,null,null,"Estevelles",62880]
["Ranchette",39200,null,null,null,null,"Mentque Nortbécourt",62890]
["Rangecourt",52140,null,null,null,null,"Beaumetz lès Aire",62960]
["Rapaggio",20229,null,null,null,null,"Rimboval",62990]
["Rauville la Bigot",50260,null,null,null,null,"Sermentizon",63120]
["Raymond",18130,null,null,null,null,"Fayet le Château",63160]
["Rebais",77510,null,null,null,null,"Mozac",63200]
["Rebreuve Ranchicourt",62150,null,null,null,null,"Perpezat",63210]
["Recques sur Course",62170,null,null,null,null,"Mont Dore",63240]
["Rédange",57390,null,null,null,null,"Aigueperse",63260]
["Régnié Durette",69430,null,null,null,null,"Sallèdes",63270]
["Reilhanette",26570,null,null,null,null,"Chidrac",63320]
["Relans",39140,null,null,null,null,"Bussières",63330]
["Rémering",57550,null,null,null,null,"Le Breuil sur Couze",63340]
["Remoray Boujeons",25160,null,null,null,null,"Condat en Combraille",63380]
["Renaucourt",70120,null,null,null,null,"Gouttières",63390]
["Rentières",63420,null,null,null,null,"Champs",63440]
["Répara Auriples",26400,null,null,null,null,"Saint Pardoux",63440]
["Reterre",23110,null,null,null,null,"Prondines",63470]
["Reuves",51120,null,null,null,null,"Perrier",63500]
["Revest du Bion","04150",null,null,null,null,"Saint Jean des Ollières",63520]
["Reyrevignes",46320,null,null,null,null,"Esteil",63570]
["Ribaute",11220,null,null,null,null,"Saint Ferréol des Côtes",63600]
["Ribiers","05300",null,null,null,null,"Fayet Ronaye",63630]
["Richtolsheim",67390,null,null,null,null,"Ars les Favets",63700]
["Riedisheim",68400,null,null,null,null,"Montjoie",63700]
["Rieux",56350,null,null,null,null,"Mirefleurs",63730]
["Rilhac Treignac",19260,null,null,null,null,"Saillant",63840]
["Rimbez et Baudiets",40310,null,null,null,null,"Saint Amant Roche Savine",63890]
["Riom ès Montagne",15400,null,null,null,null,"Pau",64000]
["Rive de Gier",42800,null,null,null,null,"Garris",64120]
["Rivière sur Tarn",12640,null,null,null,null,"Ostabat Asme",64120]
["Rix",39250,null,null,null,null,"Arrast Larrebieu",64130]
["Rocbaron",83136,null,null,null,null,"Billère",64140]
["Rochebrune","05190",null,null,null,null,"Escoubès",64160]
["Roches sur Marne",52410,null,null,null,null,"Viellenave d'Arthez",64170]
["Rochy Condé",60510,null,null,null,null,"Jasses",64190]
["Rodelinghem",62610,null,null,null,null,"Ahetze",64210]
["Rognes",13840,null,null,null,null,"Saint Michel",64220]
["Roilly",21390,null,null,null,null,"Uzein",64230]
["Romagny",50140,null,null,null,null,"Rébénacq",64260]
["Romazières",17510,null,null,null,null,"Salies de Béarn",64270]
["Romillé",35850,null,null,null,null,"Labeyrie",64300]
["Roncenay",10320,null,null,null,null,"Sainte Suzanne",64300]
["Roncq",59223,null,null,null,null,"Ousse",64320]
["Roquebrune Cap Martin","06190",null,null,null,null,"Arrosés",64350]
["Roquefort la Bédoule",13830,null,null,null,null,"Luc Armau",64350]
["Rorbach lès Dieuze",57260,null,null,null,null,"Doazon",64370]
["Rosières aux Salines",54110,null,null,null,null,"Aren",64400]
["Rosoy",60140,null,null,null,null,"Arzacq Arraziguet",64410]
["Rosporden",29140,null,null,null,null,"Larreule",64410]
["Rott",67160,null,null,null,null,"Hours",64420]
["Rouen",76000,null,null,null,null,"Auga",64450]
["Rougemont le Château",90110,null,null,null,null,"Pontiacq Viellepinte",64460]
["Rouillerot",10800,null,null,null,null,"Jatxou",64480]
["Rouperroux",61320,null,null,null,null,"Meillon",64510]
["Routelle",25410,null,null,null,null,"Iholdy",64640]
["Rouvres",77230,null,null,null,null,"Arthez d'Asson",64800]
["Rouvres la Chétive",88170,null,null,null,null,"Bruges Capbis Mifaget",64800]
["Rouxmesnil Bouteilles",76370,null,null,null,null,"Mouguerre",64990]
["Roye",80700,null,null,null,null,"Gez ez Angles",65100]
["Rozoy sur Serre","02360",null,null,null,null,"Chèze",65120]
["Rudeau Ladosse",24340,null,null,null,null,"Artiguemy",65130]
["Rugles",27250,null,null,null,null,"Lahitte",65130]
["Rumilly lès Vaudes",10260,null,null,null,null,"Sarriac Bigorre",65140]
["Russ",67130,null,null,null,null,"Seich",65150]
["Ry",76116,null,null,null,null,"Sailhan",65170]
["Sabarros",65330,null,null,null,null,"Clarac",65190]
["Sacierges Saint Martin",36170,null,null,null,null,"Antist",65200]
["Sagy",95450,null,null,null,null,"Bernadets Debat",65220]
["Saillans",33141,null,null,null,null,"Trie sur Baïse",65220]
["Sailly sur la Lys",62840,null,null,null,null,"Puntous",65230]
["Saint Agil",41170,null,null,null,null,"Lortet",65250]
["Saint Aignan",82100,null,null,null,null,"Réjaumont",65300]
["Saint Aignan sur Ry",76116,null,null,null,null,"Séron",65320]
["Saint Alban de Roche",38300,null,null,null,null,"Sentous",65330]
["Saint Amand",23200,null,null,null,null,"Marquerie",65350]
["Saint Amant de Boixe",16330,null,null,null,null,"Cazarilh",65370]
["Saint Andéol de Clerguemort",48160,null,null,null,null,"Thèbe",65370]
["Saint André de Bohon",50500,null,null,null,null,"Arras en Lavedan",65400]
["Saint André des Eaux",22630,null,null,null,null,"Ilhet",65410]
["Saint André le Gaz",38490,null,null,null,null,"Saint Lezer",65500]
["Saint Angeau",16230,null,null,null,null,"Loudenvielle",65510]
["Saint Antoine Cumond",24410,null,null,null,null,"Séméac",65600]
["Saint Apollinaire","05160",null,null,null,null,"Héres",65700]
["Saint Arroman",32300,null,null,null,null,"Montbolo",66110]
["Saint Aubin","02300",null,null,null,null,"Saint Nazaire",66140]
["Saint Aubin des Chaumes",58190,null,null,null,null,"Mont Louis",66210]
["Saint Aubin le Cloud",79450,null,null,null,null,"Prats de Mollo la Preste",66230]
["Saint Aubin sur Scie",76550,null,null,null,null,"Saint Jean Lasseille",66300]
["Saint Avé",56890,null,null,null,null,"Joch",66320]
["Saint Barbant",87330,null,null,null,null,"Souanyas",66360]
["Saint Barthélemy Lestra",42110,null,null,null,null,"Sainte Marie",66470]
["Saint Baudelle",53100,null,null,null,null,"Le Perthus",66480]
["Saint Beauzire",63360,null,null,null,null,"Baho",66540]
["Saint Berain sur Dheune",71510,null,null,null,null,"Lansac",66720]
["Saint Boès",64300,null,null,null,null,"Angoustrine Villeneuve des Escaldes",66760]
["Saint Bonnet",16300,null,null,null,null,"Villeneuve des Escaldes",66760]
["Saint Bonnet près Bort",19200,null,null,null,null,"Ittenheim",67117]
["Saint Brice",77160,null,null,null,null,"Fréconrupt",67130]
["Saint Brice Courcelles",51370,null,null,null,null,"Natzwiller",67130]
["Saint Bueil",38620,null,null,null,null,"Itterswiller",67140]
["Saint Cassien",24540,null,null,null,null,"Uttenheim",67150]
["Saint Chamarand",46310,null,null,null,null,"Hohatzenheim",67170]
["Saint Christaud",32320,null,null,null,null,"Wolfisheim",67202]
["Saint Christophe",86230,null,null,null,null,"Niedernai",67210]
["Saint Christophe sur Avre",27820,null,null,null,null,"Witternheim",67230]
["Saint Cirgues",43380,null,null,null,null,"Memmelshoffen",67250]
["Saint Cirgues sur Couze",63320,null,null,null,null,"Soultz sous Forêts",67250]
["Saint Clair sur les Monts",76190,null,null,null,null,"Alteckendorf",67270]
["Saint Clément de Valorgue",63660,null,null,null,null,"Schaffhouse sur Zorn",67270]
["Saint Contest",14280,null,null,null,null,"Schiltigheim",67300]
["Saint Crépin et Carlucet",24590,null,null,null,null,"Zeinheim",67310]
["Saint Cybranet",24250,null,null,null,null,"Eywiller",67320]
["Saint Cyr le Chatoux",69870,null,null,null,null,"Ingwiller",67340]
["Saint Denis",79220,null,null,null,null,"Mulhausen",67350]
["Saint Denis d'Anjou",53290,null,null,null,null,"Uberach",67350]
["Saint Denis du Maine",53170,null,null,null,null,"Dingsheim",67370]
["Saint Denis sur Huisne",61400,null,null,null,null,"Wiwersheim",67370]
["Saint Didier de la Tour",38110,null,null,null,null,"Saales",67420]
["Saint Disdier","05250",null,null,null,null,"Reinhardsmunster",67440]
["Saint Dos",64270,null,null,null,null,"Schaffhouse près Seltz",67470]
["Saint Éloy les Tuileries",19210,null,null,null,null,"Mattstall",67510]
["Saint Étienne au Mont",62360,null,null,null,null,"La Broque",67570]
["Saint Étienne de Boulogne","07200",null,null,null,null,"Ohlungen",67590]
["Saint Étienne de Tulmont",82410,null,null,null,null,"Lipsheim",67640]
["Saint Étienne du Vigan",43420,null,null,null,null,"Eckartswiller",67700]
["Saint Eugène",71190,null,null,null,null,"Stattmatten",67770]
["Saint Fargeau Ponthierry",77310,null,null,null,null,"Oermingen",67970]
["Saint Félix de Pallières",30140,null,null,null,null,"Rosenau",68128]
["Saint Firmin sur Loire",45360,null,null,null,null,"Soultzeren",68140]
["Saint Forgeux",69490,null,null,null,null,"Balschwiller",68210]
["Saint Fraigne",16140,null,null,null,null,"Dannemarie",68210]
["Saint Front sur Nizonne",24300,null,null,null,null,"Valdieu",68210]
["Saint Gaultier",36800,null,null,null,null,"Ranspach le Haut",68220]
["Saint Genest Lerpt",42530,null,null,null,null,"Andolsheim",68280]
["Saint Genix sur Guiers",73240,null,null,null,null,"Riedwihr",68320]
["Saint Georges Blancaneix",24130,null,null,null,null,"Muhlbach sur Munster",68380]
["Saint Georges de Montclard",24140,null,null,null,null,"Schlierbach",68440]
["Saint Georges du Bois",49250,null,null,null,null,"Fislis",68480]
["Saint Georges Haute Ville",42610,null,null,null,null,"Lucelle",68480]
["Saint Germain",10120,null,null,null,null,"Rantzwiller",68510]
["Saint Germain d'Arcé",72500,null,null,null,null,"Burnhaupt le Haut",68520]
["Saint Germain de Montbron",16380,null,null,null,null,"Mooslargue",68580]
["Saint Germain du Pinel",35370,null,null,null,null,"Muespach",68640]
["Saint Germain la Campagne",27230,null,null,null,null,"Aspach le Bas",68700]
["Saint Germain le Vasson",14190,null,null,null,null,"Zillisheim",68720]
["Saint Germain sur Bresle",80430,null,null,null,null,"Diefmatten",68780]
["Saint Germain sur Renon","01240",null,null,null,null,"Rammersmatt",68800]
["Saint Gervasy",30320,null,null,null,null,"Lyon 9",69009]
["Saint Gildas",22800,null,null,null,null,"Saugnieu",69124]
["Saint Gingolph",74500,null,null,null,null,"Chevinay",69210]
["Saint Grégoire d'Ardennes",17240,null,null,null,null,"Montanay",69250]
["Saint Haon le Châtel",42370,null,null,null,null,"Craponne",69290]
["Saint Hilaire","03440",null,null,null,null,"Saint Didier au Mont d'Or",69370]
["Saint Hilaire d'Ozilhan",30210,null,null,null,null,"Champagne au Mont d'Or",69410]
["Saint Hilaire du Bois",33540,null,null,null,null,"Les Haies",69420]
["Saint Hilaire sous Charlieu",42190,null,null,null,null,"Saint Étienne des Oullières",69460]
["Saint Hilaire sur Rîle",61270,null,null,null,null,"Thel",69470]
["Saint Honoré les Bains",58360,null,null,null,null,"Soucieu en Jarrest",69510]
["Saint Jacques en Valgodemard","05800",null,null,null,null,"Souzy",69610]
["Saint Jean aux Bois",60350,null,null,null,null,"Saint Vérand",69620]
["Saint Jean de Bassel",57930,null,null,null,null,"Bessenay",69690]
["Saint Jean de la Blaquière",34700,null,null,null,null,"Montrottier",69770]
["Saint Jean de la Léqueraye",27560,null,null,null,null,"Toussieu",69780]
["Saint Jean de Thouars",79100,null,null,null,null,"Saint Just d'Avray",69870]
["Saint Jean de Vals",81210,null,null,null,null,"Corbas",69960]
["Saint Jean d'Heurs",63190,null,null,null,null,"Flagy",70000]
["Saint Jean le Comtal",32550,null,null,null,null,"Battrans",70100]
["Saint Jean Lherm",31380,null,null,null,null,"Fahy lès Autrey",70100]
["Saint Jean sur Moivre",51240,null,null,null,null,"Velet",70100]
["Saint Joseph des Bancs","07530",null,null,null,null,"Saint Sulpice",70110]
["Saint Jouin Bruneval",76280,null,null,null,null,"Villers la Ville",70110]
["Saint Julien de Chédon",41400,null,null,null,null,"Charentenay",70130]
["Saint Julien de Jonzy",71110,null,null,null,null,"La Vernotte",70130]
["Saint Julien du Puy",81440,null,null,null,null,"Brésilley",70140]
["Saint Julien le Faucon",14140,null,null,null,null,"Brussey",70150]
["Saint Julien sur Sarthe",61170,null,null,null,null,"Menoux",70160]
["Saint Just de Claix",38680,null,null,null,null,"Villers sur Port",70170]
["Saint Lager Bressac","07210",null,null,null,null,"Chaux la Lotière",70190]
["Saint Lambert et Mont de Jeux","08130",null,null,null,null,"Hyet",70190]
["Saint Laurent de Céris",16450,null,null,null,null,"Froideterre",70200]
["Saint Laurent de Jourdes",86410,null,null,null,null,"Le Val de Gouhenans",70200]
["Saint Laurent du Mottay",49410,null,null,null,null,"Polaincourt et Clairefontaine",70210]
["Saint Laurent en Grandvaux",39150,null,null,null,null,"Dampierre sur Linotte",70230]
["Saint Laurent sur Mer",14710,null,null,null,null,"Creveney",70240]
["Saint Léger de Fougeret",58120,null,null,null,null,"Fresse",70270]
["Saint Léger sous Beuvray",71990,null,null,null,null,"Magnivray",70300]
["Saint Léon",33670,null,null,null,null,"La Longine",70310]
["Saint Lin",79420,null,null,null,null,"Chagey",70400]
["Saint Louis de Montferrand",33440,null,null,null,null,"Luze",70400]
["Saint Loup Cammas",31140,null,null,null,null,"Aboncourt Gesincourt",70500]
["Saint Loup d'Ordon",89330,null,null,null,null,"Buffignécourt",70500]
["Saint Lumier la Populeuse",51340,null,null,null,null,"Rosières sur Mance",70500]
["Saint Magne",33125,null,null,null,null,"Margilley",70600]
["Saint Mandrier sur Mer",83430,null,null,null,null,"Vellemoz",70700]
["Saint Marcel",73600,null,null,null,null,"Fontaine lès Luxeuil",70800]
["Saint Marcellin",38160,null,null,null,null,"Céron",71110]
["Saint Mards en Othe",10160,null,null,null,null,"Charolles",71120]
["Saint Mars Vieux Maisons",77320,null,null,null,null,"Vendenesse sur Arroux",71130]
["Saint Martial","07310",null,null,null,null,"Saint Aubin sur Loire",71140]
["Saint Martin",54450,null,null,null,null,"Perrigny sur Loire",71160]
["Saint Martin d'Ablois",51200,null,null,null,null,"Saint Eugène",71190]
["Saint Martin de Cornas",69700,null,null,null,null,"Saint Romain sous Gourdon",71230]
["Saint Martin de la Brasque",84760,null,null,null,null,"Nanton",71240]
["Saint Martin de Sallen",14220,null,null,null,null,"Saint Vincent des Prés",71250]
["Saint Martin des Champs",77320,null,null,null,null,"Saint Maurice de Satonnay",71260]
["Saint Martin des Tilleuls",85130,null,null,null,null,"Pierre de Bresse",71270]
["Saint Martin d'Ordon",89330,null,null,null,null,"Jouvençon",71290]
["Saint Martin du Tartre",71460,null,null,null,null,"Serley",71310]
["Saint Martin Laguépie",81170,null,null,null,null,"Allerey sur Saône",71350]
["Saint Martin l'Hortier",76270,null,null,null,null,"Saint Germain du Plain",71370]
["Saint Martin sur Cojeul",62128,null,null,null,null,"Jully lès Buxy",71390]
["Saint Matré",46800,null,null,null,null,"Ciry le Noble",71420]
["Saint Maurice aux Forges",54540,null,null,null,null,"Savigny sur Seille",71440]
["Saint Maurice des Champs",71460,null,null,null,null,"Cortevaix",71460]
["Saint Maurice en Cotentin",50270,null,null,null,null,"Malay",71460]
["Saint Maurice près Pionsat",63330,null,null,null,null,"Sainte Croix",71470]
["Saint Méard",87130,null,null,null,null,"Ratte",71500]
["Saint Melaine",35220,null,null,null,null,"Saint Pierre le Vieux",71520]
["Saint Merd de Lapleau",19320,null,null,null,null,"Virey le Grand",71530]
["Saint Michel Chef Chef",44730,null,null,null,null,"Frontenaud",71580]
["Saint Michel de Montaigne",24230,null,null,null,null,"Dyo",71610]
["Saint Michel Escalus",40550,null,null,null,null,"Dracy le Fort",71640]
["Saint Michel Loubéjou",46130,null,null,null,null,"Saint Jean de Vaux",71640]
["Saint Morillon",33650,null,null,null,null,"Martailly lès Brancion",71700]
["Saint Nicolas de la Balerme",47220,null,null,null,null,"Saint Laurent en Brionnais",71800]
["Saint Nicolas des Bois",50370,null,null,null,null,"Saint Boil",71940]
["Saint Offenge Dessous",73100,null,null,null,null,"La Grande Verrière",71990]
["Saint Ouen des Alleux",35140,null,null,null,null,"Montaillé",72120]
["Saint Ouen le Mauger",76730,null,null,null,null,"Saint Victeur",72130]
["Saint Ouen sur Loire",58160,null,null,null,null,"Rouëssé Vassé",72140]
["Saint Palais",18110,null,null,null,null,"Thorigné sur Dué",72160]
["Saint Papoul",11400,null,null,null,null,"Neuville sur Sarthe",72190]
["Saint Patrice",37130,null,null,null,null,"Bernay",72240]
["Saint Paul aux Bois","02300",null,null,null,null,"Brette les Pins",72250]
["Saint Paul du Bois",49310,null,null,null,null,"Dureil",72270]
["Saint Paul sur Save",31530,null,null,null,null,"Vion",72300]
["Saint Péray","07130",null,null,null,null,"Saint Ulphace",72320]
["Saint Philibert",21220,null,null,null,null,"Verneil le Chétif",72360]
["Saint Pierre Canivet",14700,null,null,null,null,"Avezé",72400]
["Saint Pierre de Cernières",27390,null,null,null,null,"Pirmil",72430]
["Saint Pierre de Fursac",23290,null,null,null,null,"Saint Corneille",72460]
["Saint Pierre de Méaroz",38350,null,null,null,null,"Jupilles",72500]
["Saint Pierre des Jonquières",76660,null,null,null,null,"Loué",72540]
["Saint Pierre du Mont",40280,null,null,null,null,"Louvigny",72600]
["Saint Pierre la Garenne",27600,null,null,null,null,"Béthon",72610]
["Saint Pierre Quiberon",56510,null,null,null,null,"Les Aulneaux",72670]
["Saint Plantaire",36190,null,null,null,null,"Bassens",73000]
["Saint Porchaire",17250,null,null,null,null,"La Chapelle Blanche",73110]
["Saint Priest Bramefant",63310,null,null,null,null,"La Chambre",73130]
["Saint Priest la Roche",42590,null,null,null,null,"Sainte Marie de Cuines",73130]
["Saint Prix","03120",null,null,null,null,"Traize",73170]
["Saint Quentin des Isles",27270,null,null,null,null,"Thénésol",73200]
["Saint Quentin sur Indrois",37310,null,null,null,null,"Montsapey",73220]
["Saint Rémy",21500,null,null,null,null,"Bonneval",73260]
["Saint Rémy du Nord",59330,null,null,null,null,"Le Châtel",73300]
["Saint Rémy sur Durolle",63550,null,null,null,null,"Domessin",73330]
["Saint Roch",37390,null,null,null,null,"Planay",73350]
["Saint Romain de Benet",17600,null,null,null,null,"Betton Bettonet",73390]
["Saint Roman",26410,null,null,null,null,"Saint Jean de Belleville",73440]
["Saint Samson",56580,null,null,null,null,"Bessans",73480]
["Saint Saturnin",15190,null,null,null,null,"Saint Sorlin d'Arves",73530]
["Saint Sauveur",31790,null,null,null,null,"Saint Alban de Montbel",73610]
["Saint Sauveur des Landes",35133,null,null,null,null,"Montvalezan",73700]
["Saint Sauveur la Sagne",63220,null,null,null,null,"Saint Paul sur Isère",73730]
["Saint Seine l'Abbaye",21440,null,null,null,null,"Montriond",74110]
["Saint Sernin",47120,null,null,null,null,"Contamine sur Arve",74130]
["Saint Séverin",16390,null,null,null,null,"Lornay",74150]
["Saint Simon",16120,null,null,null,null,"Feigères",74160]
["Saint Sornin la Marche",87210,null,null,null,null,"Thonon les Bains",74200]
["Saint Sulpice de Cognac",16370,null,null,null,null,"Fillinges",74250]
["Saint Sulpice le Guérétois",23000,null,null,null,null,"Frangy",74270]
["Saint Sylvestre","07440",null,null,null,null,"Cluses",74300]
["Saint Symphorien",27500,null,null,null,null,"Choisy",74330]
["Saint Thégonnec",29410,null,null,null,null,"Saint Blaise",74350]
["Saint Thurial",35310,null,null,null,null,"Chamonix Mont Blanc",74400]
["Saint Urbain Maconcourt",52300,null,null,null,null,"La Rivière Enverse",74440]
["Saint Vaast lès Mello",60660,null,null,null,null,"Chevenoz",74500]
["Saint Vérand",38160,null,null,null,null,"Cusy",74540]
["Saint Victor la Coste",30290,null,null,null,null,"Balmont",74600]
["Saint Vigor",27930,null,null,null,null,"La Chapelle Rambaud",74800]
["Saint Vincent",43800,null,null,null,null,"Bassy",74910]
["Saint Vincent des Prés",72600,null,null,null,null,"Paris",75002]
["Saint Vitte",18360,null,null,null,null,"Bec de Mortagne",76110]
["Saint Ybars","09210",null,null,null,null,"Vattetot sur Mer",76111]
["Sainte Agnès","06500",null,null,null,null,"Saint Martin du Bec",76133]
["Sainte Barbe",57640,null,null,null,null,"La Trinité du Mont",76170]
["Sainte Céronne lès Mortagne",61380,null,null,null,null,"Étoutteville",76190]
["Sainte Colombe",25300,null,null,null,null,"Beuzevillette",76210]
["Sainte Croix","01120",null,null,null,null,"La Feuillie",76220]
["Sainte Éanne",79800,null,null,null,null,"Longroy",76260]
["Sainte Eulalie",33560,null,null,null,null,"Saint Pierre en Val",76260]
["Sainte Foi","09500",null,null,null,null,"Neuville Ferrières",76270]
["Sainte Gemme",33580,null,null,null,null,"Villainville",76280]
["Sainte Geneviève sur Argence",12420,null,null,null,null,"Fallencourt",76340]
["Sainte Juliette",82110,null,null,null,null,"Ancourt",76370]
["Sainte Marguerite d'Elle",14330,null,null,null,null,"Criquiers",76390]
["Sainte Marie de Chignac",24330,null,null,null,null,"Saint Aubin lès Elbeuf",76410]
["Sainte Marie des Champs",76190,null,null,null,null,"Gommerville",76430]
["Sainte Maure de Touraine",37800,null,null,null,null,"Haucourt",76440]
["Sainte Pezenne",79000,null,null,null,null,"Butot en Caux",76450]
["Sainte Savine",10300,null,null,null,null,"Blosseville",76460]
["Sainte Thorette",18500,null,null,null,null,"Épinay sur Duclair",76480]
["Saires la Verrerie",61220,null,null,null,null,"Orival",76500]
["Salavas","07150",null,null,null,null,"Quévreville la Poterie",76520]
["Salignac",33240,null,null,null,null,"Thiergeville",76540]
["Saligny",89100,null,null,null,null,"Ambrumesnil",76550]
["Sallèdes",63270,null,null,null,null,"Fultot",76560]
["Salles et Pratviel",31110,null,null,null,null,"Le Trait",76580]
["Salornay sur Guye",71250,null,null,null,null,"Saint Honoré",76590]
["Samatan",32130,null,null,null,null,"Greny",76630]
["Sampigny",55300,null,null,null,null,"Normanville",76640]
["Sancourt",27150,null,null,null,null,"Preuseville",76660]
["San-Martino-di-Lota",20200,null,null,null,null,"Bocasse",76690]
["Sanous",65500,null,null,null,null,"Frichemesnil",76690]
["Sant'Andréa-d'Orcino",20151,null,null,null,null,"Auffay",76720]
["Sanxay",86600,null,null,null,null,"Tocqueville en Caux",76730]
["Saraz",25330,null,null,null,null,"Bierville",76750]
["Sargé sur Braye",41170,null,null,null,null,"Auzouville l'Esneval",76760]
["Sarraltroff",57400,null,null,null,null,"Fry",76780]
["Sarry",89310,null,null,null,null,"Bracquetuit",76850]
["Sassetot le Malgardé",76730,null,null,null,null,"Bertrimont",76890]
["Sassis",65120,null,null,null,null,"La Fontelaye",76890]
["Saudrupt",55000,null,null,null,null,"Les Grandes Ventes",76950]
["Saulchery","02310",null,null,null,null,"Soignolles en Brie",77111]
["Sault Brénaz","01150",null,null,null,null,"Chauconin",77124]
["Saulzais le Potier",18360,null,null,null,null,"Saint Germain Laval",77130]
["Saurais",79200,null,null,null,null,"Nonville",77140]
["Sauvage Magny",52220,null,null,null,null,"Vulaines lès Provins",77160]
["Sauveterre",32220,null,null,null,null,"Poligny",77167]
["Sauveterre la Lémance",47500,null,null,null,null,"Coubert",77170]
["Sauze du Lac","05160",null,null,null,null,"Torcy",77200]
["Savianges",71460,null,null,null,null,"Vinantes",77230]
["Savigneux",42600,null,null,null,null,"Othis",77280]
["Savigny sous Mâlain",21540,null,null,null,null,"Leudon en Brie",77320]
["Savournon","05700",null,null,null,null,"Vaires sur Marne",77360]
["Schaeffersheim",67150,null,null,null,null,"Guignes",77390]
["Schoenau",67390,null,null,null,null,"Saint Mesmes",77410]
["Scrupt",51340,null,null,null,null,"Vignely",77450]
["Sébécourt",27190,null,null,null,null,"Montceaux lès Meaux",77470]
["Sédeilhac",31580,null,null,null,null,"Bellot",77510]
["Ségrie Fontaine",61100,null,null,null,null,"Luisetaines",77520]
["Seignosse",40510,null,null,null,null,"Limoges Fourches",77550]
["Selincourt",80640,null,null,null,null,"La Madeleine sur Loing",77570]
["Sembouès",32230,null,null,null,null,"Guermantes",77600]
["Semousies",59440,null,null,null,null,"Longueville",77650]
["Senaud",39160,null,null,null,null,"Treuzy Levelay",77710]
["Sénéchas",30450,null,null,null,null,"Bombon",77720]
["Sennecey le Grand",71240,null,null,null,null,"Saint Cyr sur Morin",77750]
["Sens",89100,null,null,null,null,"Châtillon la Borde",77820]
["Sept Frères",14380,null,null,null,null,"Gironville",77890]
["Serain","02110",null,null,null,null,"Voulx",77940]
["Sère Lanso",65100,null,null,null,null,"Condé sur Vesgre",78113]
["Sérignac sur Garonne",47310,null,null,null,null,"Aulnay sur Mauldre",78126]
["Sermano",20212,null,null,null,null,"Mantes la Ville",78200]
["Sermizelles",89200,null,null,null,null,"Aigremont",78240]
["Serraval",74230,null,null,null,null,"Limetz Villez",78270]
["Serrières de Briord","01470",null,null,null,null,"Plaisir",78370]
["Serves sur Rhône",26600,null,null,null,null,"Montalet le Bois",78440]
["Servoz",74310,null,null,null,null,"Vicq",78490]
["Sévérac le Château",12150,null,null,null,null,"Jumeauville",78580]
["Seynes",30580,null,null,null,null,"Orsonville",78660]
["Seyssel","01420",null,null,null,null,"Villennes sur Seine",78670]
["Sigean",11130,null,null,null,null,"Hargeville",78790]
["Signy le Petit","08380",null,null,null,null,"Tilly",78790]
["Sillars",86320,null,null,null,null,"Osmoy",78910]
["Sindères",40110,null,null,null,null,"Louzy",79100]
["Sion les Mines",44590,null,null,null,null,"Saint Cyr la Lande",79100]
["Sissonne","02150",null,null,null,null,"La Bataille",79110]
["Sognolles en Montois",77520,null,null,null,null,"Secondigny",79130]
["Soindres",78200,null,null,null,null,"Pin",79140]
["Solignat",63500,null,null,null,null,"Ensigné",79170]
["Solliès Toucas",83210,null,null,null,null,"Secondigné sur Belle",79170]
["Somme Bionne",51800,null,null,null,null,"Adilly",79200]
["Sommette Eaucourt","02480",null,null,null,null,"Champdeniers Saint Denis",79220]
["Sonnac sur l'Hers",11230,null,null,null,null,"L'Absie",79240]
["Sorbiers","05150",null,null,null,null,"Vallans",79270]
["Sornay",70150,null,null,null,null,"Verruyes",79310]
["Sos",47170,null,null,null,null,"Coulonges Thouarsais",79330]
["Soucieu en Jarrest",69510,null,null,null,null,"Prissé la Charrière",79360]
["Soudan",79800,null,null,null,null,"Celles sur Belle",79370]
["Sougé le Ganelon",72130,null,null,null,null,"Oroux",79390]
["Soulaires",28130,null,null,null,null,"Vautebis",79420]
["Soulomès",46240,null,null,null,null,"Borcq sur Airvault",79600]
["Souppes sur Loing",77460,null,null,null,null,"Rorthais",79700]
["Soustons",40140,null,null,null,null,"Fresnoy en Chaussée",80110]
["Souvigné",16240,null,null,null,null,"Plessier Rozainvillers",80110]
["Stainville",55500,null,null,null,null,"Bellancourt",80132]
["Stigny",89160,null,null,null,null,"Hangest en Santerre",80134]
["Suaucourt et Pisseloup",70120,null,null,null,null,"Étréjust",80140]
["Subligny",89100,null,null,null,null,"Framicourt",80140]
["Sully",60380,null,null,null,null,"Saint Maxent",80140]
["Surgy",58500,null,null,null,null,"Gueschart",80150]
["Sussac",87130,null,null,null,null,"Fransures",80160]
["Suzannecourt",52300,null,null,null,null,"Rogy",80160]
["Taillefontaine","02600",null,null,null,null,"Nesle",80190]
["Taizé Aizie",16700,null,null,null,null,"Bussu",80200]
["Tallenay",25870,null,null,null,null,"Saint Christ Briost",80200]
["Tallud Sainte Gemme",85390,null,null,null,null,"Aigneville",80210]
["Tancon",71740,null,null,null,null,"Estréboeuf",80230]
["Taponas",69220,null,null,null,null,"Sorel",80240]
["Tarrano",20234,null,null,null,null,"Allonville",80260]
["Tartiers","02290",null,null,null,null,"La Vicogne",80260]
["Tavaco",20167,null,null,null,null,"Croixrault",80290]
["Técou",81600,null,null,null,null,"Authuille",80300]
["Temple",41170,null,null,null,null,"Laviéville",80300]
["Tenay","01230",null,null,null,null,"Morlancourt",80300]
["Termes","08250",null,null,null,null,"Riencourt",80310]
["Terrehault",72110,null,null,null,null,"Fontaine lès Cappy",80340]
["Teulat",81500,null,null,null,null,"Sailly Saillisel",80360]
["Thaix",58250,null,null,null,null,"Frohen le Grand",80370]
["Theil sur Vanne",89760,null,null,null,null,"Ham",80400]
["Thenay",36800,null,null,null,null,"Laboissière Saint Martin",80430]
["Thérouanne",62129,null,null,null,null,"Oust Marest",80460]
["Théus","05190",null,null,null,null,"Bacouel sur Selle",80480]
["Thézey Saint Martin",54610,null,null,null,null,"Bouillancourt la Bataille",80500]
["Thiennes",59189,null,null,null,null,"Rollot",80500]
["Thil sur Arroux",71190,null,null,null,null,"Saint Aubin Monténoy",80540]
["Thimory",45260,null,null,null,null,"Bus lès Artois",80560]
["Thodure",38260,null,null,null,null,"Pont Rémy",80580]
["Thomer la Sôgne",27240,null,null,null,null,"Doullens",80600]
["Thonnance lès Joinville",52300,null,null,null,null,"Longuevillette",80600]
["Thorey Lyautey",54115,null,null,null,null,"Surcamps",80620]
["Thou",18260,null,null,null,null,"Havernas",80670]
["Thumeries",59239,null,null,null,null,"Fonches Fonchette",80700]
["Tigeaux",77163,null,null,null,null,"Ignaucourt",80720]
["Til Châtel",21120,null,null,null,null,"Candas",80750]
["Tilly sur Meuse",55220,null,null,null,null,"Bouchon",80830]
["Tizac de Curton",33420,null,null,null,null,"Lagarrigue",81090]
["Tocqueville les Murs",76110,null,null,null,null,"Dourgne",81110]
["Tonquédec",22140,null,null,null,null,"Ronel",81120]
["Tordouet",14290,null,null,null,null,"Penne",81140]
["Tôtes",76890,null,null,null,null,"Campes",81170]
["Toulonjac",12200,null,null,null,null,"Saint Christophe",81190]
["Toulouse le Château",39230,null,null,null,null,"Mazamet",81200]
["Tournai sur Dive",61160,null,null,null,null,"Curvalle",81250]
["Tourniac",15700,null,null,null,null,"Saint Affrique les Montagnes",81290]
["Tournon Saint Pierre",37290,null,null,null,null,"Moulayrès",81300]
["Tourville sur Odon",14210,null,null,null,null,"Saint Sulpice",81370]
["Touville",27290,null,null,null,null,"Montdragon",81440]
["Toy Viam",19170,null,null,null,null,"Vénès",81440]
["Trannes",10140,null,null,null,null,"Pratviel",81500]
["Travaillan",84850,null,null,null,null,"Viane",81530]
["Trébry",22510,null,null,null,null,"Montans",81600]
["Tréflévenez",29800,null,null,null,null,"Pont de Larn",81660]
["Tréglonou",29870,null,null,null,null,"Puylaurens",81700]
["Trémauville",76640,null,null,null,null,"Saint Amans de Pellagal",82110]
["Trémoins",70400,null,null,null,null,"Lafrançaise",82130]
["Trémonzey",88240,null,null,null,null,"Féneyrols",82140]
["Tressandans",25680,null,null,null,null,"Boudou",82200]
["Treuzy Levelay",77710,null,null,null,null,"Saint Nicolas de la Grave",82210]
["Trévol","03460",null,null,null,null,"Montalzat",82270]
["Triembach au Val",67220,null,null,null,null,"Le Pin",82340]
["Trizay Coutretot Saint Serge",28400,null,null,null,null,"Perville",82400]
["Troisfontaines",57870,null,null,null,null,"Glatens",82500]
["Tronville en Barrois",55310,null,null,null,null,"Escatalens",82700]
["Trouville la Haule",27680,null,null,null,null,"Brue Auriac",83119]
["Trucy l'Orgueilleux",58460,null,null,null,null,"Mazaugues",83136]
["Turckheim",68230,null,null,null,null,"Le Pradet",83220]
["Uchacq et Parentis",40090,null,null,null,null,"Flassans sur Issole",83340]
["Uhrwiller",67350,null,null,null,null,"Mons",83440]
["Urbeis",67220,null,null,null,null,"Vidauban",83550]
["Urrugne",64122,null,null,null,null,"Collobrières",83610]
["Uruffe",54112,null,null,null,null,"Les Salles sur Verdon",83630]
["Ustou","09140",null,null,null,null,"Bargème",83840]
["Uxegney",88390,null,null,null,null,"Le Bourguet",83840]
["Vachères en Quint",26150,null,null,null,null,"Beaumont de Pertuis",84120]
["Vagnas","07150",null,null,null,null,"Vacqueyras",84190]
["Vaissac",82800,null,null,null,null,"La Motte d'Aigues",84240]
["Val d'Isère",73150,null,null,null,null,"Saint Pierre de Vassols",84330]
["Valbois",55300,null,null,null,null,"Auribeau",84400]
["Valcivières",63600,null,null,null,null,"Saignon",84400]
["Valentine",31800,null,null,null,null,"Maubec",84660]
["Valette",15400,null,null,null,null,"Saint Martin de la Brasque",84760]
["Vallant Saint Georges",10170,null,null,null,null,"Sigournais",85110]
["Vallerois Lorioz",70000,null,null,null,null,"Chauché",85140]
["Valmanya",66320,null,null,null,null,"Aizenay",85190]
["Valprivas",43210,null,null,null,null,"Saint Martin de Fraigneau",85200]
["Vanault les Dames",51340,null,null,null,null,"Landevieille",85220]
["Vandelans",70190,null,null,null,null,"Saint Urbain",85230]
["Vanzy",74270,null,null,null,null,"La Limouzinière",85310]
["Varaignes",24360,null,null,null,null,"Château Guibert",85320]
["Varennes le Grand",71240,null,null,null,null,"Saint Germain l'Aiguiller",85390]
["Varilhes","09120",null,null,null,null,"Maillé",85420]
["Vassens","02290",null,null,null,null,"Fougeré",85480]
["Vatimont",57580,null,null,null,null,"Saint Vincent sur Jard",85520]
["Vauchelles lès Quesnoy",80132,null,null,null,null,"Pouillé",85570]
["Vaudesson","02320",null,null,null,null,"Falleron",85670]
["Vaudreuille",31250,null,null,null,null,"Montournais",85700]
["Vaulx",62390,null,null,null,null,"Sénillé",86100]
["Vaumoise",60117,null,null,null,null,"Cuhon",86110]
["Vaux",89290,null,null,null,null,"Dissay",86130]
["Vaux Rouillac",16170,null,null,null,null,"Cissé",86170]
["Vaux sur Vienne",86220,null,null,null,null,"Maillé",86190]
["Vayres",87600,null,null,null,null,"Saint Laon",86200]
["Veigné",37250,null,null,null,null,"Croutelle",86240]
["Velesmes Essarts",25410,null,null,null,null,"Vicq sur Gartempe",86260]
["Velleclaire",70700,null,null,null,null,"La Trimouille",86290]
["Velorcey",70300,null,null,null,null,"La Bussière",86310]
["Vendelles","02490",null,null,null,null,"Aslonnes",86340]
["Vendranges",42590,null,null,null,null,"Chabournay",86380]
["Vengeons",50150,null,null,null,null,"Bouresse",86410]
["Ventelay",51140,null,null,null,null,"Pleumartin",86450]
["Véranne",42520,null,null,null,null,"Champagné le Sec",86510]
["Verdèse",20229,null,null,null,null,"Bignoux",86800]
["Verdon",51210,null,null,null,null,"Savigny Lévescault",86800]
["Verges",39570,null,null,null,null,"Masléon",87130]
["Verjux",71590,null,null,null,null,"Saint Sulpice les Feuilles",87160]
["Vernas",38460,null,null,null,null,"Boisseuil",87220]
["Verneuil en Bourbonnais","03500",null,null,null,null,"Pierre Buffière",87260]
["Verniolle","09340",null,null,null,null,"Berneuil",87300]
["Vernoux","01560",null,null,null,null,"Mortemart",87330]
["Verricourt",10240,null,null,null,null,"Saint Germain les Belles",87380]
["Verrières",16130,null,null,null,null,"Moissannes",87400]
["Versailles",78000,null,null,null,null,"Saint Julien le Petit",87460]
["Verteuil sur Charente",16510,null,null,null,null,"Beynac",87700]
["Verzy",51380,null,null,null,null,"Chantraine",88000]
["Vessey",50170,null,null,null,null,"Luvigny",88110]
["Veyrières",15350,null,null,null,null,"Savigny",88130]
["Vezels Roussy",15130,null,null,null,null,"Saulxures lès Bulgnéville",88140]
["Vianges",21430,null,null,null,null,"Biécourt",88170]
["Viazac",46100,null,null,null,null,"Dommartin sur Vraine",88170]
["Vichel Nanteuil","02210",null,null,null,null,"Vouxey",88170]
["Viefvillers",60360,null,null,null,null,"Raon aux Bois",88220]
["Viélaines",10430,null,null,null,null,"Le Clerjus",88240]
["Vienne",38200,null,null,null,null,"Pont lès Bonfays",88260]
["Vieux",81140,null,null,null,null,"Harol",88270]
["Vieux Mareuil",24340,null,null,null,null,"Thiéfosse",88290]
["Viey",65120,null,null,null,null,"Rebeuville",88300]
["Viggianello",20110,null,null,null,null,"Ventron",88310]
["Vignieu",38890,null,null,null,null,"Serocourt",88320]
["Villacourt",54290,null,null,null,null,"Archettes",88380]
["Villaines sous Malicorne",72270,null,null,null,null,"Gérardmer",88400]
["Villard",74420,null,null,null,null,"Corcieux",88430]
["Villaroux",73110,null,null,null,null,"Saint Michel sur Meurthe",88470]
["Villars Saint Marcellin",52400,null,null,null,null,"Bazoilles et Ménil",88500]
["Ville devant Belrain",55260,null,null,null,null,"Oëlleville",88500]
["Ville sur Lumes","08440",null,null,null,null,"La Forge",88530]
["Villebon",28190,null,null,null,null,"Fays",88600]
["Villechauve",41310,null,null,null,null,"Les Rouges Eaux",88600]
["Villecourt",80190,null,null,null,null,"Avranville",88630]
["Villefargeau",89240,null,null,null,null,"Granges sur Vologne",88640]
["Villefranque",65700,null,null,null,null,"Ortoncourt",88700]
["Villejuif",94800,null,null,null,null,"Lignéville",88800]
["Villemaur sur Vanne",10190,null,null,null,null,"Malay le Grand",89100]
["Villemur sur Tarn",31340,null,null,null,null,"Villiers sur Tholon",89110]
["Villenave d'Ornon",33140,null,null,null,null,"Cudot",89116]
["Villeneuve d'Ascq",59493,null,null,null,null,"Villefranche",89120]
["Villeneuve la Comtesse",17330,null,null,null,null,"Saint Sérotin",89140]
["Villeneuve lès Lavaur",81500,null,null,null,null,"Saint Valérien",89150]
["Villeneuve sur Fère","02130",null,null,null,null,"Vireaux",89160]
["Villepinte",93420,null,null,null,null,"Blannay",89200]
["Villeroy sur Méholle",55190,null,null,null,null,"Rogny les Sept Ecluses",89220]
["Villers Canivet",14420,null,null,null,null,"Gurgy",89250]
["Villers devant le Thour","08190",null,null,null,null,"La Postolle",89260]
["Villers la Chèvre",54870,null,null,null,null,"Vermenton",89270]
["Villers les Mangiennes",55150,null,null,null,null,"Annay sur Serein",89310]
["Villers Saint Martin",25110,null,null,null,null,"Dilo",89320]
["Villers sur Mer",14640,null,null,null,null,"Percey",89360]
["Villesèque des Corbières",11360,null,null,null,null,"Ormoy",89400]
["Villevenard",51270,null,null,null,null,"Saint Vinnemer",89430]
["Villiers Adam",95840,null,null,null,null,"Fontenay près Vézelay",89450]
["Villiers en Désoeuvre",27640,null,null,null,null,"Prégilbert",89460]
["Villiers le Sec",14480,null,null,null,null,"Dixmont",89500]
["Villiers sur Suize",52210,null,null,null,null,"Thury",89520]
["Villy en Trodes",10140,null,null,null,null,"Coulanges la Vineuse",89580]
["Vimy",62580,null,null,null,null,"Saint Léger Vauban",89630]
["Vindefontaine",50250,null,null,null,null,"Roffey",89700]
["Violès",84150,null,null,null,null,"Chailley",89770]
["Viré en Champagne",72350,null,null,null,null,"Belfort",90000]
["Virey le Grand",71530,null,null,null,null,"Florimont",90100]
["Virollet",17260,null,null,null,null,"Rougemont le Château",90110]
["Vissac",43300,null,null,null,null,"Frais",90150]
["Vitry aux Loges",45530,null,null,null,null,"Lachapelle sous Chaux",90300]
["Vittoncourt",57580,null,null,null,null,"Meroux Moval",90400]
["Viviers le Gras",88260,null,null,null,null,"Bondoufle",91070]
["Voharies","02140",null,null,null,null,"Puiselet le Marais",91150]
["Voisins le Bretonneux",78960,null,null,null,null,"Saint Germain lès Corbeil",91250]
["Vollore Ville",63120,null,null,null,null,"Linas",91310]
["Volx","04130",null,null,null,null,"Orsay",91400]
["Vou",37240,null,null,null,null,"Soisy sur Seine",91450]
["Voulangis",77580,null,null,null,null,"Ormoy",91540]
["Vouvray",37210,null,null,null,null,"La Ville du Bois",91620]
["Vraignes lès Hornoy",80640,null,null,null,null,"Dommerville",91670]
["Vry",57640,null,null,null,null,"Congerville Thionville",91740]
["Wacquemoulin",60420,null,null,null,null,"Soisy sur École",91840]
["Waldersbach",67130,null,null,null,null,"Montrouge",92120]
["Wangen",67520,null,null,null,null,"Ville d'Avray",92410]
["Warlus",80270,null,null,null,null,"Gagny",93220]
["Warneton",59560,null,null,null,null,"Sevran",93270]
["Wavrans sur l'Aa",62380,null,null,null,null,"Coubron",93470]
["Westbécourt",62380,null,null,null,null,"L'Hay les Roses",94240]
["Wildersbach",67130,null,null,null,null,"Ablon sur Seine",94480]
["Williers","08110",null,null,null,null,"Villejuif",94800]
["Wittelsheim",68310,null,null,null,null,"Lassy",95270]
["Woippy",57140,null,null,null,null,"Piscop",95350]
["Xammes",54470,null,null,null,null,"Magny en Vexin",95420]
["Xertigny",88220,null,null,null,null,"Butry sur Oise",95430]
["Yenne",73170,null,null,null,null,"Ézanville",95460]
["Ypreville",76540,null,null,null,null,"La Frette sur Seine",95530]
["Yvrac",33370,null,null,null,null,"Moussy",95640]
["Yzeures sur Creuse",37290,null,null,null,null,"Frouville",95690]
["Zoufftgen",57330,null,null,null,null,"Cormeilles en Vexin",95830]
[null,0]
[null,0]
[null,0]
[null,0]
[null,0]
[null,0]
[null,0]
[null,0]
[null,0]
[null,0]
[null,0]
[null,0]
[null,0]
[null,0]
[null,0]
[null,0]
[null,0]
[null,0]
[null,0]
[null,0]
[null,0]
[null,0]
[null,0]
[null,0]
[null,0]
[null,0]
[null,0]
[null,0]
[null,0]
[null,0]
[null,0]
[null,0]
[null,0]
[null,0]
[null,0]
[null,0]
[null,0]
[null,0]
[null,0]
[null,0]
[null,0]
[null,0]
[null,0]
[null,0]
[null,0]
[null,0]
[null,0]
[null,0]
[null,0]
[null,0]
[null,0]
[null,0]
[null,0]
[null,0]
[null,0]
[null,0]
[null,0]
[null,0]
[null,0]
[null,0]
[null,0]
[null,0]
[null,0]
[null,0]
[null,0]
[null,0]
[null,0]
[null,0]
[null,0]
[null,0]
[null,0]
[null,0]
[null,0]
[null,0]
[null,0]
[null,0]
[null,0]
[null,0]
[null,0]
[null,0]
[null,0]
[null,0]
[null,0]
[null,0]
[null,0]
[null,0]
[null,0]
[null,0]
[null,0]
[null,0]
[null,0]
[null,0]
[null,0]
[null,0]
[null,0]
[null,0]
[null,0]
[null,0]
[null,0]
[null,0]
[null,0]
[null,0]
[null,0]
[null,0]
[null,0]
[null,0]
[null,0]
[null,0]
[null,0]
[null,0]
[null,0]
[null,0]
[null,0]
[null,0]
[null,0]
[null,0]
[null,0]
[null,0]
[null,0]
[null,0]
[null,0]
[null,0]
[null,0]
[null,0]
[null,0]
[null,0]
[null,0]
[null,0]
[null,0]
[null,0]
[null,0]
[null,0]
[null,0]
[null,0]
[null,0]
[null,0]
[null,0]
[null,0]
[null,0]
[null,0]
[null,0]
[null,0]
[null,0]
[null,0]
[null,0]
[null,0]
[null,0]
[null,0]
[null,0]
[null,0]
[null,0]
[null,0]
[null,0]
[null,0]
[null,0]
[null,0]
[null,0]
[null,0]
[null,0]
[null,0]
[null,0]
[null,0]
[null,0]
[null,0]
[null,0]
[null,0]
[null,0]
[null,0]
[null,0]
[null,0]
[null,0]
[null,0]
[null,0]
[null,0]
[null,0]
[null,0]
[null,0]
[null,0]
[null,0]
[null,0]
[null,0]
[null,0]
[null,0]
[null,0]
[null,0]
[null,0]
[null,0]
[null,0]
[null,0]
[null,0]
[null,0]
[null,0]
[null,0]
[null,0]
[null,0]
[null,0]
[null,0]
[null,0]
[null,0]
[null,0]
[null,0]
[null,0]
[null,0]
[null,0]
[null,0]
[null,0]
[null,0]
[null,0]
[null,0]
[null,0]
[null,0]
[null,0]
[null,0]
[null,0]
[null,0]
[null,0]
[null,0]
[null,0]
[null,0]
[null,0]
[null,0]
[null,0]
[null,0]
[null,0]
[null,0]
[null,0]
[null,0]
[null,0]
[null,0]
[null,0]
[null,0]
[null,0]
[null,0]
[null,0]
[null,0]
[null,0]
[null,0]
[null,0]
[null,0]
[null,0]
[null,0]
[null,0]
[null,0]
[null,0]
[null,0]
[null,0]
[null,0]
[null,0]
[null,0]
[null,0]
[null,0]
[null,0]
[null,0]
[null,0]
[null,0]
[null,0]
[null,0]
[null,0]
[null,0]
[null,0]
[null,0]
[null,0]
[null,0]
[null,0]
[null,0]
[null,0]
[null,0]
[null,0]
[null,0]
[null,0]
[null,0]
[null,0]
[null,0]
[null,0]
[null,0]
[null,0]
[null,0]
[null,0]
[null,0]
[null,0]
[null,0]
[null,0]
[null,0]
[null,0]
[null,0]
[null,0]
[null,0]
[null,0]
[null,0]
[null,0]
[null,0]
[null,0]
[null,0]
[null,0]
[null,0]
[null,0]
[null,0]
[null,0]
[null,0]
[null,0]
[null,0]
[null,0]
[null,0]
[null,0]
[null,0]
[null,0]
[null,0]
[null,0]
[null,0]
[null,0]
[null,0]
[null,0]
[null,0]
[null,0]
[null,0]
[null,0]
[null,0]
[null,0]
[null,0]
[null,0]
[null,0]
[null,0]
[null,0]
[null,0]
[null,0]
[null,0]
[null,0]
[null,0]
[null,0]
[null,0]
[null,0]
[null,0]
[null,0]
[null,0]
[null,0]
[null,0]
[null,0]
[null,0]
[null,0]
[null,0]
[null,0]
[null,0]
[null,0]
[null,0]
[null,0]
[null,0]
[null,0]
[null,0]
[null,0]
[null,0]
[null,0]
[null,0]
[null,0]
[null,0]
[null,0]
[null,0]
[null,0]
[null,0]
[null,0]
[null,0]
[null,0]
[null,0]
[null,0]
[null,0]
[null,0]
[null,0]
[null,0]
[null,0]
[null,0]
[null,0]
[null,0]
[null,0]
[null,0]
[null,0]
[null,0]
[null,0]
[null,0]
[null,0]
[null,0]
[null,0]
[null,0]
[null,0]
[null,0]
[null,0]
[null,0]
[null,0]
[null,0]
[null,0]
[null,0]
[null,0]
[null,0]
[null,0]
[null,0]
[null,0]
[null,0]
[null,0]
[null,0]
[null,0]
[null,0]
[null,0]
[null,0]
[null,0]
[null,0]
[null,0]
[null,0]
[null,0]
[null,0]
[null,0]
[null,0]
[null,0]
[null,0]
[null,0]
[null,0]
[null,0]
[null,0]
[null,0]
[null,0]
[null,0]
[null,0]
[null,0]
[null,0]
[null,0]
[null,0]
[null,0]
[null,0]
[null,0]
[null,0]
[null,0]
[null,0]
[null,0]
[null,0]
[null,0]
[null,0]
[null,0]
[null,0]
[null,0]
[null,0]
[null,0]
[null,0]
[null,0]
[null,0]
[null,0]
[null,0]
[null,0]
[null,0]
[null,0]
[null,0]
[null,0]
[null,0]
[null,0]
[null,0]
[null,0]
[null,0]
[null,0]
[null,0]
[null,0]
[null,0]
[null,0]
[null,0]
[null,0]
[null,0]
[null,0]
[null,0]
[null,0]
[null,0]
[null,0]
[null,0]
[null,0]
[null,0]
[null,0]
[null,0]
[null,0]
[null,0]
[null,0]
[null,0]
[null,0]
[null,0]
[null,0]
[null,0]
[null,0]
[null,0]
[null,0]
[null,0]
[null,0]
[null,0]
[null,0]
[null,0]
[null,0]
[null,0]
[null,0]
[null,0]
[null,0]
[null,0]
[null,0]
[null,0]
[null,0]
[null,0]
[null,0]
[null,0]
[null,0]
[null,0]
[null,0]
[null,0]
[null,0]
[null,0]
[null,0]
[null,0]
[null,0]
[null,0]
[null,0]
[null,0]
[null,0]
[null,0]
[null,0]
[null,0]
[null,0]
[null,0]
[null,0]
[null,0]
[null,0]
[null,0]
[null,0]
[null,0]
[null,0]
[null,0]
[null,0]
[null,0]
[null,0]
[null,0]
[null,0]
[null,0]
[null,0]
[null,0]
[null,0]
[null,0]
[null,0]
[null,0]
[null,0]
[null,0]
[null,0]
[null,0]
[null,0]
[null,0]
[null,0]
[null,0]
[null,0]
[null,0]
[null,0]
[null,0]
[null,0]
[null,0]
[null,0]
[null,0]
[null,0]
[null,0]
[null,0]
[null,0]
[null,0]
[null,0]
[null,0]
[null,0]
[null,0]
[null,0]
[null,0]
[null,0]
[null,0]
[null,0]
[null,0]
[null,0]
[null,0]
[null,0]
[null,0]
[null,0]
[null,0]
[null,0]
[null,0]
[null,0]

{"sheet":"EDIT","index":1,"n_rows":74,"n_cols":8,"rows_kept":74,"cut":false,"hidden":false,"merged":[[1,1,2,2],[1,4,2,5],[1,7,2,7]]}
[]
[null,"QUELLE CODE POUR CETTE VILLE ?",null,null,"QUELLE VILLE POUR CE CODE ?",null,null,{"$f":"IF(F4=\"\",\"\",COUNTIF(DATA!B:B,F4)&IF(COUNTIF(DATA!B:B,F4)>1,\" villes trouvées\",\" ville trouvée\"))","v":"1 ville trouvée"}]
[]
[null,"Ville","Castelnau le Lez",null,"code",34170,null,{"$f":"IF(OR($F$4=\"\",COUNTIF(DATA!H:H,$F$4)<=ROW()-4),\"\",INDEX(DATA!G:G,MATCH($F$4*1,DATA!H:H,0)+ROW()-4))","v":"Castelnau le Lez"}]
[null,null,null,null,null,null,null,{"$f":"IF(OR($F$4=\"\",COUNTIF(DATA!H:H,$F$4)<=ROW()-4),\"\",INDEX(DATA!G:G,MATCH($F$4*1,DATA!H:H,0)+ROW()-4))","v":""}]
[null,"Code",{"$f":"IF(ISNA(VLOOKUP($C$4,CHAMP,2,0)),\"\",VLOOKUP($C$4,CHAMP,2,0))","v":34170},null,"Departement",{"$f":"IF(F4=\"\",\"\",INDEX(DATA!D:D,MATCH(LEFT(F4,LEN(F4)-3)*1,DATA!E:E,0)))","v":"HERAULT"},null,{"$f":"IF(OR($F$4=\"\",COUNTIF(DATA!H:H,$F$4)<=ROW()-4),\"\",INDEX(DATA!G:G,MATCH($F$4*1,DATA!H:H,0)+ROW()-4))","v":""}]
[null,"Departement",{"$f":"IF($C$6=\"\",\"\",INDEX(LISTdep,MATCH(LEFT($C$6,2)*1,NUMdep,0)))","v":"HERAULT"},null,null,null,null,{"$f":"IF(OR($F$4=\"\",COUNTIF(DATA!H:H,$F$4)<=ROW()-4),\"\",INDEX(DATA!G:G,MATCH($F$4*1,DATA!H:H,0)+ROW()-4))","v":""}]
[null,null,null,null,null,null,null,{"$f":"IF(OR($F$4=\"\",COUNTIF(DATA!H:H,$F$4)<=ROW()-4),\"\",INDEX(DATA!G:G,MATCH($F$4*1,DATA!H:H,0)+ROW()-4))","v":""}]
[null,null,null,null,null,null,null,{"$f":"IF(OR($F$4=\"\",COUNTIF(DATA!H:H,$F$4)<=ROW()-4),\"\",INDEX(DATA!G:G,MATCH($F$4*1,DATA!H:H,0)+ROW()-4))","v":""}]
[null,"Choisir une ville en C4",null,null,null,null,null,{"$f":"IF(OR($F$4=\"\",COUNTIF(DATA!H:H,$F$4)<=ROW()-4),\"\",INDEX(DATA!G:G,MATCH($F$4*1,DATA!H:H,0)+ROW()-4))","v":""}]
[null,"La liste du menu correspond aux villes dont le nom débute par le texte entré",null,null,null,null,null,{"$f":"IF(OR($F$4=\"\",COUNTIF(DATA!H:H,$F$4)<=ROW()-4),\"\",INDEX(DATA!G:G,MATCH($F$4*1,DATA!H:H,0)+ROW()-4))","v":""}]
[null,null,null,null,null,null,null,{"$f":"IF(OR($F$4=\"\",COUNTIF(DATA!H:H,$F$4)<=ROW()-4),\"\",INDEX(DATA!G:G,MATCH($F$4*1,DATA!H:H,0)+ROW()-4))","v":""}]
[null,"Entrer un code postal en F4",null,null,null,null,null,{"$f":"IF(OR($F$4=\"\",COUNTIF(DATA!H:H,$F$4)<=ROW()-4),\"\",INDEX(DATA!G:G,MATCH($F$4*1,DATA!H:H,0)+ROW()-4))","v":""}]
[null,"La liste à droite donne le nombre de lieux avec le même code",null,null,null,null,null,{"$f":"IF(OR($F$4=\"\",COUNTIF(DATA!H:H,$F$4)<=ROW()-4),\"\",INDEX(DATA!G:G,MATCH($F$4*1,DATA!H:H,0)+ROW()-4))","v":""}]
[null,null,null,null,null,null,null,{"$f":"IF(OR($F$4=\"\",COUNTIF(DATA!H:H,$F$4)<=ROW()-4),\"\",INDEX(DATA!G:G,MATCH($F$4*1,DATA!H:H,0)+ROW()-4))","v":""}]
[null,null,null,null,null,null,null,{"$f":"IF(OR($F$4=\"\",COUNTIF(DATA!H:H,$F$4)<=ROW()-4),\"\",INDEX(DATA!G:G,MATCH($F$4*1,DATA!H:H,0)+ROW()-4))","v":""}]
[null,null,null,null,null,null,null,{"$f":"IF(OR($F$4=\"\",COUNTIF(DATA!H:H,$F$4)<=ROW()-4),\"\",INDEX(DATA!G:G,MATCH($F$4*1,DATA!H:H,0)+ROW()-4))","v":""}]
[null,null,null,null,null,null,null,{"$f":"IF(OR($F$4=\"\",COUNTIF(DATA!H:H,$F$4)<=ROW()-4),\"\",INDEX(DATA!G:G,MATCH($F$4*1,DATA!H:H,0)+ROW()-4))","v":""}]
[null,null,null,null,null,null,null,{"$f":"IF(OR($F$4=\"\",COUNTIF(DATA!H:H,$F$4)<=ROW()-4),\"\",INDEX(DATA!G:G,MATCH($F$4*1,DATA!H:H,0)+ROW()-4))","v":""}]
[null,null,null,null,null,null,null,{"$f":"IF(OR($F$4=\"\",COUNTIF(DATA!H:H,$F$4)<=ROW()-4),\"\",INDEX(DATA!G:G,MATCH($F$4*1,DATA!H:H,0)+ROW()-4))","v":""}]
[null,null,null,null,null,null,null,{"$f":"IF(OR($F$4=\"\",COUNTIF(DATA!H:H,$F$4)<=ROW()-4),\"\",INDEX(DATA!G:G,MATCH($F$4*1,DATA!H:H,0)+ROW()-4))","v":""}]
[null,null,null,null,null,null,null,{"$f":"IF(OR($F$4=\"\",COUNTIF(DATA!H:H,$F$4)<=ROW()-4),\"\",INDEX(DATA!G:G,MATCH($F$4*1,DATA!H:H,0)+ROW()-4))","v":""}]
[null,null,null,null,null,null,null,{"$f":"IF(OR($F$4=\"\",COUNTIF(DATA!H:H,$F$4)<=ROW()-4),\"\",INDEX(DATA!G:G,MATCH($F$4*1,DATA!H:H,0)+ROW()-4))","v":""}]
[null,null,null,null,null,null,null,{"$f":"IF(OR($F$4=\"\",COUNTIF(DATA!H:H,$F$4)<=ROW()-4),\"\",INDEX(DATA!G:G,MATCH($F$4*1,DATA!H:H,0)+ROW()-4))","v":""}]
[null,null,null,null,null,null,null,{"$f":"IF(OR($F$4=\"\",COUNTIF(DATA!H:H,$F$4)<=ROW()-4),\"\",INDEX(DATA!G:G,MATCH($F$4*1,DATA!H:H,0)+ROW()-4))","v":""}]
[null,null,null,null,null,null,null,{"$f":"IF(OR($F$4=\"\",COUNTIF(DATA!H:H,$F$4)<=ROW()-4),\"\",INDEX(DATA!G:G,MATCH($F$4*1,DATA!H:H,0)+ROW()-4))","v":""}]
[null,null,null,null,null,null,null,{"$f":"IF(OR($F$4=\"\",COUNTIF(DATA!H:H,$F$4)<=ROW()-4),\"\",INDEX(DATA!G:G,MATCH($F$4*1,DATA!H:H,0)+ROW()-4))","v":""}]
[null,null,null,null,null,null,null,{"$f":"IF(OR($F$4=\"\",COUNTIF(DATA!H:H,$F$4)<=ROW()-4),\"\",INDEX(DATA!G:G,MATCH($F$4*1,DATA!H:H,0)+ROW()-4))","v":""}]
[null,null,null,null,null,null,null,{"$f":"IF(OR($F$4=\"\",COUNTIF(DATA!H:H,$F$4)<=ROW()-4),\"\",INDEX(DATA!G:G,MATCH($F$4*1,DATA!H:H,0)+ROW()-4))","v":""}]
[null,null,null,null,null,null,null,{"$f":"IF(OR($F$4=\"\",COUNTIF(DATA!H:H,$F$4)<=ROW()-4),\"\",INDEX(DATA!G:G,MATCH($F$4*1,DATA!H:H,0)+ROW()-4))","v":""}]
[null,null,null,null,null,null,null,{"$f":"IF(OR($F$4=\"\",COUNTIF(DATA!H:H,$F$4)<=ROW()-4),\"\",INDEX(DATA!G:G,MATCH($F$4*1,DATA!H:H,0)+ROW()-4))","v":""}]
[null,null,null,null,null,null,null,{"$f":"IF(OR($F$4=\"\",COUNTIF(DATA!H:H,$F$4)<=ROW()-4),\"\",INDEX(DATA!G:G,MATCH($F$4*1,DATA!H:H,0)+ROW()-4))","v":""}]
[null,null,null,null,null,null,null,{"$f":"IF(OR($F$4=\"\",COUNTIF(DATA!H:H,$F$4)<=ROW()-4),\"\",INDEX(DATA!G:G,MATCH($F$4*1,DATA!H:H,0)+ROW()-4))","v":""}]
[null,null,null,null,null,null,null,{"$f":"IF(OR($F$4=\"\",COUNTIF(DATA!H:H,$F$4)<=ROW()-4),\"\",INDEX(DATA!G:G,MATCH($F$4*1,DATA!H:H,0)+ROW()-4))","v":""}]
[null,null,null,null,null,null,null,{"$f":"IF(OR($F$4=\"\",COUNTIF(DATA!H:H,$F$4)<=ROW()-4),\"\",INDEX(DATA!G:G,MATCH($F$4*1,DATA!H:H,0)+ROW()-4))","v":""}]
[null,null,null,null,null,null,null,{"$f":"IF(OR($F$4=\"\",COUNTIF(DATA!H:H,$F$4)<=ROW()-4),\"\",INDEX(DATA!G:G,MATCH($F$4*1,DATA!H:H,0)+ROW()-4))","v":""}]
[null,null,null,null,null,null,null,{"$f":"IF(OR($F$4=\"\",COUNTIF(DATA!H:H,$F$4)<=ROW()-4),\"\",INDEX(DATA!G:G,MATCH($F$4*1,DATA!H:H,0)+ROW()-4))","v":""}]
[null,null,null,null,null,null,null,{"$f":"IF(OR($F$4=\"\",COUNTIF(DATA!H:H,$F$4)<=ROW()-4),\"\",INDEX(DATA!G:G,MATCH($F$4*1,DATA!H:H,0)+ROW()-4))","v":""}]
[null,null,null,null,null,null,null,{"$f":"IF(OR($F$4=\"\",COUNTIF(DATA!H:H,$F$4)<=ROW()-4),\"\",INDEX(DATA!G:G,MATCH($F$4*1,DATA!H:H,0)+ROW()-4))","v":""}]
[null,null,null,null,null,null,null,{"$f":"IF(OR($F$4=\"\",COUNTIF(DATA!H:H,$F$4)<=ROW()-4),\"\",INDEX(DATA!G:G,MATCH($F$4*1,DATA!H:H,0)+ROW()-4))","v":""}]
[null,null,null,null,null,null,null,{"$f":"IF(OR($F$4=\"\",COUNTIF(DATA!H:H,$F$4)<=ROW()-4),\"\",INDEX(DATA!G:G,MATCH($F$4*1,DATA!H:H,0)+ROW()-4))","v":""}]
[null,null,null,null,null,null,null,{"$f":"IF(OR($F$4=\"\",COUNTIF(DATA!H:H,$F$4)<=ROW()-4),\"\",INDEX(DATA!G:G,MATCH($F$4*1,DATA!H:H,0)+ROW()-4))","v":""}]
[null,null,null,null,null,null,null,{"$f":"IF(OR($F$4=\"\",COUNTIF(DATA!H:H,$F$4)<=ROW()-4),\"\",INDEX(DATA!G:G,MATCH($F$4*1,DATA!H:H,0)+ROW()-4))","v":""}]
[null,null,null,null,null,null,null,{"$f":"IF(OR($F$4=\"\",COUNTIF(DATA!H:H,$F$4)<=ROW()-4),\"\",INDEX(DATA!G:G,MATCH($F$4*1,DATA!H:H,0)+ROW()-4))","v":""}]
[null,null,null,null,null,null,null,{"$f":"IF(OR($F$4=\"\",COUNTIF(DATA!H:H,$F$4)<=ROW()-4),\"\",INDEX(DATA!G:G,MATCH($F$4*1,DATA!H:H,0)+ROW()-4))","v":""}]
[null,null,null,null,null,null,null,{"$f":"IF(OR($F$4=\"\",COUNTIF(DATA!H:H,$F$4)<=ROW()-4),\"\",INDEX(DATA!G:G,MATCH($F$4*1,DATA!H:H,0)+ROW()-4))","v":""}]
[null,null,null,null,null,null,null,{"$f":"IF(OR($F$4=\"\",COUNTIF(DATA!H:H,$F$4)<=ROW()-4),\"\",INDEX(DATA!G:G,MATCH($F$4*1,DATA!H:H,0)+ROW()-4))","v":""}]
[null,null,null,null,null,null,null,{"$f":"IF(OR($F$4=\"\",COUNTIF(DATA!H:H,$F$4)<=ROW()-4),\"\",INDEX(DATA!G:G,MATCH($F$4*1,DATA!H:H,0)+ROW()-4))","v":""}]
[null,null,null,null,null,null,null,{"$f":"IF(OR($F$4=\"\",COUNTIF(DATA!H:H,$F$4)<=ROW()-4),\"\",INDEX(DATA!G:G,MATCH($F$4*1,DATA!H:H,0)+ROW()-4))","v":""}]
[null,null,null,null,null,null,null,{"$f":"IF(OR($F$4=\"\",COUNTIF(DATA!H:H,$F$4)<=ROW()-4),\"\",INDEX(DATA!G:G,MATCH($F$4*1,DATA!H:H,0)+ROW()-4))","v":""}]
[null,null,null,null,null,null,null,{"$f":"IF(OR($F$4=\"\",COUNTIF(DATA!H:H,$F$4)<=ROW()-4),\"\",INDEX(DATA!G:G,MATCH($F$4*1,DATA!H:H,0)+ROW()-4))","v":""}]
[null,null,null,null,null,null,null,{"$f":"IF(OR($F$4=\"\",COUNTIF(DATA!H:H,$F$4)<=ROW()-4),\"\",INDEX(DATA!G:G,MATCH($F$4*1,DATA!H:H,0)+ROW()-4))","v":""}]
[null,null,null,null,null,null,null,{"$f":"IF(OR($F$4=\"\",COUNTIF(DATA!H:H,$F$4)<=ROW()-4),\"\",INDEX(DATA!G:G,MATCH($F$4*1,DATA!H:H,0)+ROW()-4))","v":""}]
[null,null,null,null,null,null,null,{"$f":"IF(OR($F$4=\"\",COUNTIF(DATA!H:H,$F$4)<=ROW()-4),\"\",INDEX(DATA!G:G,MATCH($F$4*1,DATA!H:H,0)+ROW()-4))","v":""}]
[null,null,null,null,null,null,null,{"$f":"IF(OR($F$4=\"\",COUNTIF(DATA!H:H,$F$4)<=ROW()-4),\"\",INDEX(DATA!G:G,MATCH($F$4*1,DATA!H:H,0)+ROW()-4))","v":""}]
[null,null,null,null,null,null,null,{"$f":"IF(OR($F$4=\"\",COUNTIF(DATA!H:H,$F$4)<=ROW()-4),\"\",INDEX(DATA!G:G,MATCH($F$4*1,DATA!H:H,0)+ROW()-4))","v":""}]
[null,null,null,null,null,null,null,{"$f":"IF(OR($F$4=\"\",COUNTIF(DATA!H:H,$F$4)<=ROW()-4),\"\",INDEX(DATA!G:G,MATCH($F$4*1,DATA!H:H,0)+ROW()-4))","v":""}]
[null,null,null,null,null,null,null,{"$f":"IF(OR($F$4=\"\",COUNTIF(DATA!H:H,$F$4)<=ROW()-4),\"\",INDEX(DATA!G:G,MATCH($F$4*1,DATA!H:H,0)+ROW()-4))","v":""}]
[null,null,null,null,null,null,null,{"$f":"IF(OR($F$4=\"\",COUNTIF(DATA!H:H,$F$4)<=ROW()-4),\"\",INDEX(DATA!G:G,MATCH($F$4*1,DATA!H:H,0)+ROW()-4))","v":""}]
[null,null,null,null,null,null,null,{"$f":"IF(OR($F$4=\"\",COUNTIF(DATA!H:H,$F$4)<=ROW()-4),\"\",INDEX(DATA!G:G,MATCH($F$4*1,DATA!H:H,0)+ROW()-4))","v":""}]
[null,null,null,null,null,null,null,{"$f":"IF(OR($F$4=\"\",COUNTIF(DATA!H:H,$F$4)<=ROW()-4),\"\",INDEX(DATA!G:G,MATCH($F$4*1,DATA!H:H,0)+ROW()-4))","v":""}]
[null,null,null,null,null,null,null,{"$f":"IF(OR($F$4=\"\",COUNTIF(DATA!H:H,$F$4)<=ROW()-4),\"\",INDEX(DATA!G:G,MATCH($F$4*1,DATA!H:H,0)+ROW()-4))","v":""}]
[null,null,null,null,null,null,null,{"$f":"IF(OR($F$4=\"\",COUNTIF(DATA!H:H,$F$4)<=ROW()-4),\"\",INDEX(DATA!G:G,MATCH($F$4*1,DATA!H:H,0)+ROW()-4))","v":""}]
[null,null,null,null,null,null,null,{"$f":"IF(OR($F$4=\"\",COUNTIF(DATA!H:H,$F$4)<=ROW()-4),\"\",INDEX(DATA!G:G,MATCH($F$4*1,DATA!H:H,0)+ROW()-4))","v":""}]
[null,null,null,null,null,null,null,{"$f":"IF(OR($F$4=\"\",COUNTIF(DATA!H:H,$F$4)<=ROW()-4),\"\",INDEX(DATA!G:G,MATCH($F$4*1,DATA!H:H,0)+ROW()-4))","v":""}]
[null,null,null,null,null,null,null,{"$f":"IF(OR($F$4=\"\",COUNTIF(DATA!H:H,$F$4)<=ROW()-4),\"\",INDEX(DATA!G:G,MATCH($F$4*1,DATA!H:H,0)+ROW()-4))","v":""}]
[null,null,null,null,null,null,null,{"$f":"IF(OR($F$4=\"\",COUNTIF(DATA!H:H,$F$4)<=ROW()-4),\"\",INDEX(DATA!G:G,MATCH($F$4*1,DATA!H:H,0)+ROW()-4))","v":""}]
[null,null,null,null,null,null,null,{"$f":"IF(OR($F$4=\"\",COUNTIF(DATA!H:H,$F$4)<=ROW()-4),\"\",INDEX(DATA!G:G,MATCH($F$4*1,DATA!H:H,0)+ROW()-4))","v":""}]
[null,null,null,null,null,null,null,{"$f":"IF(OR($F$4=\"\",COUNTIF(DATA!H:H,$F$4)<=ROW()-4),\"\",INDEX(DATA!G:G,MATCH($F$4*1,DATA!H:H,0)+ROW()-4))","v":""}]
[null,null,null,null,null,null,null,{"$f":"IF(OR($F$4=\"\",COUNTIF(DATA!H:H,$F$4)<=ROW()-4),\"\",INDEX(DATA!G:G,MATCH($F$4*1,DATA!H:H,0)+ROW()-4))","v":""}]
[null,null,null,null,null,null,null,{"$f":"IF(OR($F$4=\"\",COUNTIF(DATA!H:H,$F$4)<=ROW()-4),\"\",INDEX(DATA!G:G,MATCH($F$4*1,DATA!H:H,0)+ROW()-4))","v":""}]
[null,null,null,null,null,null,null,{"$f":"IF(OR($F$4=\"\",COUNTIF(DATA!H:H,$F$4)<=ROW()-4),\"\",INDEX(DATA!G:G,MATCH($F$4*1,DATA!H:H,0)+ROW()-4))","v":""}]
[null,null,null,null,null,null,null,{"$f":"IF(OR($F$4=\"\",COUNTIF(DATA!H:H,$F$4)<=ROW()-4),\"\",INDEX(DATA!G:G,MATCH($F$4*1,DATA!H:H,0)+ROW()-4))","v":""}]
[null,null,null,null,null,null,null,{"$f":"IF(OR($F$4=\"\",COUNTIF(DATA!H:H,$F$4)<=ROW()-4),\"\",INDEX(DATA!G:G,MATCH($F$4*1,DATA!H:H,0)+ROW()-4))","v":""}]

{"sheet":"Feuil1","index":2,"n_rows":0,"n_cols":0,"rows_kept":0,"cut":false,"hidden":true,"merged":[]}